{"text_format":"1","workbook":"xlsx","n_sheets":1,"sheets":["A"],"not_rendered":{"charts":0,"images":1,"macros":1,"external_links":0,"defined_names":0,"comments":0,"pivot_tables":0},"unopened":[],"bounds":{"document_bytes":16777216,"sheet_cells":100000,"rows_first":2000,"rows_last":500,"rows_between":2000,"halvings":0,"cell_chars":16384,"cell_head_chars":4096},"cells_cut":0,"cells_raw":0,"read":"whole","date_system":"1900"}

{"sheet":"A","index":0,"n_rows":1544,"n_cols":17,"rows_kept":1544,"cut":false,"hidden":false,"merged":[[1,3,1,11],[2,3,2,11],[4,3,4,11]]}
[]
[null,null,null,"DEPARTMENT OF REVENUE-CHARITABLE GAMING DIVISION"]
[null,null,null,"UNAUTHORIZED DISTRIBUTION OF THIS LISTING IS PROHIBITED"]
[]
[null,null,null,"ARROW UNIVERSAL"]
[]
["FORM",null,"COST/",null,null,"UNIT","GROSS","PAYOUT","TOP","DEF.","PICKLE","OPER.","OPER.",null,null,"APPROVAL"]
["NO.","MFR.","PER","DESCRIPTION","TYPE","COUNT","PROCEEDS","PERCENT","PRIZE","PROFIT","TAX","COMM.","REMIT","CHECK","CHECK2","DATE"]
["7072A","TP",0.25,"FIVE ALARM",5,2400,{"$f":"+F9*C9","v":600},0.65,50,210,{"$f":"+J9*0.1","v":21},{"$f":"SUM(J9*0.3)","v":63},{"$f":"SUM(J9-L9)","v":147},{"$f":"SUM((G9-J9)/G9)","v":0.65},{"$f":"SUM(H9-N9)","v":0},"2020-01-22"]
["7449A","TP",0.5,"FIVE ALARM",5,4000,{"$f":"+F10*C10","v":2000},0.73099999999999998,250,538,{"$f":"+J10*0.1","v":53.800000000000004},{"$f":"SUM(J10*0.3)","v":161.4},{"$f":"SUM(J10-L10)","v":376.6},{"$f":"SUM((G10-J10)/G10)","v":0.73099999999999998},{"$f":"SUM(H10-N10)","v":0},"2020-01-22"]
["7090A","TP",0.25,"LUCK MAGNET",5,2400,{"$f":"+F11*C11","v":600},0.65,50,210,{"$f":"+J11*0.1","v":21},{"$f":"SUM(J11*0.3)","v":63},{"$f":"SUM(J11-L11)","v":147},{"$f":"SUM((G11-J11)/G11)","v":0.65},{"$f":"SUM(H11-N11)","v":0},"2020-01-22"]
["7090A","TP",0.25,"LUCK MAGNET",5,2400,{"$f":"+F12*C12","v":600},0.65,50,210,{"$f":"+J12*0.1","v":21},{"$f":"SUM(J12*0.3)","v":63},{"$f":"SUM(J12-L12)","v":147},{"$f":"SUM((G12-J12)/G12)","v":0.65},{"$f":"SUM(H12-N12)","v":0},"2020-01-22"]
["7090A","TP",0.25,"LUCK MAGNET",5,2400,{"$f":"+F13*C13","v":600},0.65,50,210,{"$f":"+J13*0.1","v":21},{"$f":"SUM(J13*0.3)","v":63},{"$f":"SUM(J13-L13)","v":147},{"$f":"SUM((G13-J13)/G13)","v":0.65},{"$f":"SUM(H13-N13)","v":0},"2020-01-22"]
["7090A","TP",0.25,"LUCK MAGNET",5,2400,{"$f":"+F14*C14","v":600},0.65,50,210,{"$f":"+J14*0.1","v":21},{"$f":"SUM(J14*0.3)","v":63},{"$f":"SUM(J14-L14)","v":147},{"$f":"SUM((G14-J14)/G14)","v":0.65},{"$f":"SUM(H14-N14)","v":0},"2020-01-22"]
["7090A","TP",0.25,"LUCK MAGNET",5,2400,{"$f":"+F15*C15","v":600},0.65,50,210,{"$f":"+J15*0.1","v":21},{"$f":"SUM(J15*0.3)","v":63},{"$f":"SUM(J15-L15)","v":147},{"$f":"SUM((G15-J15)/G15)","v":0.65},{"$f":"SUM(H15-N15)","v":0},"2020-01-22"]
["7090A","TP",0.25,"LUCK MAGNET",5,2400,{"$f":"+F16*C16","v":600},0.65,50,210,{"$f":"+J16*0.1","v":21},{"$f":"SUM(J16*0.3)","v":63},{"$f":"SUM(J16-L16)","v":147},{"$f":"SUM((G16-J16)/G16)","v":0.65},{"$f":"SUM(H16-N16)","v":0},"2020-01-22"]
["7451A","TP",0.5,"LUCK MAGNET",5,4000,{"$f":"+F17*C17","v":2000},0.73099999999999998,250,538,{"$f":"+J17*0.1","v":53.800000000000004},{"$f":"SUM(J17*0.3)","v":161.4},{"$f":"SUM(J17-L17)","v":376.6},{"$f":"SUM((G17-J17)/G17)","v":0.73099999999999998},{"$f":"SUM(H17-N17)","v":0},"2020-01-22"]
["7081A","TP",0.25,"SERIOUS TABS",5,2400,{"$f":"+F18*C18","v":600},0.65,50,210,{"$f":"+J18*0.1","v":21},{"$f":"SUM(J18*0.3)","v":63},{"$f":"SUM(J18-L18)","v":147},{"$f":"SUM((G18-J18)/G18)","v":0.65},{"$f":"SUM(H18-N18)","v":0},"2020-01-22"]
["7450A","TP",0.5,"SERIOUS TABS",5,4000,{"$f":"+F19*C19","v":2000},0.73099999999999998,250,538,{"$f":"+J19*0.1","v":53.800000000000004},{"$f":"SUM(J19*0.3)","v":161.4},{"$f":"SUM(J19-L19)","v":376.6},{"$f":"SUM((G19-J19)/G19)","v":0.73099999999999998},{"$f":"SUM(H19-N19)","v":0},"2020-01-22"]
["VFW150B","AU",0.25,"VFW",5,4000,1000,0.65,150,350,{"$f":"J20*0.1","v":35},{"$f":"J20*0.3","v":105},{"$f":"J20-L20","v":245},{"$f":"(G20-J20)/G20","v":0.65},{"$f":"H20-N20","v":0},"2018-09-12",{"$f":"SUM((C20*F20)-G20)","v":0}]
["VFW250I","AU",0.5,"VFW",5,4000,2000,0.7,250,600,{"$f":"J21*0.1","v":60},{"$f":"J21*0.3","v":180},{"$f":"J21-L21","v":420},{"$f":"(G21-J21)/G21","v":0.7},{"$f":"H21-N21","v":0},"2018-09-12",0]
["FVW250J","AU",1,"VFW",5,4000,4000,0.75,250,1000,{"$f":"J22*0.1","v":100},{"$f":"J22*0.3","v":300},{"$f":"J22-L22","v":700},{"$f":"(G22-J22)/G22","v":0.75},{"$f":"H22-N22","v":0},"2018-09-12",0]
["VFW250K","AU",1,"VFW",5,4000,4000,0.75,250,1000,{"$f":"J23*0.1","v":100},{"$f":"J23*0.3","v":300},{"$f":"J23-L23","v":700},{"$f":"(G23-J23)/G23","v":0.75},{"$f":"H23-N23","v":0},"2018-09-12",0]
["VFW300B","AU",1,"VFW",5,4000,4000,0.75,300,1000,{"$f":"J24*0.1","v":100},{"$f":"J24*0.3","v":300},{"$f":"J24-L24","v":700},{"$f":"(G24-J24)/G24","v":0.75},{"$f":"H24-N24","v":0},"2018-09-12",0]
["VFW4","AU",1,"VFW",3,3132,3132,0.77,205,722,{"$f":"J25*0.1","v":72.2},{"$f":"J25*0.3","v":216.6},{"$f":"J25-L25","v":505.4},{"$f":"(G25-J25)/G25","v":0.76947637292464877},{"$f":"H25-N25","v":5.2362707535125175E-4},"2018-09-12",0]
["VFW500H","AU",1,"VFW",5,4000,4000,0.75,500,1000,{"$f":"J26*0.1","v":100},{"$f":"J26*0.3","v":300},{"$f":"J26-L26","v":700},{"$f":"(G26-J26)/G26","v":0.75},{"$f":"H26-N26","v":0},"2018-09-12",0]
["VFW500I","AU",1,"VFW",5,4000,4000,0.75,500,1000,{"$f":"J27*0.1","v":100},{"$f":"J27*0.3","v":300},{"$f":"J27-L27","v":700},{"$f":"(G27-J27)/G27","v":0.75},{"$f":"H27-N27","v":0},"2018-09-12",0]
["VFW500J","AU",1,"VFW",5,4000,4000,0.76,500,975,{"$f":"J28*0.1","v":97.5},{"$f":"J28*0.3","v":292.5},{"$f":"J28-L28","v":682.5},{"$f":"(G28-J28)/G28","v":0.75624999999999998},{"$f":"H28-N28","v":3.7500000000000311E-3},"2018-09-12",0]
["VFW599E","AU",1,"VFW",5,4000,4000,0.75,599,998,{"$f":"J29*0.1","v":99.800000000000011},{"$f":"J29*0.3","v":299.39999999999998},{"$f":"J29-L29","v":698.6},{"$f":"(G29-J29)/G29","v":0.75049999999999994},{"$f":"H29-N29","v":-4.9999999999994493E-4},"2018-09-12",0]
["VFW599F","AU",1,"VFW",5,4000,4000,0.75,599,1000,{"$f":"J30*0.1","v":100},{"$f":"J30*0.3","v":300},{"$f":"J30-L30","v":700},{"$f":"(G30-J30)/G30","v":0.75},{"$f":"H30-N30","v":0},"2018-09-12",0]
[null,null,null,null,null,null,null,null,null,null,{"$f":"J31*0.1","v":0},{"$f":"J31*0.3","v":0},{"$f":"J31-L31","v":0},{"$f":"(G31-J31)/G31","v":{"$error":"#DIV/0!"}},{"$f":"H31-N31","v":{"$error":"#DIV/0!"}}]
[null,null,null,null,null,null,null,null,null,null,0,0,0,{"$error":"#DIV/0!"},{"$error":"#DIV/0!"}]
[null,null,null,null,null,null,null,null,null,null,0,0,0,{"$error":"#DIV/0!"},{"$error":"#DIV/0!"}]
[null,null,null,null,null,null,null,null,null,null,0,0,0,{"$error":"#DIV/0!"},{"$error":"#DIV/0!"}]
[null,null,null,null,null,null,null,null,null,null,0,0,0,{"$error":"#DIV/0!"},{"$error":"#DIV/0!"}]
[null,null,null,null,null,null,null,null,null,null,0,0,0,{"$error":"#DIV/0!"},{"$error":"#DIV/0!"}]
[null,null,null,null,null,null,null,null,null,null,0,0,0,{"$error":"#DIV/0!"},{"$error":"#DIV/0!"}]
[null,null,null,null,null,null,null,null,null,null,0,0,0,{"$error":"#DIV/0!"},{"$error":"#DIV/0!"}]
[null,null,null,null,null,null,null,null,null,null,0,0,0,{"$error":"#DIV/0!"},{"$error":"#DIV/0!"}]
[null,null,null,null,null,null,null,null,null,null,0,0,0,{"$error":"#DIV/0!"},{"$error":"#DIV/0!"}]
[null,null,null,null,null,null,null,null,null,null,0,0,0,{"$error":"#DIV/0!"},{"$error":"#DIV/0!"}]
[null,null,null,null,null,null,null,null,null,null,0,0,0,{"$error":"#DIV/0!"},{"$error":"#DIV/0!"}]
[null,null,null,null,null,null,null,null,null,null,0,0,0,{"$error":"#DIV/0!"},{"$error":"#DIV/0!"}]
[null,null,null,null,null,null,null,null,null,null,0,0,0,{"$error":"#DIV/0!"},{"$error":"#DIV/0!"}]
[null,null,null,null,null,null,null,null,null,null,0,0,0,{"$error":"#DIV/0!"},{"$error":"#DIV/0!"}]
[null,null,null,null,null,null,null,null,null,null,0,0,0,{"$error":"#DIV/0!"},{"$error":"#DIV/0!"}]
[null,null,null,null,null,null,null,null,null,null,0,0,0,{"$error":"#DIV/0!"},{"$error":"#DIV/0!"}]
[null,null,null,null,null,null,null,null,null,null,0,0,0,{"$error":"#DIV/0!"},{"$error":"#DIV/0!"}]
[null,null,null,null,null,null,null,null,null,null,0,0,0,{"$error":"#DIV/0!"},{"$error":"#DIV/0!"}]
[null,null,null,null,null,null,null,null,null,null,{"$f":"SUM(J50*0.1)","v":0},{"$f":"SUM(J50*0.3)","v":0},{"$f":"SUM(J50-L50)","v":0},{"$f":"SUM(G50-J50)/G50","v":{"$error":"#DIV/0!"}},{"$f":"SUM(H50-N50)","v":{"$error":"#DIV/0!"}}]
[null,null,null,null,null,null,null,null,null,null,{"$f":"SUM(J51*0.1)","v":0},{"$f":"SUM(J51*0.3)","v":0},{"$f":"SUM(J51-L51)","v":0},{"$f":"SUM(G51-J51)/G51","v":{"$error":"#DIV/0!"}},{"$f":"SUM(H51-N51)","v":{"$error":"#DIV/0!"}}]
[null,null,null,null,null,null,null,null,null,null,{"$f":"SUM(J52*0.1)","v":0},{"$f":"SUM(J52*0.3)","v":0},{"$f":"SUM(J52-L52)","v":0},{"$f":"SUM(G52-J52)/G52","v":{"$error":"#DIV/0!"}},{"$f":"SUM(H52-N52)","v":{"$error":"#DIV/0!"}}]
[null,null,null,null,null,null,null,null,null,null,{"$f":"SUM(J53*0.1)","v":0},{"$f":"SUM(J53*0.3)","v":0},{"$f":"SUM(J53-L53)","v":0},{"$f":"SUM(G53-J53)/G53","v":{"$error":"#DIV/0!"}},{"$f":"SUM(H53-N53)","v":{"$error":"#DIV/0!"}}]
[null,null,null,null,null,null,null,null,null,null,{"$f":"SUM(J54*0.1)","v":0},{"$f":"SUM(J54*0.3)","v":0},{"$f":"SUM(J54-L54)","v":0},{"$f":"SUM(G54-J54)/G54","v":{"$error":"#DIV/0!"}},{"$f":"SUM(H54-N54)","v":{"$error":"#DIV/0!"}}]
[null,null,null,null,null,null,null,null,null,null,{"$f":"J55*0.1","v":0},{"$f":"J55*0.3","v":0},{"$f":"J55-L55","v":0},{"$f":"(G55-J55)/G55","v":{"$error":"#DIV/0!"}},{"$f":"H55-N55","v":{"$error":"#DIV/0!"}}]
[null,null,null,null,null,null,null,null,null,null,0,0,0,{"$error":"#DIV/0!"},{"$error":"#DIV/0!"}]
[null,null,null,null,null,null,null,null,null,null,0,0,0,{"$error":"#DIV/0!"},{"$error":"#DIV/0!"}]
[null,null,null,null,null,null,null,null,null,null,0,0,0,{"$error":"#DIV/0!"},{"$error":"#DIV/0!"}]
[null,null,null,null,null,null,null,null,null,null,0,0,0,{"$error":"#DIV/0!"},{"$error":"#DIV/0!"}]
[null,null,null,null,null,null,null,null,null,null,0,0,0,{"$error":"#DIV/0!"},{"$error":"#DIV/0!"}]
[null,null,null,null,null,null,null,null,null,null,0,0,0,{"$error":"#DIV/0!"},{"$error":"#DIV/0!"}]
[null,null,null,null,null,null,null,null,null,null,0,0,0,{"$error":"#DIV/0!"},{"$error":"#DIV/0!"}]
[null,null,null,null,null,null,null,null,null,null,0,0,0,{"$error":"#DIV/0!"},{"$error":"#DIV/0!"}]
[null,null,null,null,null,null,null,null,null,null,0,0,0,{"$error":"#DIV/0!"},{"$error":"#DIV/0!"}]
[null,null,null,null,null,null,null,null,null,null,0,0,0,{"$error":"#DIV/0!"},{"$error":"#DIV/0!"}]
[null,null,null,null,null,null,null,null,null,null,0,0,0,{"$error":"#DIV/0!"},{"$error":"#DIV/0!"}]
[null,null,null,null,null,null,null,null,null,null,0,0,0,{"$error":"#DIV/0!"},{"$error":"#DIV/0!"}]
[null,null,null,null,null,null,null,null,null,null,0,0,0,{"$error":"#DIV/0!"},{"$error":"#DIV/0!"}]
[null,null,null,null,null,null,null,null,null,null,0,0,0,{"$error":"#DIV/0!"},{"$error":"#DIV/0!"}]
[null,null,null,null,null,null,null,null,null,null,0,0,0,{"$error":"#DIV/0!"},{"$error":"#DIV/0!"}]
[null,null,null,null,null,null,null,null,null,null,0,0,0,{"$error":"#DIV/0!"},{"$error":"#DIV/0!"}]
[null,null,null,null,null,null,null,null,null,null,0,0,0,{"$error":"#DIV/0!"},{"$error":"#DIV/0!"}]
[null,null,null,null,null,null,null,null,null,null,0,0,0,{"$error":"#DIV/0!"},{"$error":"#DIV/0!"}]
[null,null,null,null,null,null,null,null,null,null,0,0,0,{"$error":"#DIV/0!"},{"$error":"#DIV/0!"}]
[null,null,null,null,null,null,null,null,null,null,0,0,0,{"$error":"#DIV/0!"},{"$error":"#DIV/0!"}]
[null,null,null,null,null,null,null,null,null,null,0,0,0,{"$error":"#DIV/0!"},{"$error":"#DIV/0!"}]
[null,null,null,null,null,null,null,null,null,null,0,0,0,{"$error":"#DIV/0!"},{"$error":"#DIV/0!"}]
[null,null,null,null,null,null,null,null,null,null,0,0,0,{"$error":"#DIV/0!"},{"$error":"#DIV/0!"}]
[null,null,null,null,null,null,null,null,null,null,0,0,0,{"$error":"#DIV/0!"},{"$error":"#DIV/0!"}]
[null,null,null,null,null,null,null,null,null,null,0,0,0,{"$error":"#DIV/0!"},{"$error":"#DIV/0!"}]
[null,null,null,null,null,null,null,null,null,null,0,0,0,{"$error":"#DIV/0!"},{"$error":"#DIV/0!"}]
[null,null,null,null,null,null,null,null,null,null,0,0,0,{"$error":"#DIV/0!"},{"$error":"#DIV/0!"}]
[null,null,null,null,null,null,null,null,null,null,0,0,0,{"$error":"#DIV/0!"},{"$error":"#DIV/0!"}]
[null,null,null,null,null,null,null,null,null,null,0,0,0,{"$error":"#DIV/0!"},{"$error":"#DIV/0!"}]
[null,null,null,null,null,null,null,null,null,null,0,0,0,{"$error":"#DIV/0!"},{"$error":"#DIV/0!"}]
[null,null,null,null,null,null,null,null,null,null,0,0,0,{"$error":"#DIV/0!"},{"$error":"#DIV/0!"}]
[null,null,null,null,null,null,null,null,null,null,{"$f":"J87*0.1","v":0},{"$f":"J87*0.3","v":0},{"$f":"J87-L87","v":0},{"$f":"(G87-J87)/G87","v":{"$error":"#DIV/0!"}},{"$f":"H87-N87","v":{"$error":"#DIV/0!"}}]
[null,null,null,null,null,null,null,null,null,null,0,0,0,{"$error":"#DIV/0!"},{"$error":"#DIV/0!"}]
[null,null,null,null,null,null,null,null,null,null,0,0,0,{"$error":"#DIV/0!"},{"$error":"#DIV/0!"}]
[null,null,null,null,null,null,null,null,null,null,0,0,0,{"$error":"#DIV/0!"},{"$error":"#DIV/0!"}]
[null,null,null,null,null,null,null,null,null,null,0,0,0,{"$error":"#DIV/0!"},{"$error":"#DIV/0!"}]
[null,null,null,null,null,null,null,null,null,null,0,0,0,{"$error":"#DIV/0!"},{"$error":"#DIV/0!"}]
[null,null,null,null,null,null,null,null,null,null,0,0,0,{"$error":"#DIV/0!"},{"$error":"#DIV/0!"}]
[null,null,null,null,null,null,null,null,null,null,0,0,0,{"$error":"#DIV/0!"},{"$error":"#DIV/0!"}]
[null,null,null,null,null,null,null,null,null,null,0,0,0,{"$error":"#DIV/0!"},{"$error":"#DIV/0!"}]
[null,null,null,null,null,null,null,null,null,null,0,0,0,{"$error":"#DIV/0!"},{"$error":"#DIV/0!"}]
[null,null,null,null,null,null,null,null,null,null,0,0,0,{"$error":"#DIV/0!"},{"$error":"#DIV/0!"}]
[null,null,null,null,null,null,null,null,null,null,0,0,0,{"$error":"#DIV/0!"},{"$error":"#DIV/0!"}]
[null,null,null,null,null,null,null,null,null,null,0,0,0,{"$error":"#DIV/0!"},{"$error":"#DIV/0!"}]
[null,null,null,null,null,null,null,null,null,null,0,0,0,{"$error":"#DIV/0!"},{"$error":"#DIV/0!"}]
[null,null,null,null,null,null,null,null,null,null,0,0,0,{"$error":"#DIV/0!"},{"$error":"#DIV/0!"}]
[null,null,null,null,null,null,null,null,null,null,0,0,0,{"$error":"#DIV/0!"},{"$error":"#DIV/0!"}]
[null,null,null,null,null,null,null,null,null,null,0,0,0,{"$error":"#DIV/0!"},{"$error":"#DIV/0!"}]
[null,null,null,null,null,null,null,null,null,null,0,0,0,{"$error":"#DIV/0!"},{"$error":"#DIV/0!"}]
[null,null,null,null,null,null,null,null,null,null,0,0,0,{"$error":"#DIV/0!"},{"$error":"#DIV/0!"}]
[null,null,null,null,null,null,null,null,null,null,0,0,0,{"$error":"#DIV/0!"},{"$error":"#DIV/0!"}]
[null,null,null,null,null,null,null,null,null,null,0,0,0,{"$error":"#DIV/0!"},{"$error":"#DIV/0!"}]
[null,null,null,null,null,null,null,null,null,null,0,0,0,{"$error":"#DIV/0!"},{"$error":"#DIV/0!"}]
[null,null,null,null,null,null,null,null,null,null,0,0,0,{"$error":"#DIV/0!"},{"$error":"#DIV/0!"}]
[null,null,null,null,null,null,null,null,null,null,0,0,0,{"$error":"#DIV/0!"},{"$error":"#DIV/0!"}]
[null,null,null,null,null,null,null,null,null,null,0,0,0,{"$error":"#DIV/0!"},{"$error":"#DIV/0!"}]
[null,null,null,null,null,null,null,null,null,null,0,0,0,{"$error":"#DIV/0!"},{"$error":"#DIV/0!"}]
[null,null,null,null,null,null,null,null,null,null,0,0,0,{"$error":"#DIV/0!"},{"$error":"#DIV/0!"}]
[null,null,null,null,null,null,null,null,null,null,0,0,0,{"$error":"#DIV/0!"},{"$error":"#DIV/0!"}]
[null,null,null,null,null,null,null,null,null,null,0,0,0,{"$error":"#DIV/0!"},{"$error":"#DIV/0!"}]
[null,null,null,null,null,null,null,null,null,null,0,0,0,{"$error":"#DIV/0!"},{"$error":"#DIV/0!"}]
[null,null,null,null,null,null,null,null,null,null,0,0,0,{"$error":"#DIV/0!"},{"$error":"#DIV/0!"}]
[null,null,null,null,null,null,null,null,null,null,0,0,0,{"$error":"#DIV/0!"},{"$error":"#DIV/0!"}]
[null,null,null,null,null,null,null,null,null,null,{"$f":"J119*0.1","v":0},{"$f":"J119*0.3","v":0},{"$f":"J119-L119","v":0},{"$f":"(G119-J119)/G119","v":{"$error":"#DIV/0!"}},{"$f":"H119-N119","v":{"$error":"#DIV/0!"}}]
[null,null,null,null,null,null,null,null,null,null,0,0,0,{"$error":"#DIV/0!"},{"$error":"#DIV/0!"}]
[null,null,null,null,null,null,null,null,null,null,0,0,0,{"$error":"#DIV/0!"},{"$error":"#DIV/0!"}]
[null,null,null,null,null,null,null,null,null,null,0,0,0,{"$error":"#DIV/0!"},{"$error":"#DIV/0!"}]
[null,null,null,null,null,null,null,null,null,null,0,0,0,{"$error":"#DIV/0!"},{"$error":"#DIV/0!"}]
[null,null,null,null,null,null,null,null,null,null,0,0,0,{"$error":"#DIV/0!"},{"$error":"#DIV/0!"}]
[null,null,null,null,null,null,null,null,null,null,0,0,0,{"$error":"#DIV/0!"},{"$error":"#DIV/0!"}]
[null,null,null,null,null,null,null,null,null,null,0,0,0,{"$error":"#DIV/0!"},{"$error":"#DIV/0!"}]
[null,null,null,null,null,null,null,null,null,null,0,0,0,{"$error":"#DIV/0!"},{"$error":"#DIV/0!"}]
[null,null,null,null,null,null,null,null,null,null,0,0,0,{"$error":"#DIV/0!"},{"$error":"#DIV/0!"}]
[null,null,null,null,null,null,null,null,null,null,0,0,0,{"$error":"#DIV/0!"},{"$error":"#DIV/0!"}]
[null,null,null,null,null,null,null,null,null,null,0,0,0,{"$error":"#DIV/0!"},{"$error":"#DIV/0!"}]
[null,null,null,null,null,null,null,null,null,null,0,0,0,{"$error":"#DIV/0!"},{"$error":"#DIV/0!"}]
[null,null,null,null,null,null,null,null,null,null,0,0,0,{"$error":"#DIV/0!"},{"$error":"#DIV/0!"}]
[null,null,null,null,null,null,null,null,null,null,0,0,0,{"$error":"#DIV/0!"},{"$error":"#DIV/0!"}]
[null,null,null,null,null,null,null,null,null,null,0,0,0,{"$error":"#DIV/0!"},{"$error":"#DIV/0!"}]
[null,null,null,null,null,null,null,null,null,null,0,0,0,{"$error":"#DIV/0!"},{"$error":"#DIV/0!"}]
[null,null,null,null,null,null,null,null,null,null,0,0,0,{"$error":"#DIV/0!"},{"$error":"#DIV/0!"}]
[null,null,null,null,null,null,null,null,null,null,0,0,0,{"$error":"#DIV/0!"},{"$error":"#DIV/0!"}]
[null,null,null,null,null,null,null,null,null,null,0,0,0,{"$error":"#DIV/0!"},{"$error":"#DIV/0!"}]
[null,null,null,null,null,null,null,null,null,null,0,0,0,{"$error":"#DIV/0!"},{"$error":"#DIV/0!"}]
[null,null,null,null,null,null,null,null,null,null,{"$f":"SUM(J140*0.1)","v":0},{"$f":"SUM(J140*0.3)","v":0},{"$f":"SUM(J140-L140)","v":0},{"$f":"SUM(G140-J140)/G140","v":{"$error":"#DIV/0!"}},{"$f":"SUM(H140-N140)","v":{"$error":"#DIV/0!"}}]
[null,null,null,null,null,null,null,null,null,null,{"$f":"J141*0.1","v":0},{"$f":"J141*0.3","v":0},{"$f":"J141-L141","v":0},{"$f":"(G141-J141)/G141","v":{"$error":"#DIV/0!"}},{"$f":"H141-N141","v":{"$error":"#DIV/0!"}}]
[null,null,null,null,null,null,null,null,null,null,0,0,0,{"$error":"#DIV/0!"},{"$error":"#DIV/0!"}]
[null,null,null,null,null,null,null,null,null,null,0,0,0,{"$error":"#DIV/0!"},{"$error":"#DIV/0!"}]
[null,null,null,null,null,null,null,null,null,null,0,0,0,{"$error":"#DIV/0!"},{"$error":"#DIV/0!"}]
[null,null,null,null,null,null,null,null,null,null,0,0,0,{"$error":"#DIV/0!"},{"$error":"#DIV/0!"}]
[null,null,null,null,null,null,null,null,null,null,0,0,0,{"$error":"#DIV/0!"},{"$error":"#DIV/0!"}]
[null,null,null,null,null,null,null,null,null,null,0,0,0,{"$error":"#DIV/0!"},{"$error":"#DIV/0!"}]
[null,null,null,null,null,null,null,null,null,null,0,0,0,{"$error":"#DIV/0!"},{"$error":"#DIV/0!"}]
[null,null,null,null,null,null,null,null,null,null,0,0,0,{"$error":"#DIV/0!"},{"$error":"#DIV/0!"}]
[null,null,null,null,null,null,null,null,null,null,0,0,0,{"$error":"#DIV/0!"},{"$error":"#DIV/0!"}]
[null,null,null,null,null,null,null,null,null,null,0,0,0,{"$error":"#DIV/0!"},{"$error":"#DIV/0!"}]
[null,null,null,null,null,null,null,null,null,null,0,0,0,{"$error":"#DIV/0!"},{"$error":"#DIV/0!"}]
[null,null,null,null,null,null,null,null,null,null,0,0,0,{"$error":"#DIV/0!"},{"$error":"#DIV/0!"}]
[null,null,null,null,null,null,null,null,null,null,0,0,0,{"$error":"#DIV/0!"},{"$error":"#DIV/0!"}]
[null,null,null,null,null,null,null,null,null,null,0,0,0,{"$error":"#DIV/0!"},{"$error":"#DIV/0!"}]
[null,null,null,null,null,null,null,null,null,null,{"$f":"SUM(J156*0.1)","v":0},{"$f":"SUM(J156*0.3)","v":0},{"$f":"SUM(J156-L156)","v":0},{"$f":"SUM(G156-J156)/G156","v":{"$error":"#DIV/0!"}},{"$f":"SUM(H156-N156)","v":{"$error":"#DIV/0!"}}]
[null,null,null,null,null,null,null,null,null,null,{"$f":"J157*0.1","v":0},{"$f":"J157*0.3","v":0},{"$f":"J157-L157","v":0},{"$f":"(G157-J157)/G157","v":{"$error":"#DIV/0!"}},{"$f":"H157-N157","v":{"$error":"#DIV/0!"}}]
[null,null,null,null,null,null,null,null,null,null,0,0,0,{"$error":"#DIV/0!"},{"$error":"#DIV/0!"}]
[null,null,null,null,null,null,null,null,null,null,0,0,0,{"$error":"#DIV/0!"},{"$error":"#DIV/0!"}]
[null,null,null,null,null,null,null,null,null,null,0,0,0,{"$error":"#DIV/0!"},{"$error":"#DIV/0!"}]
[null,null,null,null,null,null,null,null,null,null,0,0,0,{"$error":"#DIV/0!"},{"$error":"#DIV/0!"}]
[null,null,null,null,null,null,null,null,null,null,0,0,0,{"$error":"#DIV/0!"},{"$error":"#DIV/0!"}]
[null,null,null,null,null,null,null,null,null,null,0,0,0,{"$error":"#DIV/0!"},{"$error":"#DIV/0!"}]
[null,null,null,null,null,null,null,null,null,null,0,0,0,{"$error":"#DIV/0!"},{"$error":"#DIV/0!"}]
[null,null,null,null,null,null,null,null,null,null,0,0,0,{"$error":"#DIV/0!"},{"$error":"#DIV/0!"}]
[null,null,null,null,null,null,null,null,null,null,0,0,0,{"$error":"#DIV/0!"},{"$error":"#DIV/0!"}]
[null,null,null,null,null,null,null,null,null,null,{"$f":"SUM(J167*0.1)","v":0},{"$f":"SUM(J167*0.3)","v":0},{"$f":"SUM(J167-L167)","v":0},{"$f":"SUM(G167-J167)/G167","v":{"$error":"#DIV/0!"}},{"$f":"SUM(H167-N167)","v":{"$error":"#DIV/0!"}}]
[null,null,null,null,null,null,null,null,null,null,{"$f":"SUM(J168*0.1)","v":0},{"$f":"SUM(J168*0.3)","v":0},{"$f":"SUM(J168-L168)","v":0},{"$f":"SUM(G168-J168)/G168","v":{"$error":"#DIV/0!"}},{"$f":"SUM(H168-N168)","v":{"$error":"#DIV/0!"}}]
[null,null,null,null,null,null,null,null,null,null,{"$f":"J169*0.1","v":0},{"$f":"J169*0.3","v":0},{"$f":"J169-L169","v":0},{"$f":"(G169-J169)/G169","v":{"$error":"#DIV/0!"}},{"$f":"H169-N169","v":{"$error":"#DIV/0!"}}]
[null,null,null,null,null,null,null,null,null,null,0,0,0,{"$error":"#DIV/0!"},{"$error":"#DIV/0!"}]
[null,null,null,null,null,null,null,null,null,null,0,0,0,{"$error":"#DIV/0!"},{"$error":"#DIV/0!"}]
[null,null,null,null,null,null,null,null,null,null,0,0,0,{"$error":"#DIV/0!"},{"$error":"#DIV/0!"}]
[null,null,null,null,null,null,null,null,null,null,0,0,0,{"$error":"#DIV/0!"},{"$error":"#DIV/0!"}]
[null,null,null,null,null,null,null,null,null,null,0,0,0,{"$error":"#DIV/0!"},{"$error":"#DIV/0!"}]
[null,null,null,null,null,null,null,null,null,null,0,0,0,{"$error":"#DIV/0!"},{"$error":"#DIV/0!"}]
[null,null,null,null,null,null,null,null,null,null,0,0,0,{"$error":"#DIV/0!"},{"$error":"#DIV/0!"}]
[null,null,null,null,null,null,null,null,null,null,0,0,0,{"$error":"#DIV/0!"},{"$error":"#DIV/0!"}]
[null,null,null,null,null,null,null,null,null,null,0,0,0,{"$error":"#DIV/0!"},{"$error":"#DIV/0!"}]
[null,null,null,null,null,null,null,null,null,null,0,0,0,{"$error":"#DIV/0!"},{"$error":"#DIV/0!"}]
[null,null,null,null,null,null,null,null,null,null,0,0,0,{"$error":"#DIV/0!"},{"$error":"#DIV/0!"}]
[null,null,null,null,null,null,null,null,null,null,0,0,0,{"$error":"#DIV/0!"},{"$error":"#DIV/0!"}]
[null,null,null,null,null,null,null,null,null,null,0,0,0,{"$error":"#DIV/0!"},{"$error":"#DIV/0!"}]
[null,null,null,null,null,null,null,null,null,null,0,0,0,{"$error":"#DIV/0!"},{"$error":"#DIV/0!"}]
[null,null,null,null,null,null,null,null,null,null,0,0,0,{"$error":"#DIV/0!"},{"$error":"#DIV/0!"}]
[null,null,null,null,null,null,null,null,null,null,{"$f":"SUM(J185*0.1)","v":0},{"$f":"SUM(J185*0.3)","v":0},{"$f":"SUM(J185-L185)","v":0},{"$f":"SUM(G185-J185)/G185","v":{"$error":"#DIV/0!"}},{"$f":"SUM(H185-N185)","v":{"$error":"#DIV/0!"}}]
[null,null,null,null,null,null,null,null,null,null,{"$f":"J186*0.1","v":0},{"$f":"J186*0.3","v":0},{"$f":"J186-L186","v":0},{"$f":"(G186-J186)/G186","v":{"$error":"#DIV/0!"}},{"$f":"H186-N186","v":{"$error":"#DIV/0!"}}]
[null,null,null,null,null,null,null,null,null,null,0,0,0,{"$error":"#DIV/0!"},{"$error":"#DIV/0!"}]
[null,null,null,null,null,null,null,null,null,null,0,0,0,{"$error":"#DIV/0!"},{"$error":"#DIV/0!"}]
[null,null,null,null,null,null,null,null,null,null,0,0,0,{"$error":"#DIV/0!"},{"$error":"#DIV/0!"}]
[null,null,null,null,null,null,null,null,null,null,0,0,0,{"$error":"#DIV/0!"},{"$error":"#DIV/0!"}]
[null,null,null,null,null,null,null,null,null,null,0,0,0,{"$error":"#DIV/0!"},{"$error":"#DIV/0!"}]
[null,null,null,null,null,null,null,null,null,null,0,0,0,{"$error":"#DIV/0!"},{"$error":"#DIV/0!"}]
[null,null,null,null,null,null,null,null,null,null,0,0,0,{"$error":"#DIV/0!"},{"$error":"#DIV/0!"}]
[null,null,null,null,null,null,null,null,null,null,0,0,0,{"$error":"#DIV/0!"},{"$error":"#DIV/0!"}]
[null,null,null,null,null,null,null,null,null,null,0,0,0,{"$error":"#DIV/0!"},{"$error":"#DIV/0!"}]
[null,null,null,null,null,null,null,null,null,null,0,0,0,{"$error":"#DIV/0!"},{"$error":"#DIV/0!"}]
[null,null,null,null,null,null,null,null,null,null,0,0,0,{"$error":"#DIV/0!"},{"$error":"#DIV/0!"}]
[null,null,null,null,null,null,null,null,null,null,0,0,0,{"$error":"#DIV/0!"},{"$error":"#DIV/0!"}]
[null,null,null,null,null,null,null,null,null,null,0,0,0,{"$error":"#DIV/0!"},{"$error":"#DIV/0!"}]
[null,null,null,null,null,null,null,null,null,null,0,0,0,{"$error":"#DIV/0!"},{"$error":"#DIV/0!"}]
[null,null,null,null,null,null,null,null,null,null,0,0,0,{"$error":"#DIV/0!"},{"$error":"#DIV/0!"}]
[null,null,null,null,null,null,null,null,null,null,0,0,0,{"$error":"#DIV/0!"},{"$error":"#DIV/0!"}]
[null,null,null,null,null,null,null,null,null,null,0,0,0,{"$error":"#DIV/0!"},{"$error":"#DIV/0!"}]
[null,null,null,null,null,null,null,null,null,null,0,0,0,{"$error":"#DIV/0!"},{"$error":"#DIV/0!"}]
[null,null,null,null,null,null,null,null,null,null,0,0,0,{"$error":"#DIV/0!"},{"$error":"#DIV/0!"}]
[null,null,null,null,null,null,null,null,null,null,0,0,0,{"$error":"#DIV/0!"},{"$error":"#DIV/0!"}]
[null,null,null,null,null,null,null,null,null,null,0,0,0,{"$error":"#DIV/0!"},{"$error":"#DIV/0!"}]
[null,null,null,null,null,null,null,null,null,null,0,0,0,{"$error":"#DIV/0!"},{"$error":"#DIV/0!"}]
[null,null,null,null,null,null,null,null,null,null,0,0,0,{"$error":"#DIV/0!"},{"$error":"#DIV/0!"}]
[null,null,null,null,null,null,null,null,null,null,0,0,0,{"$error":"#DIV/0!"},{"$error":"#DIV/0!"}]
[null,null,null,null,null,null,null,null,null,null,{"$f":"SUM(J211*0.1)","v":0},{"$f":"SUM(J211*0.3)","v":0},{"$f":"SUM(J211-L211)","v":0},{"$f":"SUM(G211-J211)/G211","v":{"$error":"#DIV/0!"}},{"$f":"SUM(H211-N211)","v":{"$error":"#DIV/0!"}}]
[null,null,null,null,null,null,null,null,null,null,{"$f":"SUM(J212*0.1)","v":0},{"$f":"SUM(J212*0.3)","v":0},{"$f":"SUM(J212-L212)","v":0},{"$f":"SUM(G212-J212)/G212","v":{"$error":"#DIV/0!"}},{"$f":"SUM(H212-N212)","v":{"$error":"#DIV/0!"}}]
[null,null,null,null,null,null,null,null,null,null,{"$f":"SUM(J213*0.1)","v":0},{"$f":"SUM(J213*0.3)","v":0},{"$f":"SUM(J213-L213)","v":0},{"$f":"SUM(G213-J213)/G213","v":{"$error":"#DIV/0!"}},{"$f":"SUM(H213-N213)","v":{"$error":"#DIV/0!"}}]
[null,null,null,null,null,null,null,null,null,null,{"$f":"SUM(J214*0.1)","v":0},{"$f":"SUM(J214*0.3)","v":0},{"$f":"SUM(J214-L214)","v":0},{"$f":"SUM(G214-J214)/G214","v":{"$error":"#DIV/0!"}},{"$f":"SUM(H214-N214)","v":{"$error":"#DIV/0!"}}]
[null,null,null,null,null,null,null,null,null,null,{"$f":"SUM(J215*0.1)","v":0},{"$f":"SUM(J215*0.3)","v":0},{"$f":"SUM(J215-L215)","v":0},{"$f":"SUM(G215-J215)/G215","v":{"$error":"#DIV/0!"}},{"$f":"SUM(H215-N215)","v":{"$error":"#DIV/0!"}}]
[null,null,null,null,null,null,null,null,null,null,{"$f":"J216*0.1","v":0},{"$f":"J216*0.3","v":0},{"$f":"J216-L216","v":0},{"$f":"(G216-J216)/G216","v":{"$error":"#DIV/0!"}},{"$f":"H216-N216","v":{"$error":"#DIV/0!"}}]
[null,null,null,null,null,null,null,null,null,null,{"$f":"J217*0.1","v":0},{"$f":"J217*0.3","v":0},{"$f":"J217-L217","v":0},{"$f":"(G217-J217)/G217","v":{"$error":"#DIV/0!"}},{"$f":"H217-N217","v":{"$error":"#DIV/0!"}}]
[null,null,null,null,null,null,null,null,null,null,{"$f":"J218*0.1","v":0},{"$f":"J218*0.3","v":0},{"$f":"J218-L218","v":0},{"$f":"(G218-J218)/G218","v":{"$error":"#DIV/0!"}},{"$f":"H218-N218","v":{"$error":"#DIV/0!"}}]
[null,null,null,null,null,null,null,null,null,null,{"$f":"J219*0.1","v":0},{"$f":"J219*0.3","v":0},{"$f":"J219-L219","v":0},{"$f":"(G219-J219)/G219","v":{"$error":"#DIV/0!"}},{"$f":"H219-N219","v":{"$error":"#DIV/0!"}}]
[null,null,null,null,null,null,null,null,null,null,{"$f":"J220*0.1","v":0},{"$f":"J220*0.3","v":0},{"$f":"J220-L220","v":0},{"$f":"(G220-J220)/G220","v":{"$error":"#DIV/0!"}},{"$f":"H220-N220","v":{"$error":"#DIV/0!"}}]
[null,null,null,null,null,null,null,null,null,null,{"$f":"SUM(J221*0.1)","v":0},{"$f":"SUM(J221*0.3)","v":0},{"$f":"SUM(J221-L221)","v":0},{"$f":"SUM(G221-J221)/G221","v":{"$error":"#DIV/0!"}},{"$f":"SUM(H221-N221)","v":{"$error":"#DIV/0!"}}]
[null,null,null,null,null,null,null,null,null,null,0,0,0,{"$error":"#DIV/0!"},{"$error":"#DIV/0!"}]
[null,null,null,null,null,null,null,null,null,null,0,0,0,{"$error":"#DIV/0!"},{"$error":"#DIV/0!"}]
[null,null,null,null,null,null,null,null,null,null,0,0,0,{"$error":"#DIV/0!"},{"$error":"#DIV/0!"}]
[null,null,null,null,null,null,null,null,null,null,0,0,0,{"$error":"#DIV/0!"},{"$error":"#DIV/0!"}]
[null,null,null,null,null,null,null,null,null,null,0,0,0,{"$error":"#DIV/0!"},{"$error":"#DIV/0!"}]
[null,null,null,null,null,null,null,null,null,null,0,0,0,{"$error":"#DIV/0!"},{"$error":"#DIV/0!"}]
[null,null,null,null,null,null,null,null,null,null,0,0,0,{"$error":"#DIV/0!"},{"$error":"#DIV/0!"}]
[null,null,null,null,null,null,null,null,null,null,0,0,0,{"$error":"#DIV/0!"},{"$error":"#DIV/0!"}]
[null,null,null,null,null,null,null,null,null,null,0,0,0,{"$error":"#DIV/0!"},{"$error":"#DIV/0!"}]
[null,null,null,null,null,null,null,null,null,null,0,0,0,{"$error":"#DIV/0!"},{"$error":"#DIV/0!"}]
[null,null,null,null,null,null,null,null,null,null,0,0,0,{"$error":"#DIV/0!"},{"$error":"#DIV/0!"}]
[null,null,null,null,null,null,null,null,null,null,0,0,0,{"$error":"#DIV/0!"},{"$error":"#DIV/0!"}]
[null,null,null,null,null,null,null,null,null,null,{"$f":"J234*0.1","v":0},{"$f":"J234*0.3","v":0},{"$f":"J234-L234","v":0},{"$f":"(G234-J234)/G234","v":{"$error":"#DIV/0!"}},{"$f":"H234-N234","v":{"$error":"#DIV/0!"}}]
[null,null,null,null,null,null,null,null,null,null,0,0,0,{"$error":"#DIV/0!"},{"$error":"#DIV/0!"}]
[null,null,null,null,null,null,null,null,null,null,0,0,0,{"$error":"#DIV/0!"},{"$error":"#DIV/0!"}]
[null,null,null,null,null,null,null,null,null,null,0,0,0,{"$error":"#DIV/0!"},{"$error":"#DIV/0!"}]
[null,null,null,null,null,null,null,null,null,null,0,0,0,{"$error":"#DIV/0!"},{"$error":"#DIV/0!"}]
[null,null,null,null,null,null,null,null,null,null,0,0,0,{"$error":"#DIV/0!"},{"$error":"#DIV/0!"}]
[null,null,null,null,null,null,null,null,null,null,0,0,0,{"$error":"#DIV/0!"},{"$error":"#DIV/0!"}]
[null,null,null,null,null,null,null,null,null,null,0,0,0,{"$error":"#DIV/0!"},{"$error":"#DIV/0!"}]
[null,null,null,null,null,null,null,null,null,null,0,0,0,{"$error":"#DIV/0!"},{"$error":"#DIV/0!"}]
[null,null,null,null,null,null,null,null,null,null,0,0,0,{"$error":"#DIV/0!"},{"$error":"#DIV/0!"}]
[null,null,null,null,null,null,null,null,null,null,0,0,0,{"$error":"#DIV/0!"},{"$error":"#DIV/0!"}]
[null,null,null,null,null,null,null,null,null,null,0,0,0,{"$error":"#DIV/0!"},{"$error":"#DIV/0!"}]
[null,null,null,null,null,null,null,null,null,null,0,0,0,{"$error":"#DIV/0!"},{"$error":"#DIV/0!"}]
[null,null,null,null,null,null,null,null,null,null,0,0,0,{"$error":"#DIV/0!"},{"$error":"#DIV/0!"}]
[null,null,null,null,null,null,null,null,null,null,0,0,0,{"$error":"#DIV/0!"},{"$error":"#DIV/0!"}]
[null,null,null,null,null,null,null,null,null,null,0,0,0,{"$error":"#DIV/0!"},{"$error":"#DIV/0!"}]
[null,null,null,null,null,null,null,null,null,null,0,0,0,{"$error":"#DIV/0!"},{"$error":"#DIV/0!"}]
[null,null,null,null,null,null,null,null,null,null,0,0,0,{"$error":"#DIV/0!"},{"$error":"#DIV/0!"}]
[null,null,null,null,null,null,null,null,null,null,0,0,0,{"$error":"#DIV/0!"},{"$error":"#DIV/0!"}]
[null,null,null,null,null,null,null,null,null,null,0,0,0,{"$error":"#DIV/0!"},{"$error":"#DIV/0!"}]
[null,null,null,null,null,null,null,null,null,null,0,0,0,{"$error":"#DIV/0!"},{"$error":"#DIV/0!"}]
[null,null,null,null,null,null,null,null,null,null,{"$f":"SUM(J255*0.1)","v":0},{"$f":"SUM(J255*0.3)","v":0},{"$f":"SUM(J255-L255)","v":0},{"$f":"SUM(G255-J255)/G255","v":{"$error":"#DIV/0!"}},{"$f":"SUM(H255-N255)","v":{"$error":"#DIV/0!"}}]
[null,null,null,null,null,null,null,null,null,null,0,0,0,{"$error":"#DIV/0!"},{"$error":"#DIV/0!"}]
[null,null,null,null,null,null,null,null,null,null,0,0,0,{"$error":"#DIV/0!"},{"$error":"#DIV/0!"}]
[null,null,null,null,null,null,null,null,null,null,0,0,0,{"$error":"#DIV/0!"},{"$error":"#DIV/0!"}]
[null,null,null,null,null,null,null,null,null,null,0,0,0,{"$error":"#DIV/0!"},{"$error":"#DIV/0!"}]
[null,null,null,null,null,null,null,null,null,null,0,0,0,{"$error":"#DIV/0!"},{"$error":"#DIV/0!"}]
[null,null,null,null,null,null,null,null,null,null,0,0,0,{"$error":"#DIV/0!"},{"$error":"#DIV/0!"}]
[null,null,null,null,null,null,null,null,null,null,0,0,0,{"$error":"#DIV/0!"},{"$error":"#DIV/0!"}]
[null,null,null,null,null,null,null,null,null,null,0,0,0,{"$error":"#DIV/0!"},{"$error":"#DIV/0!"}]
[null,null,null,null,null,null,null,null,null,null,{"$f":"J264*0.1","v":0},{"$f":"J264*0.3","v":0},{"$f":"J264-L264","v":0},{"$f":"(G264-J264)/G264","v":{"$error":"#DIV/0!"}},{"$f":"H264-N264","v":{"$error":"#DIV/0!"}}]
[null,null,null,null,null,null,null,null,null,null,{"$f":"J265*0.1","v":0},{"$f":"J265*0.3","v":0},{"$f":"J265-L265","v":0},{"$f":"(G265-J265)/G265","v":{"$error":"#DIV/0!"}},{"$f":"H265-N265","v":{"$error":"#DIV/0!"}}]
[null,null,null,null,null,null,null,null,null,null,{"$f":"J266*0.1","v":0},{"$f":"J266*0.3","v":0},{"$f":"J266-L266","v":0},{"$f":"(G266-J266)/G266","v":{"$error":"#DIV/0!"}},{"$f":"H266-N266","v":{"$error":"#DIV/0!"}}]
[null,null,null,null,null,null,null,null,null,null,{"$f":"J267*0.1","v":0},{"$f":"J267*0.3","v":0},{"$f":"J267-L267","v":0},{"$f":"(G267-J267)/G267","v":{"$error":"#DIV/0!"}},{"$f":"H267-N267","v":{"$error":"#DIV/0!"}}]
[null,null,null,null,null,null,null,null,null,null,{"$f":"SUM(J268*0.1)","v":0},{"$f":"SUM(J268*0.3)","v":0},{"$f":"SUM(J268-L268)","v":0},{"$f":"SUM(G268-J268)/G268","v":{"$error":"#DIV/0!"}},{"$f":"SUM(H268-N268)","v":{"$error":"#DIV/0!"}}]
[null,null,null,null,null,null,null,null,null,null,{"$f":"SUM(J269*0.1)","v":0},{"$f":"SUM(J269*0.3)","v":0},{"$f":"SUM(J269-L269)","v":0},{"$f":"SUM(G269-J269)/G269","v":{"$error":"#DIV/0!"}},{"$f":"SUM(H269-N269)","v":{"$error":"#DIV/0!"}}]
[null,null,null,null,null,null,null,null,null,null,{"$f":"SUM(J270*0.1)","v":0},{"$f":"SUM(J270*0.3)","v":0},{"$f":"SUM(J270-L270)","v":0},{"$f":"SUM(G270-J270)/G270","v":{"$error":"#DIV/0!"}},{"$f":"SUM(H270-N270)","v":{"$error":"#DIV/0!"}}]
[null,null,null,null,null,null,null,null,null,null,{"$f":"SUM(J271*0.1)","v":0},{"$f":"SUM(J271*0.3)","v":0},{"$f":"SUM(J271-L271)","v":0},{"$f":"SUM(G271-J271)/G271","v":{"$error":"#DIV/0!"}},{"$f":"SUM(H271-N271)","v":{"$error":"#DIV/0!"}}]
[null,null,null,null,null,null,null,null,null,null,{"$f":"SUM(J272*0.1)","v":0},{"$f":"SUM(J272*0.3)","v":0},{"$f":"SUM(J272-L272)","v":0},{"$f":"SUM(G272-J272)/G272","v":{"$error":"#DIV/0!"}},{"$f":"SUM(H272-N272)","v":{"$error":"#DIV/0!"}}]
[null,null,null,null,null,null,null,null,null,null,{"$f":"J273*0.1","v":0},{"$f":"J273*0.3","v":0},{"$f":"J273-L273","v":0},{"$f":"(G273-J273)/G273","v":{"$error":"#DIV/0!"}},{"$f":"H273-N273","v":{"$error":"#DIV/0!"}}]
[null,null,null,null,null,null,null,null,null,null,{"$f":"J274*0.1","v":0},{"$f":"J274*0.3","v":0},{"$f":"J274-L274","v":0},{"$f":"(G274-J274)/G274","v":{"$error":"#DIV/0!"}},{"$f":"H274-N274","v":{"$error":"#DIV/0!"}}]
[null,null,null,null,null,null,null,null,null,null,{"$f":"SUM(J275*0.1)","v":0},{"$f":"SUM(J275*0.3)","v":0},{"$f":"SUM(J275-L275)","v":0},{"$f":"SUM(G275-J275)/G275","v":{"$error":"#DIV/0!"}},{"$f":"SUM(H275-N275)","v":{"$error":"#DIV/0!"}}]
[null,null,null,null,null,null,null,null,null,null,0,0,0,{"$error":"#DIV/0!"},{"$error":"#DIV/0!"}]
[null,null,null,null,null,null,null,null,null,null,0,0,0,{"$error":"#DIV/0!"},{"$error":"#DIV/0!"}]
[null,null,null,null,null,null,null,null,null,null,0,0,0,{"$error":"#DIV/0!"},{"$error":"#DIV/0!"}]
[null,null,null,null,null,null,null,null,null,null,0,0,0,{"$error":"#DIV/0!"},{"$error":"#DIV/0!"}]
[null,null,null,null,null,null,null,null,null,null,0,0,0,{"$error":"#DIV/0!"},{"$error":"#DIV/0!"}]
[null,null,null,null,null,null,null,null,null,null,0,0,0,{"$error":"#DIV/0!"},{"$error":"#DIV/0!"}]
[null,null,null,null,null,null,null,null,null,null,0,0,0,{"$error":"#DIV/0!"},{"$error":"#DIV/0!"}]
[null,null,null,null,null,null,null,null,null,null,0,0,0,{"$error":"#DIV/0!"},{"$error":"#DIV/0!"}]
[null,null,null,null,null,null,null,null,null,null,0,0,0,{"$error":"#DIV/0!"},{"$error":"#DIV/0!"}]
[null,null,null,null,null,null,null,null,null,null,0,0,0,{"$error":"#DIV/0!"},{"$error":"#DIV/0!"}]
[null,null,null,null,null,null,null,null,null,null,{"$f":"J286*0.1","v":0},{"$f":"J286*0.3","v":0},{"$f":"J286-L286","v":0},{"$f":"(G286-J286)/G286","v":{"$error":"#DIV/0!"}},{"$f":"H286-N286","v":{"$error":"#DIV/0!"}}]
[null,null,null,null,null,null,null,null,null,null,0,0,0,{"$error":"#DIV/0!"},{"$error":"#DIV/0!"}]
[null,null,null,null,null,null,null,null,null,null,0,0,0,{"$error":"#DIV/0!"},{"$error":"#DIV/0!"}]
[null,null,null,null,null,null,null,null,null,null,0,0,0,{"$error":"#DIV/0!"},{"$error":"#DIV/0!"}]
[null,null,null,null,null,null,null,null,null,null,0,0,0,{"$error":"#DIV/0!"},{"$error":"#DIV/0!"}]
[null,null,null,null,null,null,null,null,null,null,0,0,0,{"$error":"#DIV/0!"},{"$error":"#DIV/0!"}]
[null,null,null,null,null,null,null,null,null,null,0,0,0,{"$error":"#DIV/0!"},{"$error":"#DIV/0!"}]
[null,null,null,null,null,null,null,null,null,null,0,0,0,{"$error":"#DIV/0!"},{"$error":"#DIV/0!"}]
[null,null,null,null,null,null,null,null,null,null,0,0,0,{"$error":"#DIV/0!"},{"$error":"#DIV/0!"}]
[null,null,null,null,null,null,null,null,null,null,0,0,0,{"$error":"#DIV/0!"},{"$error":"#DIV/0!"}]
[null,null,null,null,null,null,null,null,null,null,0,0,0,{"$error":"#DIV/0!"},{"$error":"#DIV/0!"}]
[null,null,null,null,null,null,null,null,null,null,0,0,0,{"$error":"#DIV/0!"},{"$error":"#DIV/0!"}]
[null,null,null,null,null,null,null,null,null,null,0,0,0,{"$error":"#DIV/0!"},{"$error":"#DIV/0!"}]
[null,null,null,null,null,null,null,null,null,null,0,0,0,{"$error":"#DIV/0!"},{"$error":"#DIV/0!"}]
[null,null,null,null,null,null,null,null,null,null,0,0,0,{"$error":"#DIV/0!"},{"$error":"#DIV/0!"}]
[null,null,null,null,null,null,null,null,null,null,0,0,0,{"$error":"#DIV/0!"},{"$error":"#DIV/0!"}]
[null,null,null,null,null,null,null,null,null,null,0,0,0,{"$error":"#DIV/0!"},{"$error":"#DIV/0!"}]
[null,null,null,null,null,null,null,null,null,null,0,0,0,{"$error":"#DIV/0!"},{"$error":"#DIV/0!"}]
[null,null,null,null,null,null,null,null,null,null,0,0,0,{"$error":"#DIV/0!"},{"$error":"#DIV/0!"}]
[null,null,null,null,null,null,null,null,null,null,0,0,0,{"$error":"#DIV/0!"},{"$error":"#DIV/0!"}]
[null,null,null,null,null,null,null,null,null,null,0,0,0,{"$error":"#DIV/0!"},{"$error":"#DIV/0!"}]
[null,null,null,null,null,null,null,null,null,null,0,0,0,{"$error":"#DIV/0!"},{"$error":"#DIV/0!"}]
[null,null,null,null,null,null,null,null,null,null,0,0,0,{"$error":"#DIV/0!"},{"$error":"#DIV/0!"}]
[null,null,null,null,null,null,null,null,null,null,0,0,0,{"$error":"#DIV/0!"},{"$error":"#DIV/0!"}]
[null,null,null,null,null,null,null,null,null,null,0,0,0,{"$error":"#DIV/0!"},{"$error":"#DIV/0!"}]
[null,null,null,null,null,null,null,null,null,null,0,0,0,{"$error":"#DIV/0!"},{"$error":"#DIV/0!"}]
[null,null,null,null,null,null,null,null,null,null,0,0,0,{"$error":"#DIV/0!"},{"$error":"#DIV/0!"}]
[null,null,null,null,null,null,null,null,null,null,0,0,0,{"$error":"#DIV/0!"},{"$error":"#DIV/0!"}]
[null,null,null,null,null,null,null,null,null,null,0,0,0,{"$error":"#DIV/0!"},{"$error":"#DIV/0!"}]
[null,null,null,null,null,null,null,null,null,null,0,0,0,{"$error":"#DIV/0!"},{"$error":"#DIV/0!"}]
[null,null,null,null,null,null,null,null,null,null,0,0,0,{"$error":"#DIV/0!"},{"$error":"#DIV/0!"}]
[null,null,null,null,null,null,null,null,null,null,0,0,0,{"$error":"#DIV/0!"},{"$error":"#DIV/0!"}]
[null,null,null,null,null,null,null,null,null,null,{"$f":"J318*0.1","v":0},{"$f":"J318*0.3","v":0},{"$f":"J318-L318","v":0},{"$f":"(G318-J318)/G318","v":{"$error":"#DIV/0!"}},{"$f":"H318-N318","v":{"$error":"#DIV/0!"}}]
[null,null,null,null,null,null,null,null,null,null,0,0,0,{"$error":"#DIV/0!"},{"$error":"#DIV/0!"}]
[null,null,null,null,null,null,null,null,null,null,0,0,0,{"$error":"#DIV/0!"},{"$error":"#DIV/0!"}]
[null,null,null,null,null,null,null,null,null,null,0,0,0,{"$error":"#DIV/0!"},{"$error":"#DIV/0!"}]
[null,null,null,null,null,null,null,null,null,null,0,0,0,{"$error":"#DIV/0!"},{"$error":"#DIV/0!"}]
[null,null,null,null,null,null,null,null,null,null,0,0,0,{"$error":"#DIV/0!"},{"$error":"#DIV/0!"}]
[null,null,null,null,null,null,null,null,null,null,0,0,0,{"$error":"#DIV/0!"},{"$error":"#DIV/0!"}]
[null,null,null,null,null,null,null,null,null,null,0,0,0,{"$error":"#DIV/0!"},{"$error":"#DIV/0!"}]
[null,null,null,null,null,null,null,null,null,null,0,0,0,{"$error":"#DIV/0!"},{"$error":"#DIV/0!"}]
[null,null,null,null,null,null,null,null,null,null,0,0,0,{"$error":"#DIV/0!"},{"$error":"#DIV/0!"}]
[null,null,null,null,null,null,null,null,null,null,0,0,0,{"$error":"#DIV/0!"},{"$error":"#DIV/0!"}]
[null,null,null,null,null,null,null,null,null,null,0,0,0,{"$error":"#DIV/0!"},{"$error":"#DIV/0!"}]
[null,null,null,null,null,null,null,null,null,null,0,0,0,{"$error":"#DIV/0!"},{"$error":"#DIV/0!"}]
[null,null,null,null,null,null,null,null,null,null,0,0,0,{"$error":"#DIV/0!"},{"$error":"#DIV/0!"}]
[null,null,null,null,null,null,null,null,null,null,0,0,0,{"$error":"#DIV/0!"},{"$error":"#DIV/0!"}]
[null,null,null,null,null,null,null,null,null,null,0,0,0,{"$error":"#DIV/0!"},{"$error":"#DIV/0!"}]
[null,null,null,null,null,null,null,null,null,null,0,0,0,{"$error":"#DIV/0!"},{"$error":"#DIV/0!"}]
[null,null,null,null,null,null,null,null,null,null,0,0,0,{"$error":"#DIV/0!"},{"$error":"#DIV/0!"}]
[null,null,null,null,null,null,null,null,null,null,0,0,0,{"$error":"#DIV/0!"},{"$error":"#DIV/0!"}]
[null,null,null,null,null,null,null,null,null,null,0,0,0,{"$error":"#DIV/0!"},{"$error":"#DIV/0!"}]
[null,null,null,null,null,null,null,null,null,null,0,0,0,{"$error":"#DIV/0!"},{"$error":"#DIV/0!"}]
[null,null,null,null,null,null,null,null,null,null,0,0,0,{"$error":"#DIV/0!"},{"$error":"#DIV/0!"}]
[null,null,null,null,null,null,null,null,null,null,0,0,0,{"$error":"#DIV/0!"},{"$error":"#DIV/0!"}]
[null,null,null,null,null,null,null,null,null,null,0,0,0,{"$error":"#DIV/0!"},{"$error":"#DIV/0!"}]
[null,null,null,null,null,null,null,null,null,null,0,0,0,{"$error":"#DIV/0!"},{"$error":"#DIV/0!"}]
[null,null,null,null,null,null,null,null,null,null,0,0,0,{"$error":"#DIV/0!"},{"$error":"#DIV/0!"}]
[null,null,null,null,null,null,null,null,null,null,0,0,0,{"$error":"#DIV/0!"},{"$error":"#DIV/0!"}]
[null,null,null,null,null,null,null,null,null,null,0,0,0,{"$error":"#DIV/0!"},{"$error":"#DIV/0!"}]
[null,null,null,null,null,null,null,null,null,null,0,0,0,{"$error":"#DIV/0!"},{"$error":"#DIV/0!"}]
[null,null,null,null,null,null,null,null,null,null,0,0,0,{"$error":"#DIV/0!"},{"$error":"#DIV/0!"}]
[null,null,null,null,null,null,null,null,null,null,0,0,0,{"$error":"#DIV/0!"},{"$error":"#DIV/0!"}]
[null,null,null,null,null,null,null,null,null,null,0,0,0,{"$error":"#DIV/0!"},{"$error":"#DIV/0!"}]
[null,null,null,null,null,null,null,null,null,null,{"$f":"J350*0.1","v":0},{"$f":"J350*0.3","v":0},{"$f":"J350-L350","v":0},{"$f":"(G350-J350)/G350","v":{"$error":"#DIV/0!"}},{"$f":"H350-N350","v":{"$error":"#DIV/0!"}}]
[null,null,null,null,null,null,null,null,null,null,0,0,0,{"$error":"#DIV/0!"},{"$error":"#DIV/0!"}]
[null,null,null,null,null,null,null,null,null,null,0,0,0,{"$error":"#DIV/0!"},{"$error":"#DIV/0!"}]
[null,null,null,null,null,null,null,null,null,null,0,0,0,{"$error":"#DIV/0!"},{"$error":"#DIV/0!"}]
[null,null,null,null,null,null,null,null,null,null,0,0,0,{"$error":"#DIV/0!"},{"$error":"#DIV/0!"}]
[null,null,null,null,null,null,null,null,null,null,0,0,0,{"$error":"#DIV/0!"},{"$error":"#DIV/0!"}]
[null,null,null,null,null,null,null,null,null,null,0,0,0,{"$error":"#DIV/0!"},{"$error":"#DIV/0!"}]
[null,null,null,null,null,null,null,null,null,null,0,0,0,{"$error":"#DIV/0!"},{"$error":"#DIV/0!"}]
[null,null,null,null,null,null,null,null,null,null,0,0,0,{"$error":"#DIV/0!"},{"$error":"#DIV/0!"}]
[null,null,null,null,null,null,null,null,null,null,0,0,0,{"$error":"#DIV/0!"},{"$error":"#DIV/0!"}]
[null,null,null,null,null,null,null,null,null,null,0,0,0,{"$error":"#DIV/0!"},{"$error":"#DIV/0!"}]
[null,null,null,null,null,null,null,null,null,null,0,0,0,{"$error":"#DIV/0!"},{"$error":"#DIV/0!"}]
[null,null,null,null,null,null,null,null,null,null,0,0,0,{"$error":"#DIV/0!"},{"$error":"#DIV/0!"}]
[null,null,null,null,null,null,null,null,null,null,0,0,0,{"$error":"#DIV/0!"},{"$error":"#DIV/0!"}]
[null,null,null,null,null,null,null,null,null,null,0,0,0,{"$error":"#DIV/0!"},{"$error":"#DIV/0!"}]
[null,null,null,null,null,null,null,null,null,null,0,0,0,{"$error":"#DIV/0!"},{"$error":"#DIV/0!"}]
[null,null,null,null,null,null,null,null,null,null,0,0,0,{"$error":"#DIV/0!"},{"$error":"#DIV/0!"}]
[null,null,null,null,null,null,null,null,null,null,0,0,0,{"$error":"#DIV/0!"},{"$error":"#DIV/0!"}]
[null,null,null,null,null,null,null,null,null,null,0,0,0,{"$error":"#DIV/0!"},{"$error":"#DIV/0!"}]
[null,null,null,null,null,null,null,null,null,null,0,0,0,{"$error":"#DIV/0!"},{"$error":"#DIV/0!"}]
[null,null,null,null,null,null,null,null,null,null,0,0,0,{"$error":"#DIV/0!"},{"$error":"#DIV/0!"}]
[null,null,null,null,null,null,null,null,null,null,0,0,0,{"$error":"#DIV/0!"},{"$error":"#DIV/0!"}]
[null,null,null,null,null,null,null,null,null,null,0,0,0,{"$error":"#DIV/0!"},{"$error":"#DIV/0!"}]
[null,null,null,null,null,null,null,null,null,null,0,0,0,{"$error":"#DIV/0!"},{"$error":"#DIV/0!"}]
[null,null,null,null,null,null,null,null,null,null,0,0,0,{"$error":"#DIV/0!"},{"$error":"#DIV/0!"}]
[null,null,null,null,null,null,null,null,null,null,0,0,0,{"$error":"#DIV/0!"},{"$error":"#DIV/0!"}]
[null,null,null,null,null,null,null,null,null,null,{"$f":"SUM(J376*0.1)","v":0},{"$f":"SUM(J376*0.3)","v":0},{"$f":"SUM(J376-L376)","v":0},{"$f":"SUM(G376-J376)/G376","v":{"$error":"#DIV/0!"}},{"$f":"SUM(H376-N376)","v":{"$error":"#DIV/0!"}}]
[null,null,null,null,null,null,null,null,null,null,0,0,0,{"$error":"#DIV/0!"},{"$error":"#DIV/0!"}]
[null,null,null,null,null,null,null,null,null,null,0,0,0,{"$error":"#DIV/0!"},{"$error":"#DIV/0!"}]
[null,null,null,null,null,null,null,null,null,null,0,0,0,{"$error":"#DIV/0!"},{"$error":"#DIV/0!"}]
[null,null,null,null,null,null,null,null,null,null,0,0,0,{"$error":"#DIV/0!"},{"$error":"#DIV/0!"}]
[null,null,null,null,null,null,null,null,null,null,0,0,0,{"$error":"#DIV/0!"},{"$error":"#DIV/0!"}]
[null,null,null,null,null,null,null,null,null,null,{"$f":"J382*0.1","v":0},{"$f":"J382*0.3","v":0},{"$f":"J382-L382","v":0},{"$f":"(G382-J382)/G382","v":{"$error":"#DIV/0!"}},{"$f":"H382-N382","v":{"$error":"#DIV/0!"}}]
[null,null,null,null,null,null,null,null,null,null,0,0,0,{"$error":"#DIV/0!"},{"$error":"#DIV/0!"}]
[null,null,null,null,null,null,null,null,null,null,0,0,0,{"$error":"#DIV/0!"},{"$error":"#DIV/0!"}]
[null,null,null,null,null,null,null,null,null,null,0,0,0,{"$error":"#DIV/0!"},{"$error":"#DIV/0!"}]
[null,null,null,null,null,null,null,null,null,null,0,0,0,{"$error":"#DIV/0!"},{"$error":"#DIV/0!"}]
[null,null,null,null,null,null,null,null,null,null,0,0,0,{"$error":"#DIV/0!"},{"$error":"#DIV/0!"}]
[null,null,null,null,null,null,null,null,null,null,0,0,0,{"$error":"#DIV/0!"},{"$error":"#DIV/0!"}]
[null,null,null,null,null,null,null,null,null,null,0,0,0,{"$error":"#DIV/0!"},{"$error":"#DIV/0!"}]
[null,null,null,null,null,null,null,null,null,null,0,0,0,{"$error":"#DIV/0!"},{"$error":"#DIV/0!"}]
[null,null,null,null,null,null,null,null,null,null,0,0,0,{"$error":"#DIV/0!"},{"$error":"#DIV/0!"}]
[null,null,null,null,null,null,null,null,null,null,0,0,0,{"$error":"#DIV/0!"},{"$error":"#DIV/0!"}]
[null,null,null,null,null,null,null,null,null,null,0,0,0,{"$error":"#DIV/0!"},{"$error":"#DIV/0!"}]
[null,null,null,null,null,null,null,null,null,null,0,0,0,{"$error":"#DIV/0!"},{"$error":"#DIV/0!"}]
[null,null,null,null,null,null,null,null,null,null,0,0,0,{"$error":"#DIV/0!"},{"$error":"#DIV/0!"}]
[null,null,null,null,null,null,null,null,null,null,0,0,0,{"$error":"#DIV/0!"},{"$error":"#DIV/0!"}]
[null,null,null,null,null,null,null,null,null,null,{"$f":"SUM(J397*0.1)","v":0},{"$f":"SUM(J397*0.3)","v":0},{"$f":"SUM(J397-L397)","v":0},{"$f":"SUM(G397-J397)/G397","v":{"$error":"#DIV/0!"}},{"$f":"SUM(H397-N397)","v":{"$error":"#DIV/0!"}}]
[null,null,null,null,null,null,null,null,null,null,0,0,0,{"$error":"#DIV/0!"},{"$error":"#DIV/0!"}]
[null,null,null,null,null,null,null,null,null,null,0,0,0,{"$error":"#DIV/0!"},{"$error":"#DIV/0!"}]
[null,null,null,null,null,null,null,null,null,null,0,0,0,{"$error":"#DIV/0!"},{"$error":"#DIV/0!"}]
[null,null,null,null,null,null,null,null,null,null,0,0,0,{"$error":"#DIV/0!"},{"$error":"#DIV/0!"}]
[null,null,null,null,null,null,null,null,null,null,0,0,0,{"$error":"#DIV/0!"},{"$error":"#DIV/0!"}]
[null,null,null,null,null,null,null,null,null,null,0,0,0,{"$error":"#DIV/0!"},{"$error":"#DIV/0!"}]
[null,null,null,null,null,null,null,null,null,null,{"$f":"J404*0.1","v":0},{"$f":"J404*0.3","v":0},{"$f":"J404-L404","v":0},{"$f":"(G404-J404)/G404","v":{"$error":"#DIV/0!"}},{"$f":"H404-N404","v":{"$error":"#DIV/0!"}}]
[null,null,null,null,null,null,null,null,null,null,{"$f":"SUM(J405*0.1)","v":0},{"$f":"SUM(J405*0.3)","v":0},{"$f":"SUM(J405-L405)","v":0},{"$f":"SUM(G405-J405)/G405","v":{"$error":"#DIV/0!"}},{"$f":"SUM(H405-N405)","v":{"$error":"#DIV/0!"}}]
[null,null,null,null,null,null,null,null,null,null,{"$f":"SUM(J406*0.1)","v":0},{"$f":"SUM(J406*0.3)","v":0},{"$f":"SUM(J406-L406)","v":0},{"$f":"SUM(G406-J406)/G406","v":{"$error":"#DIV/0!"}},{"$f":"SUM(H406-N406)","v":{"$error":"#DIV/0!"}}]
[null,null,null,null,null,null,null,null,null,null,{"$f":"SUM(J407*0.1)","v":0},{"$f":"SUM(J407*0.3)","v":0},{"$f":"SUM(J407-L407)","v":0},{"$f":"SUM(G407-J407)/G407","v":{"$error":"#DIV/0!"}},{"$f":"SUM(H407-N407)","v":{"$error":"#DIV/0!"}}]
[null,null,null,null,null,null,null,null,null,null,{"$f":"SUM(J408*0.1)","v":0},{"$f":"SUM(J408*0.3)","v":0},{"$f":"SUM(J408-L408)","v":0},{"$f":"SUM(G408-J408)/G408","v":{"$error":"#DIV/0!"}},{"$f":"SUM(H408-N408)","v":{"$error":"#DIV/0!"}}]
[null,null,null,null,null,null,null,null,null,null,{"$f":"SUM(J409*0.1)","v":0},{"$f":"SUM(J409*0.3)","v":0},{"$f":"SUM(J409-L409)","v":0},{"$f":"SUM(G409-J409)/G409","v":{"$error":"#DIV/0!"}},{"$f":"SUM(H409-N409)","v":{"$error":"#DIV/0!"}}]
[null,null,null,null,null,null,null,null,null,null,{"$f":"J410*0.1","v":0},{"$f":"J410*0.3","v":0},{"$f":"J410-L410","v":0},{"$f":"(G410-J410)/G410","v":{"$error":"#DIV/0!"}},{"$f":"H410-N410","v":{"$error":"#DIV/0!"}}]
[null,null,null,null,null,null,null,null,null,null,{"$f":"J411*0.1","v":0},{"$f":"J411*0.3","v":0},{"$f":"J411-L411","v":0},{"$f":"(G411-J411)/G411","v":{"$error":"#DIV/0!"}},{"$f":"H411-N411","v":{"$error":"#DIV/0!"}}]
[null,null,null,null,null,null,null,null,null,null,{"$f":"J412*0.1","v":0},{"$f":"J412*0.3","v":0},{"$f":"J412-L412","v":0},{"$f":"(G412-J412)/G412","v":{"$error":"#DIV/0!"}},{"$f":"H412-N412","v":{"$error":"#DIV/0!"}}]
[null,null,null,null,null,null,null,null,null,null,{"$f":"J413*0.1","v":0},{"$f":"J413*0.3","v":0},{"$f":"J413-L413","v":0},{"$f":"(G413-J413)/G413","v":{"$error":"#DIV/0!"}},{"$f":"H413-N413","v":{"$error":"#DIV/0!"}}]
[null,null,null,null,null,null,null,null,null,null,{"$f":"SUM(J414*0.1)","v":0},{"$f":"SUM(J414*0.3)","v":0},{"$f":"SUM(J414-L414)","v":0},{"$f":"SUM(G414-J414)/G414","v":{"$error":"#DIV/0!"}},{"$f":"SUM(H414-N414)","v":{"$error":"#DIV/0!"}}]
[null,null,null,null,null,null,null,null,null,null,0,0,0,{"$error":"#DIV/0!"},{"$error":"#DIV/0!"}]
[null,null,null,null,null,null,null,null,null,null,0,0,0,{"$error":"#DIV/0!"},{"$error":"#DIV/0!"}]
[null,null,null,null,null,null,null,null,null,null,0,0,0,{"$error":"#DIV/0!"},{"$error":"#DIV/0!"}]
[null,null,null,null,null,null,null,null,null,null,0,0,0,{"$error":"#DIV/0!"},{"$error":"#DIV/0!"}]
[null,null,null,null,null,null,null,null,null,null,0,0,0,{"$error":"#DIV/0!"},{"$error":"#DIV/0!"}]
[null,null,null,null,null,null,null,null,null,null,0,0,0,{"$error":"#DIV/0!"},{"$error":"#DIV/0!"}]
[null,null,null,null,null,null,null,null,null,null,0,0,0,{"$error":"#DIV/0!"},{"$error":"#DIV/0!"}]
[null,null,null,null,null,null,null,null,null,null,0,0,0,{"$error":"#DIV/0!"},{"$error":"#DIV/0!"}]
[null,null,null,null,null,null,null,null,null,null,0,0,0,{"$error":"#DIV/0!"},{"$error":"#DIV/0!"}]
[null,null,null,null,null,null,null,null,null,null,0,0,0,{"$error":"#DIV/0!"},{"$error":"#DIV/0!"}]
[null,null,null,null,null,null,null,null,null,null,0,0,0,{"$error":"#DIV/0!"},{"$error":"#DIV/0!"}]
[null,null,null,null,null,null,null,null,null,null,0,0,0,{"$error":"#DIV/0!"},{"$error":"#DIV/0!"}]
[null,null,null,null,null,null,null,null,null,null,0,0,0,{"$error":"#DIV/0!"},{"$error":"#DIV/0!"}]
[null,null,null,null,null,null,null,null,null,null,0,0,0,{"$error":"#DIV/0!"},{"$error":"#DIV/0!"}]
[null,null,null,null,null,null,null,null,null,null,0,0,0,{"$error":"#DIV/0!"},{"$error":"#DIV/0!"}]
[null,null,null,null,null,null,null,null,null,null,0,0,0,{"$error":"#DIV/0!"},{"$error":"#DIV/0!"}]
[null,null,null,null,null,null,null,null,null,null,0,0,0,{"$error":"#DIV/0!"},{"$error":"#DIV/0!"}]
[null,null,null,null,null,null,null,null,null,null,0,0,0,{"$error":"#DIV/0!"},{"$error":"#DIV/0!"}]
[null,null,null,null,null,null,null,null,null,null,0,0,0,{"$error":"#DIV/0!"},{"$error":"#DIV/0!"}]
[null,null,null,null,null,null,null,null,null,null,0,0,0,{"$error":"#DIV/0!"},{"$error":"#DIV/0!"}]
[null,null,null,null,null,null,null,null,null,null,0,0,0,{"$error":"#DIV/0!"},{"$error":"#DIV/0!"}]
[null,null,null,null,null,null,null,null,null,null,0,0,0,{"$error":"#DIV/0!"},{"$error":"#DIV/0!"}]
[null,null,null,null,null,null,null,null,null,null,{"$f":"J437*0.1","v":0},{"$f":"J437*0.3","v":0},{"$f":"J437-L437","v":0},{"$f":"(G437-J437)/G437","v":{"$error":"#DIV/0!"}},{"$f":"H437-N437","v":{"$error":"#DIV/0!"}}]
[null,null,null,null,null,null,null,null,null,null,0,0,0,{"$error":"#DIV/0!"},{"$error":"#DIV/0!"}]
[null,null,null,null,null,null,null,null,null,null,0,0,0,{"$error":"#DIV/0!"},{"$error":"#DIV/0!"}]
[null,null,null,null,null,null,null,null,null,null,0,0,0,{"$error":"#DIV/0!"},{"$error":"#DIV/0!"}]
[null,null,null,null,null,null,null,null,null,null,0,0,0,{"$error":"#DIV/0!"},{"$error":"#DIV/0!"}]
[null,null,null,null,null,null,null,null,null,null,0,0,0,{"$error":"#DIV/0!"},{"$error":"#DIV/0!"}]
[null,null,null,null,null,null,null,null,null,null,0,0,0,{"$error":"#DIV/0!"},{"$error":"#DIV/0!"}]
[null,null,null,null,null,null,null,null,null,null,0,0,0,{"$error":"#DIV/0!"},{"$error":"#DIV/0!"}]
[null,null,null,null,null,null,null,null,null,null,{"$f":"SUM(J445*0.1)","v":0},{"$f":"SUM(J445*0.3)","v":0},{"$f":"SUM(J445-L445)","v":0},{"$f":"SUM(G445-J445)/G445","v":{"$error":"#DIV/0!"}},{"$f":"SUM(H445-N445)","v":{"$error":"#DIV/0!"}}]
[null,null,null,null,null,null,null,null,null,null,0,0,0,{"$error":"#DIV/0!"},{"$error":"#DIV/0!"}]
[null,null,null,null,null,null,null,null,null,null,0,0,0,{"$error":"#DIV/0!"},{"$error":"#DIV/0!"}]
[null,null,null,null,null,null,null,null,null,null,0,0,0,{"$error":"#DIV/0!"},{"$error":"#DIV/0!"}]
[null,null,null,null,null,null,null,null,null,null,0,0,0,{"$error":"#DIV/0!"},{"$error":"#DIV/0!"}]
[null,null,null,null,null,null,null,null,null,null,0,0,0,{"$error":"#DIV/0!"},{"$error":"#DIV/0!"}]
[null,null,null,null,null,null,null,null,null,null,0,0,0,{"$error":"#DIV/0!"},{"$error":"#DIV/0!"}]
[null,null,null,null,null,null,null,null,null,null,0,0,0,{"$error":"#DIV/0!"},{"$error":"#DIV/0!"}]
[null,null,null,null,null,null,null,null,null,null,0,0,0,{"$error":"#DIV/0!"},{"$error":"#DIV/0!"}]
[null,null,null,null,null,null,null,null,null,null,0,0,0,{"$error":"#DIV/0!"},{"$error":"#DIV/0!"}]
[null,null,null,null,null,null,null,null,null,null,{"$f":"J455*0.1","v":0},{"$f":"J455*0.3","v":0},{"$f":"J455-L455","v":0},{"$f":"(G455-J455)/G455","v":{"$error":"#DIV/0!"}},{"$f":"H455-N455","v":{"$error":"#DIV/0!"}}]
[null,null,null,null,null,null,null,null,null,null,{"$f":"J456*0.1","v":0},{"$f":"J456*0.3","v":0},{"$f":"J456-L456","v":0},{"$f":"(G456-J456)/G456","v":{"$error":"#DIV/0!"}},{"$f":"H456-N456","v":{"$error":"#DIV/0!"}}]
[null,null,null,null,null,null,null,null,null,null,{"$f":"SUM(J457*0.1)","v":0},{"$f":"SUM(J457*0.3)","v":0},{"$f":"SUM(J457-L457)","v":0},{"$f":"SUM(G457-J457)/G457","v":{"$error":"#DIV/0!"}},{"$f":"SUM(H457-N457)","v":{"$error":"#DIV/0!"}}]
[null,null,null,null,null,null,null,null,null,null,0,0,0,{"$error":"#DIV/0!"},{"$error":"#DIV/0!"}]
[null,null,null,null,null,null,null,null,null,null,0,0,0,{"$error":"#DIV/0!"},{"$error":"#DIV/0!"}]
[null,null,null,null,null,null,null,null,null,null,0,0,0,{"$error":"#DIV/0!"},{"$error":"#DIV/0!"}]
[null,null,null,null,null,null,null,null,null,null,0,0,0,{"$error":"#DIV/0!"},{"$error":"#DIV/0!"}]
[null,null,null,null,null,null,null,null,null,null,0,0,0,{"$error":"#DIV/0!"},{"$error":"#DIV/0!"}]
[null,null,null,null,null,null,null,null,null,null,{"$f":"J463*0.1","v":0},{"$f":"J463*0.3","v":0},{"$f":"J463-L463","v":0},{"$f":"(G463-J463)/G463","v":{"$error":"#DIV/0!"}},{"$f":"H463-N463","v":{"$error":"#DIV/0!"}}]
[null,null,null,null,null,null,null,null,null,null,0,0,0,{"$error":"#DIV/0!"},{"$error":"#DIV/0!"}]
[null,null,null,null,null,null,null,null,null,null,0,0,0,{"$error":"#DIV/0!"},{"$error":"#DIV/0!"}]
[null,null,null,null,null,null,null,null,null,null,0,0,0,{"$error":"#DIV/0!"},{"$error":"#DIV/0!"}]
[null,null,null,null,null,null,null,null,null,null,0,0,0,{"$error":"#DIV/0!"},{"$error":"#DIV/0!"}]
[null,null,null,null,null,null,null,null,null,null,0,0,0,{"$error":"#DIV/0!"},{"$error":"#DIV/0!"}]
[null,null,null,null,null,null,null,null,null,null,0,0,0,{"$error":"#DIV/0!"},{"$error":"#DIV/0!"}]
[null,null,null,null,null,null,null,null,null,null,0,0,0,{"$error":"#DIV/0!"},{"$error":"#DIV/0!"}]
[null,null,null,null,null,null,null,null,null,null,0,0,0,{"$error":"#DIV/0!"},{"$error":"#DIV/0!"}]
[null,null,null,null,null,null,null,null,null,null,0,0,0,{"$error":"#DIV/0!"},{"$error":"#DIV/0!"}]
[null,null,null,null,null,null,null,null,null,null,0,0,0,{"$error":"#DIV/0!"},{"$error":"#DIV/0!"}]
[null,null,null,null,null,null,null,null,null,null,0,0,0,{"$error":"#DIV/0!"},{"$error":"#DIV/0!"}]
[null,null,null,null,null,null,null,null,null,null,0,0,0,{"$error":"#DIV/0!"},{"$error":"#DIV/0!"}]
[null,null,null,null,null,null,null,null,null,null,0,0,0,{"$error":"#DIV/0!"},{"$error":"#DIV/0!"}]
[null,null,null,null,null,null,null,null,null,null,0,0,0,{"$error":"#DIV/0!"},{"$error":"#DIV/0!"}]
[null,null,null,null,null,null,null,null,null,null,0,0,0,{"$error":"#DIV/0!"},{"$error":"#DIV/0!"}]
[null,null,null,null,null,null,null,null,null,null,0,0,0,{"$error":"#DIV/0!"},{"$error":"#DIV/0!"}]
[null,null,null,null,null,null,null,null,null,null,0,0,0,{"$error":"#DIV/0!"},{"$error":"#DIV/0!"}]
[null,null,null,null,null,null,null,null,null,null,0,0,0,{"$error":"#DIV/0!"},{"$error":"#DIV/0!"}]
[null,null,null,null,null,null,null,null,null,null,0,0,0,{"$error":"#DIV/0!"},{"$error":"#DIV/0!"}]
[null,null,null,null,null,null,null,null,null,null,0,0,0,{"$error":"#DIV/0!"},{"$error":"#DIV/0!"}]
[null,null,null,null,null,null,null,null,null,null,0,0,0,{"$error":"#DIV/0!"},{"$error":"#DIV/0!"}]
[null,null,null,null,null,null,null,null,null,null,0,0,0,{"$error":"#DIV/0!"},{"$error":"#DIV/0!"}]
[null,null,null,null,null,null,null,null,null,null,0,0,0,{"$error":"#DIV/0!"},{"$error":"#DIV/0!"}]
[null,null,null,null,null,null,null,null,null,null,0,0,0,{"$error":"#DIV/0!"},{"$error":"#DIV/0!"}]
[null,null,null,null,null,null,null,null,null,null,0,0,0,{"$error":"#DIV/0!"},{"$error":"#DIV/0!"}]
[null,null,null,null,null,null,null,null,null,null,0,0,0,{"$error":"#DIV/0!"},{"$error":"#DIV/0!"}]
[null,null,null,null,null,null,null,null,null,null,0,0,0,{"$error":"#DIV/0!"},{"$error":"#DIV/0!"}]
[null,null,null,null,null,null,null,null,null,null,0,0,0,{"$error":"#DIV/0!"},{"$error":"#DIV/0!"}]
[null,null,null,null,null,null,null,null,null,null,0,0,0,{"$error":"#DIV/0!"},{"$error":"#DIV/0!"}]
[null,null,null,null,null,null,null,null,null,null,0,0,0,{"$error":"#DIV/0!"},{"$error":"#DIV/0!"}]
[null,null,null,null,null,null,null,null,null,null,0,0,0,{"$error":"#DIV/0!"},{"$error":"#DIV/0!"}]
[null,null,null,null,null,null,null,null,null,null,{"$f":"J495*0.1","v":0},{"$f":"J495*0.3","v":0},{"$f":"J495-L495","v":0},{"$f":"(G495-J495)/G495","v":{"$error":"#DIV/0!"}},{"$f":"H495-N495","v":{"$error":"#DIV/0!"}}]
[null,null,null,null,null,null,null,null,null,null,0,0,0,{"$error":"#DIV/0!"},{"$error":"#DIV/0!"}]
[null,null,null,null,null,null,null,null,null,null,0,0,0,{"$error":"#DIV/0!"},{"$error":"#DIV/0!"}]
[null,null,null,null,null,null,null,null,null,null,0,0,0,{"$error":"#DIV/0!"},{"$error":"#DIV/0!"}]
[null,null,null,null,null,null,null,null,null,null,0,0,0,{"$error":"#DIV/0!"},{"$error":"#DIV/0!"}]
[null,null,null,null,null,null,null,null,null,null,0,0,0,{"$error":"#DIV/0!"},{"$error":"#DIV/0!"}]
[null,null,null,null,null,null,null,null,null,null,0,0,0,{"$error":"#DIV/0!"},{"$error":"#DIV/0!"}]
[null,null,null,null,null,null,null,null,null,null,0,0,0,{"$error":"#DIV/0!"},{"$error":"#DIV/0!"}]
[null,null,null,null,null,null,null,null,null,null,0,0,0,{"$error":"#DIV/0!"},{"$error":"#DIV/0!"}]
[null,null,null,null,null,null,null,null,null,null,0,0,0,{"$error":"#DIV/0!"},{"$error":"#DIV/0!"}]
[null,null,null,null,null,null,null,null,null,null,0,0,0,{"$error":"#DIV/0!"},{"$error":"#DIV/0!"}]
[null,null,null,null,null,null,null,null,null,null,0,0,0,{"$error":"#DIV/0!"},{"$error":"#DIV/0!"}]
[null,null,null,null,null,null,null,null,null,null,0,0,0,{"$error":"#DIV/0!"},{"$error":"#DIV/0!"}]
[null,null,null,null,null,null,null,null,null,null,0,0,0,{"$error":"#DIV/0!"},{"$error":"#DIV/0!"}]
[null,null,null,null,null,null,null,null,null,null,0,0,0,{"$error":"#DIV/0!"},{"$error":"#DIV/0!"}]
[null,null,null,null,null,null,null,null,null,null,0,0,0,{"$error":"#DIV/0!"},{"$error":"#DIV/0!"}]
[null,null,null,null,null,null,null,null,null,null,0,0,0,{"$error":"#DIV/0!"},{"$error":"#DIV/0!"}]
[null,null,null,null,null,null,null,null,null,null,0,0,0,{"$error":"#DIV/0!"},{"$error":"#DIV/0!"}]
[null,null,null,null,null,null,null,null,null,null,0,0,0,{"$error":"#DIV/0!"},{"$error":"#DIV/0!"}]
[null,null,null,null,null,null,null,null,null,null,0,0,0,{"$error":"#DIV/0!"},{"$error":"#DIV/0!"}]
[null,null,null,null,null,null,null,null,null,null,0,0,0,{"$error":"#DIV/0!"},{"$error":"#DIV/0!"}]
[null,null,null,null,null,null,null,null,null,null,0,0,0,{"$error":"#DIV/0!"},{"$error":"#DIV/0!"}]
[null,null,null,null,null,null,null,null,null,null,0,0,0,{"$error":"#DIV/0!"},{"$error":"#DIV/0!"}]
[null,null,null,null,null,null,null,null,null,null,0,0,0,{"$error":"#DIV/0!"},{"$error":"#DIV/0!"}]
[null,null,null,null,null,null,null,null,null,null,0,0,0,{"$error":"#DIV/0!"},{"$error":"#DIV/0!"}]
[null,null,null,null,null,null,null,null,null,null,0,0,0,{"$error":"#DIV/0!"},{"$error":"#DIV/0!"}]
[null,null,null,null,null,null,null,null,null,null,0,0,0,{"$error":"#DIV/0!"},{"$error":"#DIV/0!"}]
[null,null,null,null,null,null,null,null,null,null,0,0,0,{"$error":"#DIV/0!"},{"$error":"#DIV/0!"}]
[null,null,null,null,null,null,null,null,null,null,0,0,0,{"$error":"#DIV/0!"},{"$error":"#DIV/0!"}]
[null,null,null,null,null,null,null,null,null,null,0,0,0,{"$error":"#DIV/0!"},{"$error":"#DIV/0!"}]
[null,null,null,null,null,null,null,null,null,null,0,0,0,{"$error":"#DIV/0!"},{"$error":"#DIV/0!"}]
[null,null,null,null,null,null,null,null,null,null,0,0,0,{"$error":"#DIV/0!"},{"$error":"#DIV/0!"}]
[null,null,null,null,null,null,null,null,null,null,{"$f":"J527*0.1","v":0},{"$f":"J527*0.3","v":0},{"$f":"J527-L527","v":0},{"$f":"(G527-J527)/G527","v":{"$error":"#DIV/0!"}},{"$f":"H527-N527","v":{"$error":"#DIV/0!"}}]
[null,null,null,null,null,null,null,null,null,null,0,0,0,{"$error":"#DIV/0!"},{"$error":"#DIV/0!"}]
[null,null,null,null,null,null,null,null,null,null,0,0,0,{"$error":"#DIV/0!"},{"$error":"#DIV/0!"}]
[null,null,null,null,null,null,null,null,null,null,0,0,0,{"$error":"#DIV/0!"},{"$error":"#DIV/0!"}]
[null,null,null,null,null,null,null,null,null,null,0,0,0,{"$error":"#DIV/0!"},{"$error":"#DIV/0!"}]
[null,null,null,null,null,null,null,null,null,null,0,0,0,{"$error":"#DIV/0!"},{"$error":"#DIV/0!"}]
[null,null,null,null,null,null,null,null,null,null,0,0,0,{"$error":"#DIV/0!"},{"$error":"#DIV/0!"}]
[null,null,null,null,null,null,null,null,null,null,0,0,0,{"$error":"#DIV/0!"},{"$error":"#DIV/0!"}]
[null,null,null,null,null,null,null,null,null,null,0,0,0,{"$error":"#DIV/0!"},{"$error":"#DIV/0!"}]
[null,null,null,null,null,null,null,null,null,null,{"$f":"SUM(J536*0.1)","v":0},{"$f":"SUM(J536*0.3)","v":0},{"$f":"SUM(J536-L536)","v":0},{"$f":"SUM(G536-J536)/G536","v":{"$error":"#DIV/0!"}},{"$f":"SUM(H536-N536)","v":{"$error":"#DIV/0!"}}]
[null,null,null,null,null,null,null,null,null,null,{"$f":"J537*0.1","v":0},{"$f":"J537*0.3","v":0},{"$f":"J537-L537","v":0},{"$f":"(G537-J537)/G537","v":{"$error":"#DIV/0!"}},{"$f":"H537-N537","v":{"$error":"#DIV/0!"}}]
[null,null,null,null,null,null,null,null,null,null,0,0,0,{"$error":"#DIV/0!"},{"$error":"#DIV/0!"}]
[null,null,null,null,null,null,null,null,null,null,0,0,0,{"$error":"#DIV/0!"},{"$error":"#DIV/0!"}]
[null,null,null,null,null,null,null,null,null,null,0,0,0,{"$error":"#DIV/0!"},{"$error":"#DIV/0!"}]
[null,null,null,null,null,null,null,null,null,null,0,0,0,{"$error":"#DIV/0!"},{"$error":"#DIV/0!"}]
[null,null,null,null,null,null,null,null,null,null,0,0,0,{"$error":"#DIV/0!"},{"$error":"#DIV/0!"}]
[null,null,null,null,null,null,null,null,null,null,0,0,0,{"$error":"#DIV/0!"},{"$error":"#DIV/0!"}]
[null,null,null,null,null,null,null,null,null,null,0,0,0,{"$error":"#DIV/0!"},{"$error":"#DIV/0!"}]
[null,null,null,null,null,null,null,null,null,null,0,0,0,{"$error":"#DIV/0!"},{"$error":"#DIV/0!"}]
[null,null,null,null,null,null,null,null,null,null,0,0,0,{"$error":"#DIV/0!"},{"$error":"#DIV/0!"}]
[null,null,null,null,null,null,null,null,null,null,0,0,0,{"$error":"#DIV/0!"},{"$error":"#DIV/0!"}]
[null,null,null,null,null,null,null,null,null,null,0,0,0,{"$error":"#DIV/0!"},{"$error":"#DIV/0!"}]
[null,null,null,null,null,null,null,null,null,null,0,0,0,{"$error":"#DIV/0!"},{"$error":"#DIV/0!"}]
[null,null,null,null,null,null,null,null,null,null,0,0,0,{"$error":"#DIV/0!"},{"$error":"#DIV/0!"}]
[null,null,null,null,null,null,null,null,null,null,0,0,0,{"$error":"#DIV/0!"},{"$error":"#DIV/0!"}]
[null,null,null,null,null,null,null,null,null,null,0,0,0,{"$error":"#DIV/0!"},{"$error":"#DIV/0!"}]
[null,null,null,null,null,null,null,null,null,null,0,0,0,{"$error":"#DIV/0!"},{"$error":"#DIV/0!"}]
[null,null,null,null,null,null,null,null,null,null,0,0,0,{"$error":"#DIV/0!"},{"$error":"#DIV/0!"}]
[null,null,null,null,null,null,null,null,null,null,0,0,0,{"$error":"#DIV/0!"},{"$error":"#DIV/0!"}]
[null,null,null,null,null,null,null,null,null,null,0,0,0,{"$error":"#DIV/0!"},{"$error":"#DIV/0!"}]
[null,null,null,null,null,null,null,null,null,null,0,0,0,{"$error":"#DIV/0!"},{"$error":"#DIV/0!"}]
[null,null,null,null,null,null,null,null,null,null,0,0,0,{"$error":"#DIV/0!"},{"$error":"#DIV/0!"}]
[null,null,null,null,null,null,null,null,null,null,0,0,0,{"$error":"#DIV/0!"},{"$error":"#DIV/0!"}]
[null,null,null,null,null,null,null,null,null,null,0,0,0,{"$error":"#DIV/0!"},{"$error":"#DIV/0!"}]
[null,null,null,null,null,null,null,null,null,null,0,0,0,{"$error":"#DIV/0!"},{"$error":"#DIV/0!"}]
[null,null,null,null,null,null,null,null,null,null,0,0,0,{"$error":"#DIV/0!"},{"$error":"#DIV/0!"}]
[null,null,null,null,null,null,null,null,null,null,0,0,0,{"$error":"#DIV/0!"},{"$error":"#DIV/0!"}]
[null,null,null,null,null,null,null,null,null,null,0,0,0,{"$error":"#DIV/0!"},{"$error":"#DIV/0!"}]
[null,null,null,null,null,null,null,null,null,null,0,0,0,{"$error":"#DIV/0!"},{"$error":"#DIV/0!"}]
[null,null,null,null,null,null,null,null,null,null,0,0,0,{"$error":"#DIV/0!"},{"$error":"#DIV/0!"}]
[null,null,null,null,null,null,null,null,null,null,0,0,0,{"$error":"#DIV/0!"},{"$error":"#DIV/0!"}]
[null,null,null,null,null,null,null,null,null,null,0,0,0,{"$error":"#DIV/0!"},{"$error":"#DIV/0!"}]
[null,null,null,null,null,null,null,null,null,null,{"$f":"J569*0.1","v":0},{"$f":"J569*0.3","v":0},{"$f":"J569-L569","v":0},{"$f":"(G569-J569)/G569","v":{"$error":"#DIV/0!"}},{"$f":"H569-N569","v":{"$error":"#DIV/0!"}}]
[null,null,null,null,null,null,null,null,null,null,0,0,0,{"$error":"#DIV/0!"},{"$error":"#DIV/0!"}]
[null,null,null,null,null,null,null,null,null,null,0,0,0,{"$error":"#DIV/0!"},{"$error":"#DIV/0!"}]
[null,null,null,null,null,null,null,null,null,null,0,0,0,{"$error":"#DIV/0!"},{"$error":"#DIV/0!"}]
[null,null,null,null,null,null,null,null,null,null,0,0,0,{"$error":"#DIV/0!"},{"$error":"#DIV/0!"}]
[null,null,null,null,null,null,null,null,null,null,0,0,0,{"$error":"#DIV/0!"},{"$error":"#DIV/0!"}]
[null,null,null,null,null,null,null,null,null,null,0,0,0,{"$error":"#DIV/0!"},{"$error":"#DIV/0!"}]
[null,null,null,null,null,null,null,null,null,null,0,0,0,{"$error":"#DIV/0!"},{"$error":"#DIV/0!"}]
[null,null,null,null,null,null,null,null,null,null,0,0,0,{"$error":"#DIV/0!"},{"$error":"#DIV/0!"}]
[null,null,null,null,null,null,null,null,null,null,0,0,0,{"$error":"#DIV/0!"},{"$error":"#DIV/0!"}]
[null,null,null,null,null,null,null,null,null,null,0,0,0,{"$error":"#DIV/0!"},{"$error":"#DIV/0!"}]
[null,null,null,null,null,null,null,null,null,null,0,0,0,{"$error":"#DIV/0!"},{"$error":"#DIV/0!"}]
[null,null,null,null,null,null,null,null,null,null,0,0,0,{"$error":"#DIV/0!"},{"$error":"#DIV/0!"}]
[null,null,null,null,null,null,null,null,null,null,0,0,0,{"$error":"#DIV/0!"},{"$error":"#DIV/0!"}]
[null,null,null,null,null,null,null,null,null,null,0,0,0,{"$error":"#DIV/0!"},{"$error":"#DIV/0!"}]
[null,null,null,null,null,null,null,null,null,null,0,0,0,{"$error":"#DIV/0!"},{"$error":"#DIV/0!"}]
[null,null,null,null,null,null,null,null,null,null,0,0,0,{"$error":"#DIV/0!"},{"$error":"#DIV/0!"}]
[null,null,null,null,null,null,null,null,null,null,0,0,0,{"$error":"#DIV/0!"},{"$error":"#DIV/0!"}]
[null,null,null,null,null,null,null,null,null,null,0,0,0,{"$error":"#DIV/0!"},{"$error":"#DIV/0!"}]
[null,null,null,null,null,null,null,null,null,null,0,0,0,{"$error":"#DIV/0!"},{"$error":"#DIV/0!"}]
[null,null,null,null,null,null,null,null,null,null,0,0,0,{"$error":"#DIV/0!"},{"$error":"#DIV/0!"}]
[null,null,null,null,null,null,null,null,null,null,0,0,0,{"$error":"#DIV/0!"},{"$error":"#DIV/0!"}]
[null,null,null,null,null,null,null,null,null,null,0,0,0,{"$error":"#DIV/0!"},{"$error":"#DIV/0!"}]
[null,null,null,null,null,null,null,null,null,null,0,0,0,{"$error":"#DIV/0!"},{"$error":"#DIV/0!"}]
[null,null,null,null,null,null,null,null,null,null,0,0,0,{"$error":"#DIV/0!"},{"$error":"#DIV/0!"}]
[null,null,null,null,null,null,null,null,null,null,0,0,0,{"$error":"#DIV/0!"},{"$error":"#DIV/0!"}]
[null,null,null,null,null,null,null,null,null,null,0,0,0,{"$error":"#DIV/0!"},{"$error":"#DIV/0!"}]
[null,null,null,null,null,null,null,null,null,null,0,0,0,{"$error":"#DIV/0!"},{"$error":"#DIV/0!"}]
[null,null,null,null,null,null,null,null,null,null,131.5,0,0,{"$error":"#DIV/0!"},{"$error":"#DIV/0!"}]
[null,null,null,null,null,null,null,null,null,null,{"$f":"J598*0.1","v":0},0,0,{"$error":"#DIV/0!"},{"$error":"#DIV/0!"}]
[null,null,null,null,null,null,null,null,null,null,0,0,0,{"$error":"#DIV/0!"},{"$error":"#DIV/0!"}]
[null,null,null,null,null,null,null,null,null,null,0,0,0,{"$error":"#DIV/0!"},{"$error":"#DIV/0!"}]
[null,null,null,null,null,null,null,null,null,null,0,{"$f":"J601*0.3","v":0},{"$f":"J601-L601","v":0},{"$f":"(G601-J601)/G601","v":{"$error":"#DIV/0!"}},{"$f":"H601-N601","v":{"$error":"#DIV/0!"}}]
[null,null,null,null,null,null,null,null,null,null,0,0,0,{"$error":"#DIV/0!"},{"$error":"#DIV/0!"}]
[null,null,null,null,null,null,null,null,null,null,0,0,0,{"$error":"#DIV/0!"},{"$error":"#DIV/0!"}]
[null,null,null,null,null,null,null,null,null,null,0,0,0,{"$error":"#DIV/0!"},{"$error":"#DIV/0!"}]
[null,null,null,null,null,null,null,null,null,null,0,0,0,{"$error":"#DIV/0!"},{"$error":"#DIV/0!"}]
[null,null,null,null,null,null,null,null,null,null,0,0,0,{"$error":"#DIV/0!"},{"$error":"#DIV/0!"}]
[null,null,null,null,null,null,null,null,null,null,0,0,0,{"$error":"#DIV/0!"},{"$error":"#DIV/0!"}]
[null,null,null,null,null,null,null,null,null,null,0,0,0,{"$error":"#DIV/0!"},{"$error":"#DIV/0!"}]
[null,null,null,null,null,null,null,null,null,null,0,0,0,{"$error":"#DIV/0!"},{"$error":"#DIV/0!"}]
[null,null,null,null,null,null,null,null,null,null,0,0,0,{"$error":"#DIV/0!"},{"$error":"#DIV/0!"}]
[null,null,null,null,null,null,null,null,null,null,0,0,0,{"$error":"#DIV/0!"},{"$error":"#DIV/0!"}]
[null,null,null,null,null,null,null,null,null,null,0,0,0,{"$error":"#DIV/0!"},{"$error":"#DIV/0!"}]
[null,null,null,null,null,null,null,null,null,null,0,0,0,{"$error":"#DIV/0!"},{"$error":"#DIV/0!"}]
[null,null,null,null,null,null,null,null,null,null,0,0,0,{"$error":"#DIV/0!"},{"$error":"#DIV/0!"}]
[null,null,null,null,null,null,null,null,null,null,{"$f":"SUM(J615*0.1)","v":0},{"$f":"SUM(J615*0.3)","v":0},{"$f":"SUM(J615-L615)","v":0},{"$f":"SUM(G615-J615)/G615","v":{"$error":"#DIV/0!"}},{"$f":"SUM(H615-N615)","v":{"$error":"#DIV/0!"}}]
[null,null,null,null,null,null,null,null,null,null,0,0,0,{"$error":"#DIV/0!"},{"$error":"#DIV/0!"}]
[null,null,null,null,null,null,null,null,null,null,0,0,0,{"$error":"#DIV/0!"},{"$error":"#DIV/0!"}]
[null,null,null,null,null,null,null,null,null,null,0,0,0,{"$error":"#DIV/0!"},{"$error":"#DIV/0!"}]
[null,null,null,null,null,null,null,null,null,null,0,0,0,{"$error":"#DIV/0!"},{"$error":"#DIV/0!"}]
[null,null,null,null,null,null,null,null,null,null,0,0,0,{"$error":"#DIV/0!"},{"$error":"#DIV/0!"}]
[null,null,null,null,null,null,null,null,null,null,0,0,0,{"$error":"#DIV/0!"},{"$error":"#DIV/0!"}]
[null,null,null,null,null,null,null,null,null,null,0,0,0,{"$error":"#DIV/0!"},{"$error":"#DIV/0!"}]
[null,null,null,null,null,null,null,null,null,null,0,0,0,{"$error":"#DIV/0!"},{"$error":"#DIV/0!"}]
[null,null,null,null,null,null,null,null,null,null,0,0,0,{"$error":"#DIV/0!"},{"$error":"#DIV/0!"}]
[null,null,null,null,null,null,null,null,null,null,0,0,0,{"$error":"#DIV/0!"},{"$error":"#DIV/0!"}]
[null,null,null,null,null,null,null,null,null,null,0,0,0,{"$error":"#DIV/0!"},{"$error":"#DIV/0!"}]
[null,null,null,null,null,null,null,null,null,null,{"$f":"J627*0.1","v":0},{"$f":"J627*0.3","v":0},{"$f":"J627-L627","v":0},{"$f":"(G627-J627)/G627","v":{"$error":"#DIV/0!"}},{"$f":"H627-N627","v":{"$error":"#DIV/0!"}}]
[null,null,null,null,null,null,null,null,null,null,0,0,0,{"$error":"#DIV/0!"},{"$error":"#DIV/0!"}]
[null,null,null,null,null,null,null,null,null,null,0,0,0,{"$error":"#DIV/0!"},{"$error":"#DIV/0!"}]
[null,null,null,null,null,null,null,null,null,null,0,0,0,{"$error":"#DIV/0!"},{"$error":"#DIV/0!"}]
[null,null,null,null,null,null,null,null,null,null,0,0,0,{"$error":"#DIV/0!"},{"$error":"#DIV/0!"}]
[null,null,null,null,null,null,null,null,null,null,0,0,0,{"$error":"#DIV/0!"},{"$error":"#DIV/0!"}]
[null,null,null,null,null,null,null,null,null,null,0,0,0,{"$error":"#DIV/0!"},{"$error":"#DIV/0!"}]
[null,null,null,null,null,null,null,null,null,null,0,0,0,{"$error":"#DIV/0!"},{"$error":"#DIV/0!"}]
[null,null,null,null,null,null,null,null,null,null,0,0,0,{"$error":"#DIV/0!"},{"$error":"#DIV/0!"}]
[null,null,null,null,null,null,null,null,null,null,0,0,0,{"$error":"#DIV/0!"},{"$error":"#DIV/0!"}]
[null,null,null,null,null,null,null,null,null,null,0,0,0,{"$error":"#DIV/0!"},{"$error":"#DIV/0!"}]
[null,null,null,null,null,null,null,null,null,null,0,0,0,{"$error":"#DIV/0!"},{"$error":"#DIV/0!"}]
[null,null,null,null,null,null,null,null,null,null,0,0,0,{"$error":"#DIV/0!"},{"$error":"#DIV/0!"}]
[null,null,null,null,null,null,null,null,null,null,0,0,0,{"$error":"#DIV/0!"},{"$error":"#DIV/0!"}]
[null,null,null,null,null,null,null,null,null,null,0,0,0,{"$error":"#DIV/0!"},{"$error":"#DIV/0!"}]
[null,null,null,null,null,null,null,null,null,null,0,0,0,{"$error":"#DIV/0!"},{"$error":"#DIV/0!"}]
[null,null,null,null,null,null,null,null,null,null,0,0,0,{"$error":"#DIV/0!"},{"$error":"#DIV/0!"}]
[null,null,null,null,null,null,null,null,null,null,0,0,0,{"$error":"#DIV/0!"},{"$error":"#DIV/0!"}]
[null,null,null,null,null,null,null,null,null,null,0,0,0,{"$error":"#DIV/0!"},{"$error":"#DIV/0!"}]
[null,null,null,null,null,null,null,null,null,null,0,0,0,{"$error":"#DIV/0!"},{"$error":"#DIV/0!"}]
[null,null,null,null,null,null,null,null,null,null,0,0,0,{"$error":"#DIV/0!"},{"$error":"#DIV/0!"}]
[null,null,null,null,null,null,null,null,null,null,0,0,0,{"$error":"#DIV/0!"},{"$error":"#DIV/0!"}]
[null,null,null,null,null,null,null,null,null,null,0,0,0,{"$error":"#DIV/0!"},{"$error":"#DIV/0!"}]
[null,null,null,null,null,null,null,null,null,null,0,0,0,{"$error":"#DIV/0!"},{"$error":"#DIV/0!"}]
[null,null,null,null,null,null,null,null,null,null,0,0,0,{"$error":"#DIV/0!"},{"$error":"#DIV/0!"}]
[null,null,null,null,null,null,null,null,null,null,0,0,0,{"$error":"#DIV/0!"},{"$error":"#DIV/0!"}]
[null,null,null,null,null,null,null,null,null,null,0,0,0,{"$error":"#DIV/0!"},{"$error":"#DIV/0!"}]
[null,null,null,null,null,null,null,null,null,null,0,0,0,{"$error":"#DIV/0!"},{"$error":"#DIV/0!"}]
[null,null,null,null,null,null,null,null,null,null,0,0,0,{"$error":"#DIV/0!"},{"$error":"#DIV/0!"}]
[null,null,null,null,null,null,null,null,null,null,0,0,0,{"$error":"#DIV/0!"},{"$error":"#DIV/0!"}]
[null,null,null,null,null,null,null,null,null,null,0,0,0,{"$error":"#DIV/0!"},{"$error":"#DIV/0!"}]
[null,null,null,null,null,null,null,null,null,null,0,0,0,{"$error":"#DIV/0!"},{"$error":"#DIV/0!"}]
[null,null,null,null,null,null,null,null,null,null,{"$f":"J659*0.1","v":0},{"$f":"J659*0.3","v":0},{"$f":"J659-L659","v":0},{"$f":"(G659-J659)/G659","v":{"$error":"#DIV/0!"}},{"$f":"H659-N659","v":{"$error":"#DIV/0!"}}]
[null,null,null,null,null,null,null,null,null,null,0,0,0,{"$error":"#DIV/0!"},{"$error":"#DIV/0!"}]
[null,null,null,null,null,null,null,null,null,null,0,0,0,{"$error":"#DIV/0!"},{"$error":"#DIV/0!"}]
[null,null,null,null,null,null,null,null,null,null,0,0,0,{"$error":"#DIV/0!"},{"$error":"#DIV/0!"}]
[null,null,null,null,null,null,null,null,null,null,0,0,0,{"$error":"#DIV/0!"},{"$error":"#DIV/0!"}]
[null,null,null,null,null,null,null,null,null,null,0,0,0,{"$error":"#DIV/0!"},{"$error":"#DIV/0!"}]
[null,null,null,null,null,null,null,null,null,null,0,0,0,{"$error":"#DIV/0!"},{"$error":"#DIV/0!"}]
[null,null,null,null,null,null,null,null,null,null,0,0,0,{"$error":"#DIV/0!"},{"$error":"#DIV/0!"}]
[null,null,null,null,null,null,null,null,null,null,0,0,0,{"$error":"#DIV/0!"},{"$error":"#DIV/0!"}]
[null,null,null,null,null,null,null,null,null,null,0,0,0,{"$error":"#DIV/0!"},{"$error":"#DIV/0!"}]
[null,null,null,null,null,null,null,null,null,null,0,0,0,{"$error":"#DIV/0!"},{"$error":"#DIV/0!"}]
[null,null,null,null,null,null,null,null,null,null,0,0,0,{"$error":"#DIV/0!"},{"$error":"#DIV/0!"}]
[null,null,null,null,null,null,null,null,null,null,0,0,0,{"$error":"#DIV/0!"},{"$error":"#DIV/0!"}]
[null,null,null,null,null,null,null,null,null,null,0,0,0,{"$error":"#DIV/0!"},{"$error":"#DIV/0!"}]
[null,null,null,null,null,null,null,null,null,null,0,0,0,{"$error":"#DIV/0!"},{"$error":"#DIV/0!"}]
[null,null,null,null,null,null,null,null,null,null,0,0,0,{"$error":"#DIV/0!"},{"$error":"#DIV/0!"}]
[null,null,null,null,null,null,null,null,null,null,0,0,0,{"$error":"#DIV/0!"},{"$error":"#DIV/0!"}]
[null,null,null,null,null,null,null,null,null,null,0,0,0,{"$error":"#DIV/0!"},{"$error":"#DIV/0!"}]
[null,null,null,null,null,null,null,null,null,null,0,0,0,{"$error":"#DIV/0!"},{"$error":"#DIV/0!"}]
[null,null,null,null,null,null,null,null,null,null,0,0,0,{"$error":"#DIV/0!"},{"$error":"#DIV/0!"}]
[null,null,null,null,null,null,null,null,null,null,0,0,0,{"$error":"#DIV/0!"},{"$error":"#DIV/0!"}]
[null,null,null,null,null,null,null,null,null,null,0,0,0,{"$error":"#DIV/0!"},{"$error":"#DIV/0!"}]
[null,null,null,null,null,null,null,null,null,null,0,0,0,{"$error":"#DIV/0!"},{"$error":"#DIV/0!"}]
[null,null,null,null,null,null,null,null,null,null,{"$f":"SUM(J682*0.1)","v":0},{"$f":"SUM(J682*0.3)","v":0},{"$f":"SUM(J682-L682)","v":0},{"$f":"SUM(G682-J682)/G682","v":{"$error":"#DIV/0!"}},{"$f":"SUM(H682-N682)","v":{"$error":"#DIV/0!"}}]
[null,null,null,null,null,null,null,null,null,null,0,0,0,{"$error":"#DIV/0!"},{"$error":"#DIV/0!"}]
[null,null,null,null,null,null,null,null,null,null,0,0,0,{"$error":"#DIV/0!"},{"$error":"#DIV/0!"}]
[null,null,null,null,null,null,null,null,null,null,0,0,0,{"$error":"#DIV/0!"},{"$error":"#DIV/0!"}]
[null,null,null,null,null,null,null,null,null,null,0,0,0,{"$error":"#DIV/0!"},{"$error":"#DIV/0!"}]
[null,null,null,null,null,null,null,null,null,null,0,0,0,{"$error":"#DIV/0!"},{"$error":"#DIV/0!"}]
[null,null,null,null,null,null,null,null,null,null,0,0,0,{"$error":"#DIV/0!"},{"$error":"#DIV/0!"}]
[null,null,null,null,null,null,null,null,null,null,0,0,0,{"$error":"#DIV/0!"},{"$error":"#DIV/0!"}]
[null,null,null,null,null,null,null,null,null,null,0,0,0,{"$error":"#DIV/0!"},{"$error":"#DIV/0!"}]
[null,null,null,null,null,null,null,null,null,null,0,0,0,{"$error":"#DIV/0!"},{"$error":"#DIV/0!"}]
[null,null,null,null,null,null,null,null,null,null,0,0,0,{"$error":"#DIV/0!"},{"$error":"#DIV/0!"}]
[null,null,null,null,null,null,null,null,null,null,0,0,0,{"$error":"#DIV/0!"},{"$error":"#DIV/0!"}]
[null,null,null,null,null,null,null,null,null,null,{"$f":"J694*0.1","v":0},{"$f":"J694*0.3","v":0},{"$f":"J694-L694","v":0},{"$f":"(G694-J694)/G694","v":{"$error":"#DIV/0!"}},{"$f":"H694-N694","v":{"$error":"#DIV/0!"}}]
[null,null,null,null,null,null,null,null,null,null,0,0,0,{"$error":"#DIV/0!"},{"$error":"#DIV/0!"}]
[null,null,null,null,null,null,null,null,null,null,0,0,0,{"$error":"#DIV/0!"},{"$error":"#DIV/0!"}]
[null,null,null,null,null,null,null,null,null,null,0,0,0,{"$error":"#DIV/0!"},{"$error":"#DIV/0!"}]
[null,null,null,null,null,null,null,null,null,null,0,0,0,{"$error":"#DIV/0!"},{"$error":"#DIV/0!"}]
[null,null,null,null,null,null,null,null,null,null,0,0,0,{"$error":"#DIV/0!"},{"$error":"#DIV/0!"}]
[null,null,null,null,null,null,null,null,null,null,0,0,0,{"$error":"#DIV/0!"},{"$error":"#DIV/0!"}]
[null,null,null,null,null,null,null,null,null,null,0,0,0,{"$error":"#DIV/0!"},{"$error":"#DIV/0!"}]
[null,null,null,null,null,null,null,null,null,null,0,0,0,{"$error":"#DIV/0!"},{"$error":"#DIV/0!"}]
[null,null,null,null,null,null,null,null,null,null,0,0,0,{"$error":"#DIV/0!"},{"$error":"#DIV/0!"}]
[null,null,null,null,null,null,null,null,null,null,0,0,0,{"$error":"#DIV/0!"},{"$error":"#DIV/0!"}]
[null,null,null,null,null,null,null,null,null,null,0,0,0,{"$error":"#DIV/0!"},{"$error":"#DIV/0!"}]
[null,null,null,null,null,null,null,null,null,null,0,0,0,{"$error":"#DIV/0!"},{"$error":"#DIV/0!"}]
[null,null,null,null,null,null,null,null,null,null,0,0,0,{"$error":"#DIV/0!"},{"$error":"#DIV/0!"}]
[null,null,null,null,null,null,null,null,null,null,0,0,0,{"$error":"#DIV/0!"},{"$error":"#DIV/0!"}]
[null,null,null,null,null,null,null,null,null,null,0,0,0,{"$error":"#DIV/0!"},{"$error":"#DIV/0!"}]
[null,null,null,null,null,null,null,null,null,null,0,0,0,{"$error":"#DIV/0!"},{"$error":"#DIV/0!"}]
[null,null,null,null,null,null,null,null,null,null,0,0,0,{"$error":"#DIV/0!"},{"$error":"#DIV/0!"}]
[null,null,null,null,null,null,null,null,null,null,0,0,0,{"$error":"#DIV/0!"},{"$error":"#DIV/0!"}]
[null,null,null,null,null,null,null,null,null,null,0,0,0,{"$error":"#DIV/0!"},{"$error":"#DIV/0!"}]
[null,null,null,null,null,null,null,null,null,null,0,0,0,{"$error":"#DIV/0!"},{"$error":"#DIV/0!"}]
[null,null,null,null,null,null,null,null,null,null,0,0,0,{"$error":"#DIV/0!"},{"$error":"#DIV/0!"}]
[null,null,null,null,null,null,null,null,null,null,0,0,0,{"$error":"#DIV/0!"},{"$error":"#DIV/0!"}]
[null,null,null,null,null,null,null,null,null,null,0,0,0,{"$error":"#DIV/0!"},{"$error":"#DIV/0!"}]
[null,null,null,null,null,null,null,null,null,null,0,0,0,{"$error":"#DIV/0!"},{"$error":"#DIV/0!"}]
[null,null,null,null,null,null,null,null,null,null,0,0,0,{"$error":"#DIV/0!"},{"$error":"#DIV/0!"}]
[null,null,null,null,null,null,null,null,null,null,0,0,0,{"$error":"#DIV/0!"},{"$error":"#DIV/0!"}]
[null,null,null,null,null,null,null,null,null,null,0,0,0,{"$error":"#DIV/0!"},{"$error":"#DIV/0!"}]
[null,null,null,null,null,null,null,null,null,null,0,0,0,{"$error":"#DIV/0!"},{"$error":"#DIV/0!"}]
[null,null,null,null,null,null,null,null,null,null,0,0,0,{"$error":"#DIV/0!"},{"$error":"#DIV/0!"}]
[null,null,null,null,null,null,null,null,null,null,0,0,0,{"$error":"#DIV/0!"},{"$error":"#DIV/0!"}]
[null,null,null,null,null,null,null,null,null,null,0,0,0,{"$error":"#DIV/0!"},{"$error":"#DIV/0!"}]
[null,null,null,null,null,null,null,null,null,null,0,0,0,{"$error":"#DIV/0!"},{"$error":"#DIV/0!"}]
[null,null,null,null,null,null,null,null,null,null,0,0,0,{"$error":"#DIV/0!"},{"$error":"#DIV/0!"}]
[null,null,null,null,null,null,null,null,null,null,0,0,0,{"$error":"#DIV/0!"},{"$error":"#DIV/0!"}]
[null,null,null,null,null,null,null,null,null,null,{"$f":"SUM(J729*0.1)","v":0},{"$f":"SUM(J729*0.3)","v":0},{"$f":"SUM(J729-L729)","v":0},{"$f":"SUM(G729-J729)/G729","v":{"$error":"#DIV/0!"}},{"$f":"SUM(H729-N729)","v":{"$error":"#DIV/0!"}}]
[null,null,null,null,null,null,null,null,null,null,{"$f":"SUM(J730*0.1)","v":0},{"$f":"SUM(J730*0.3)","v":0},{"$f":"SUM(J730-L730)","v":0},{"$f":"SUM(G730-J730)/G730","v":{"$error":"#DIV/0!"}},{"$f":"SUM(H730-N730)","v":{"$error":"#DIV/0!"}}]
[null,null,null,null,null,null,null,null,null,null,{"$f":"SUM(J731*0.1)","v":0},{"$f":"SUM(J731*0.3)","v":0},{"$f":"SUM(J731-L731)","v":0},{"$f":"SUM(G731-J731)/G731","v":{"$error":"#DIV/0!"}},{"$f":"SUM(H731-N731)","v":{"$error":"#DIV/0!"}}]
[null,null,null,null,null,null,null,null,null,null,{"$f":"SUM(J732*0.1)","v":0},{"$f":"SUM(J732*0.3)","v":0},{"$f":"SUM(J732-L732)","v":0},{"$f":"SUM(G732-J732)/G732","v":{"$error":"#DIV/0!"}},{"$f":"SUM(H732-N732)","v":{"$error":"#DIV/0!"}}]
[null,null,null,null,null,null,null,null,null,null,{"$f":"J733*0.1","v":0},{"$f":"J733*0.3","v":0},{"$f":"J733-L733","v":0},{"$f":"(G733-J733)/G733","v":{"$error":"#DIV/0!"}},{"$f":"H733-N733","v":{"$error":"#DIV/0!"}}]
[null,null,null,null,null,null,null,null,null,null,0,0,0,{"$error":"#DIV/0!"},{"$error":"#DIV/0!"}]
[null,null,null,null,null,null,null,null,null,null,0,0,0,{"$error":"#DIV/0!"},{"$error":"#DIV/0!"}]
[null,null,null,null,null,null,null,null,null,null,0,0,0,{"$error":"#DIV/0!"},{"$error":"#DIV/0!"}]
[null,null,null,null,null,null,null,null,null,null,0,0,0,{"$error":"#DIV/0!"},{"$error":"#DIV/0!"}]
[null,null,null,null,null,null,null,null,null,null,0,0,0,{"$error":"#DIV/0!"},{"$error":"#DIV/0!"}]
[null,null,null,null,null,null,null,null,null,null,0,0,0,{"$error":"#DIV/0!"},{"$error":"#DIV/0!"}]
[null,null,null,null,null,null,null,null,null,null,0,0,0,{"$error":"#DIV/0!"},{"$error":"#DIV/0!"}]
[null,null,null,null,null,null,null,null,null,null,0,0,0,{"$error":"#DIV/0!"},{"$error":"#DIV/0!"}]
[null,null,null,null,null,null,null,null,null,null,{"$f":"SUM(J742*0.1)","v":0},{"$f":"SUM(J742*0.3)","v":0},{"$f":"SUM(J742-L742)","v":0},{"$f":"SUM(G742-J742)/G742","v":{"$error":"#DIV/0!"}},{"$f":"SUM(H742-N742)","v":{"$error":"#DIV/0!"}}]
[null,null,null,null,null,null,null,null,null,null,0,0,0,{"$error":"#DIV/0!"},{"$error":"#DIV/0!"}]
[null,null,null,null,null,null,null,null,null,null,0,0,0,{"$error":"#DIV/0!"},{"$error":"#DIV/0!"}]
[null,null,null,null,null,null,null,null,null,null,0,0,0,{"$error":"#DIV/0!"},{"$error":"#DIV/0!"}]
[null,null,null,null,null,null,null,null,null,null,0,0,0,{"$error":"#DIV/0!"},{"$error":"#DIV/0!"}]
[null,null,null,null,null,null,null,null,null,null,0,0,0,{"$error":"#DIV/0!"},{"$error":"#DIV/0!"}]
[null,null,null,null,null,null,null,null,null,null,{"$f":"J748*0.1","v":0},{"$f":"J748*0.3","v":0},{"$f":"J748-L748","v":0},{"$f":"(G748-J748)/G748","v":{"$error":"#DIV/0!"}},{"$f":"H748-N748","v":{"$error":"#DIV/0!"}}]
[null,null,null,null,null,null,null,null,null,null,0,0,0,{"$error":"#DIV/0!"},{"$error":"#DIV/0!"}]
[null,null,null,null,null,null,null,null,null,null,0,0,0,{"$error":"#DIV/0!"},{"$error":"#DIV/0!"}]
[null,null,null,null,null,null,null,null,null,null,0,0,0,{"$error":"#DIV/0!"},{"$error":"#DIV/0!"}]
[null,null,null,null,null,null,null,null,null,null,0,0,0,{"$error":"#DIV/0!"},{"$error":"#DIV/0!"}]
[null,null,null,null,null,null,null,null,null,null,0,0,0,{"$error":"#DIV/0!"},{"$error":"#DIV/0!"}]
[null,null,null,null,null,null,null,null,null,null,0,0,0,{"$error":"#DIV/0!"},{"$error":"#DIV/0!"}]
[null,null,null,null,null,null,null,null,null,null,0,0,0,{"$error":"#DIV/0!"},{"$error":"#DIV/0!"}]
[null,null,null,null,null,null,null,null,null,null,0,0,0,{"$error":"#DIV/0!"},{"$error":"#DIV/0!"}]
[null,null,null,null,null,null,null,null,null,null,0,0,0,{"$error":"#DIV/0!"},{"$error":"#DIV/0!"}]
[null,null,null,null,null,null,null,null,null,null,0,0,0,{"$error":"#DIV/0!"},{"$error":"#DIV/0!"}]
[null,null,null,null,null,null,null,null,null,null,{"$f":"SUM(J759*0.1)","v":0},{"$f":"SUM(J759*0.3)","v":0},{"$f":"SUM(J759-L759)","v":0},{"$f":"SUM(G759-J759)/G759","v":{"$error":"#DIV/0!"}},{"$f":"SUM(H759-N759)","v":{"$error":"#DIV/0!"}}]
[null,null,null,null,null,null,null,null,null,null,0,0,0,{"$error":"#DIV/0!"},{"$error":"#DIV/0!"}]
[null,null,null,null,null,null,null,null,null,null,0,0,0,{"$error":"#DIV/0!"},{"$error":"#DIV/0!"}]
[null,null,null,null,null,null,null,null,null,null,0,0,0,{"$error":"#DIV/0!"},{"$error":"#DIV/0!"}]
[null,null,null,null,null,null,null,null,null,null,0,0,0,{"$error":"#DIV/0!"},{"$error":"#DIV/0!"}]
[null,null,null,null,null,null,null,null,null,null,0,0,0,{"$error":"#DIV/0!"},{"$error":"#DIV/0!"}]
[null,null,null,null,null,null,null,null,null,null,0,0,0,{"$error":"#DIV/0!"},{"$error":"#DIV/0!"}]
[null,null,null,null,null,null,null,null,null,null,0,0,0,{"$error":"#DIV/0!"},{"$error":"#DIV/0!"}]
[null,null,null,null,null,null,null,null,null,null,0,0,0,{"$error":"#DIV/0!"},{"$error":"#DIV/0!"}]
[null,null,null,null,null,null,null,null,null,null,0,0,0,{"$error":"#DIV/0!"},{"$error":"#DIV/0!"}]
[null,null,null,null,null,null,null,null,null,null,{"$f":"J769*0.1","v":0},{"$f":"J769*0.3","v":0},{"$f":"J769-L769","v":0},{"$f":"(G769-J769)/G769","v":{"$error":"#DIV/0!"}},{"$f":"H769-N769","v":{"$error":"#DIV/0!"}}]
[null,null,null,null,null,null,null,null,null,null,0,0,0,{"$error":"#DIV/0!"},{"$error":"#DIV/0!"}]
[null,null,null,null,null,null,null,null,null,null,0,0,0,{"$error":"#DIV/0!"},{"$error":"#DIV/0!"}]
[null,null,null,null,null,null,null,null,null,null,0,0,0,{"$error":"#DIV/0!"},{"$error":"#DIV/0!"}]
[null,null,null,null,null,null,null,null,null,null,0,0,0,{"$error":"#DIV/0!"},{"$error":"#DIV/0!"}]
[null,null,null,null,null,null,null,null,null,null,0,0,0,{"$error":"#DIV/0!"},{"$error":"#DIV/0!"}]
[null,null,null,null,null,null,null,null,null,null,0,0,0,{"$error":"#DIV/0!"},{"$error":"#DIV/0!"}]
[null,null,null,null,null,null,null,null,null,null,0,0,0,{"$error":"#DIV/0!"},{"$error":"#DIV/0!"}]
[null,null,null,null,null,null,null,null,null,null,0,0,0,{"$error":"#DIV/0!"},{"$error":"#DIV/0!"}]
[null,null,null,null,null,null,null,null,null,null,0,0,0,{"$error":"#DIV/0!"},{"$error":"#DIV/0!"}]
[null,null,null,null,null,null,null,null,null,null,0,0,0,{"$error":"#DIV/0!"},{"$error":"#DIV/0!"}]
[null,null,null,null,null,null,null,null,null,null,0,0,0,{"$error":"#DIV/0!"},{"$error":"#DIV/0!"}]
[null,null,null,null,null,null,null,null,null,null,0,0,0,{"$error":"#DIV/0!"},{"$error":"#DIV/0!"}]
[null,null,null,null,null,null,null,null,null,null,0,0,0,{"$error":"#DIV/0!"},{"$error":"#DIV/0!"}]
[null,null,null,null,null,null,null,null,null,null,0,0,0,{"$error":"#DIV/0!"},{"$error":"#DIV/0!"}]
[null,null,null,null,null,null,null,null,null,null,0,0,0,{"$error":"#DIV/0!"},{"$error":"#DIV/0!"}]
[null,null,null,null,null,null,null,null,null,null,0,0,0,{"$error":"#DIV/0!"},{"$error":"#DIV/0!"}]
[null,null,null,null,null,null,null,null,null,null,0,0,0,{"$error":"#DIV/0!"},{"$error":"#DIV/0!"}]
[null,null,null,null,null,null,null,null,null,null,0,0,0,{"$error":"#DIV/0!"},{"$error":"#DIV/0!"}]
[null,null,null,null,null,null,null,null,null,null,{"$f":"SUM(J788*0.1)","v":0},{"$f":"SUM(J788*0.3)","v":0},{"$f":"SUM(J788-L788)","v":0},{"$f":"SUM(G788-J788)/G788","v":{"$error":"#DIV/0!"}},{"$f":"SUM(H788-N788)","v":{"$error":"#DIV/0!"}}]
[null,null,null,null,null,null,null,null,null,null,0,0,0,{"$error":"#DIV/0!"},{"$error":"#DIV/0!"}]
[null,null,null,null,null,null,null,null,null,null,0,0,0,{"$error":"#DIV/0!"},{"$error":"#DIV/0!"}]
[null,null,null,null,null,null,null,null,null,null,0,0,0,{"$error":"#DIV/0!"},{"$error":"#DIV/0!"}]
[null,null,null,null,null,null,null,null,null,null,0,0,0,{"$error":"#DIV/0!"},{"$error":"#DIV/0!"}]
[null,null,null,null,null,null,null,null,null,null,0,0,0,{"$error":"#DIV/0!"},{"$error":"#DIV/0!"}]
[null,null,null,null,null,null,null,null,null,null,0,0,0,{"$error":"#DIV/0!"},{"$error":"#DIV/0!"}]
[null,null,null,null,null,null,null,null,null,null,{"$f":"J795*0.1","v":0},{"$f":"J795*0.3","v":0},{"$f":"J795-L795","v":0},{"$f":"(G795-J795)/G795","v":{"$error":"#DIV/0!"}},{"$f":"H795-N795","v":{"$error":"#DIV/0!"}}]
[null,null,null,null,null,null,null,null,null,null,0,0,0,{"$error":"#DIV/0!"},{"$error":"#DIV/0!"}]
[null,null,null,null,null,null,null,null,null,null,0,0,0,{"$error":"#DIV/0!"},{"$error":"#DIV/0!"}]
[null,null,null,null,null,null,null,null,null,null,0,0,0,{"$error":"#DIV/0!"},{"$error":"#DIV/0!"}]
[null,null,null,null,null,null,null,null,null,null,0,0,0,{"$error":"#DIV/0!"},{"$error":"#DIV/0!"}]
[null,null,null,null,null,null,null,null,null,null,0,0,0,{"$error":"#DIV/0!"},{"$error":"#DIV/0!"}]
[null,null,null,null,null,null,null,null,null,null,0,0,0,{"$error":"#DIV/0!"},{"$error":"#DIV/0!"}]
[null,null,null,null,null,null,null,null,null,null,0,0,0,{"$error":"#DIV/0!"},{"$error":"#DIV/0!"}]
[null,null,null,null,null,null,null,null,null,null,0,0,0,{"$error":"#DIV/0!"},{"$error":"#DIV/0!"}]
[null,null,null,null,null,null,null,null,null,null,0,0,0,{"$error":"#DIV/0!"},{"$error":"#DIV/0!"}]
[null,null,null,null,null,null,null,null,null,null,0,0,0,{"$error":"#DIV/0!"},{"$error":"#DIV/0!"}]
[null,null,null,null,null,null,null,null,null,null,{"$f":"SUM(J806*0.1)","v":0},{"$f":"SUM(J806*0.3)","v":0},{"$f":"SUM(J806-L806)","v":0},{"$f":"SUM(G806-J806)/G806","v":{"$error":"#DIV/0!"}},{"$f":"SUM(H806-N806)","v":{"$error":"#DIV/0!"}}]
[null,null,null,null,null,null,null,null,null,null,0,0,0,{"$error":"#DIV/0!"},{"$error":"#DIV/0!"}]
[null,null,null,null,null,null,null,null,null,null,0,0,0,{"$error":"#DIV/0!"},{"$error":"#DIV/0!"}]
[null,null,null,null,null,null,null,null,null,null,0,0,0,{"$error":"#DIV/0!"},{"$error":"#DIV/0!"}]
[null,null,null,null,null,null,null,null,null,null,0,0,0,{"$error":"#DIV/0!"},{"$error":"#DIV/0!"}]
[null,null,null,null,null,null,null,null,null,null,0,0,0,{"$error":"#DIV/0!"},{"$error":"#DIV/0!"}]
[null,null,null,null,null,null,null,null,null,null,0,0,0,{"$error":"#DIV/0!"},{"$error":"#DIV/0!"}]
[null,null,null,null,null,null,null,null,null,null,{"$f":"J813*0.1","v":0},{"$f":"J813*0.3","v":0},{"$f":"J813-L813","v":0},{"$f":"(G813-J813)/G813","v":{"$error":"#DIV/0!"}},{"$f":"H813-N813","v":{"$error":"#DIV/0!"}}]
[null,null,null,null,null,null,null,null,null,null,0,0,0,{"$error":"#DIV/0!"},{"$error":"#DIV/0!"}]
[null,null,null,null,null,null,null,null,null,null,0,0,0,{"$error":"#DIV/0!"},{"$error":"#DIV/0!"}]
[null,null,null,null,null,null,null,null,null,null,0,0,0,{"$error":"#DIV/0!"},{"$error":"#DIV/0!"}]
[null,null,null,null,null,null,null,null,null,null,0,0,0,{"$error":"#DIV/0!"},{"$error":"#DIV/0!"}]
[null,null,null,null,null,null,null,null,null,null,0,0,0,{"$error":"#DIV/0!"},{"$error":"#DIV/0!"}]
[null,null,null,null,null,null,null,null,null,null,0,0,0,{"$error":"#DIV/0!"},{"$error":"#DIV/0!"}]
[null,null,null,null,null,null,null,null,null,null,0,0,0,{"$error":"#DIV/0!"},{"$error":"#DIV/0!"}]
[null,null,null,null,null,null,null,null,null,null,0,0,0,{"$error":"#DIV/0!"},{"$error":"#DIV/0!"}]
[null,null,null,null,null,null,null,null,null,null,0,0,0,{"$error":"#DIV/0!"},{"$error":"#DIV/0!"}]
[null,null,null,null,null,null,null,null,null,null,0,0,0,{"$error":"#DIV/0!"},{"$error":"#DIV/0!"}]
[null,null,null,null,null,null,null,null,null,null,0,0,0,{"$error":"#DIV/0!"},{"$error":"#DIV/0!"}]
[null,null,null,null,null,null,null,null,null,null,0,0,0,{"$error":"#DIV/0!"},{"$error":"#DIV/0!"}]
[null,null,null,null,null,null,null,null,null,null,0,0,0,{"$error":"#DIV/0!"},{"$error":"#DIV/0!"}]
[null,null,null,null,null,null,null,null,null,null,0,0,0,{"$error":"#DIV/0!"},{"$error":"#DIV/0!"}]
[null,null,null,null,null,null,null,null,null,null,0,0,0,{"$error":"#DIV/0!"},{"$error":"#DIV/0!"}]
[null,null,null,null,null,null,null,null,null,null,0,0,0,{"$error":"#DIV/0!"},{"$error":"#DIV/0!"}]
[null,null,null,null,null,null,null,null,null,null,0,0,0,{"$error":"#DIV/0!"},{"$error":"#DIV/0!"}]
[null,null,null,null,null,null,null,null,null,null,0,0,0,{"$error":"#DIV/0!"},{"$error":"#DIV/0!"}]
[null,null,null,null,null,null,null,null,null,null,0,0,0,{"$error":"#DIV/0!"},{"$error":"#DIV/0!"}]
[null,null,null,null,null,null,null,null,null,null,0,0,0,{"$error":"#DIV/0!"},{"$error":"#DIV/0!"}]
[null,null,null,null,null,null,null,null,null,null,0,0,0,{"$error":"#DIV/0!"},{"$error":"#DIV/0!"}]
[null,null,null,null,null,null,null,null,null,null,0,0,0,{"$error":"#DIV/0!"},{"$error":"#DIV/0!"}]
[null,null,null,null,null,null,null,null,null,null,0,0,0,{"$error":"#DIV/0!"},{"$error":"#DIV/0!"}]
[null,null,null,null,null,null,null,null,null,null,0,0,0,{"$error":"#DIV/0!"},{"$error":"#DIV/0!"}]
[null,null,null,null,null,null,null,null,null,null,0,0,0,{"$error":"#DIV/0!"},{"$error":"#DIV/0!"}]
[null,null,null,null,null,null,null,null,null,null,0,0,0,{"$error":"#DIV/0!"},{"$error":"#DIV/0!"}]
[null,null,null,null,null,null,null,null,null,null,0,0,0,{"$error":"#DIV/0!"},{"$error":"#DIV/0!"}]
[null,null,null,null,null,null,null,null,null,null,0,0,0,{"$error":"#DIV/0!"},{"$error":"#DIV/0!"}]
[null,null,null,null,null,null,null,null,null,null,0,0,0,{"$error":"#DIV/0!"},{"$error":"#DIV/0!"}]
[null,null,null,null,null,null,null,null,null,null,0,0,0,{"$error":"#DIV/0!"},{"$error":"#DIV/0!"}]
[null,null,null,null,null,null,null,null,null,null,0,0,0,{"$error":"#DIV/0!"},{"$error":"#DIV/0!"}]
[null,null,null,null,null,null,null,null,null,null,0,0,0,{"$error":"#DIV/0!"},{"$error":"#DIV/0!"}]
[null,null,null,null,null,null,null,null,null,null,0,0,0,{"$error":"#DIV/0!"},{"$error":"#DIV/0!"}]
[null,null,null,null,null,null,null,null,null,null,0,0,0,{"$error":"#DIV/0!"},{"$error":"#DIV/0!"}]
[null,null,null,null,null,null,null,null,null,null,0,0,0,{"$error":"#DIV/0!"},{"$error":"#DIV/0!"}]
[null,null,null,null,null,null,null,null,null,null,0,0,0,{"$error":"#DIV/0!"},{"$error":"#DIV/0!"}]
[null,null,null,null,null,null,null,null,null,null,0,0,0,{"$error":"#DIV/0!"},{"$error":"#DIV/0!"}]
[null,null,null,null,null,null,null,null,null,null,0,0,0,{"$error":"#DIV/0!"},{"$error":"#DIV/0!"}]
[null,null,null,null,null,null,null,null,null,null,{"$f":"SUM(J852*0.1)","v":0},{"$f":"SUM(J852*0.3)","v":0},{"$f":"SUM(J852-L852)","v":0},{"$f":"SUM(G852-J852)/G852","v":{"$error":"#DIV/0!"}},{"$f":"SUM(H852-N852)","v":{"$error":"#DIV/0!"}}]
[null,null,null,null,null,null,null,null,null,null,{"$f":"SUM(J853*0.1)","v":0},{"$f":"SUM(J853*0.3)","v":0},{"$f":"SUM(J853-L853)","v":0},{"$f":"SUM(G853-J853)/G853","v":{"$error":"#DIV/0!"}},{"$f":"SUM(H853-N853)","v":{"$error":"#DIV/0!"}}]
[null,null,null,null,null,null,null,null,null,null,{"$f":"SUM(J854*0.1)","v":0},{"$f":"SUM(J854*0.3)","v":0},{"$f":"SUM(J854-L854)","v":0},{"$f":"SUM(G854-J854)/G854","v":{"$error":"#DIV/0!"}},{"$f":"SUM(H854-N854)","v":{"$error":"#DIV/0!"}}]
[null,null,null,null,null,null,null,null,null,null,{"$f":"SUM(J855*0.1)","v":0},{"$f":"SUM(J855*0.3)","v":0},{"$f":"SUM(J855-L855)","v":0},{"$f":"SUM(G855-J855)/G855","v":{"$error":"#DIV/0!"}},{"$f":"SUM(H855-N855)","v":{"$error":"#DIV/0!"}}]
[null,null,null,null,null,null,null,null,null,null,{"$f":"SUM(J856*0.1)","v":0},{"$f":"SUM(J856*0.3)","v":0},{"$f":"SUM(J856-L856)","v":0},{"$f":"SUM(G856-J856)/G856","v":{"$error":"#DIV/0!"}},{"$f":"SUM(H856-N856)","v":{"$error":"#DIV/0!"}}]
[null,null,null,null,null,null,null,null,null,null,{"$f":"J857*0.1","v":0},{"$f":"J857*0.3","v":0},{"$f":"J857-L857","v":0},{"$f":"(G857-J857)/G857","v":{"$error":"#DIV/0!"}},{"$f":"H857-N857","v":{"$error":"#DIV/0!"}}]
[null,null,null,null,null,null,null,null,null,null,0,0,0,{"$error":"#DIV/0!"},{"$error":"#DIV/0!"}]
[null,null,null,null,null,null,null,null,null,null,0,0,0,{"$error":"#DIV/0!"},{"$error":"#DIV/0!"}]
[null,null,null,null,null,null,null,null,null,null,0,0,0,{"$error":"#DIV/0!"},{"$error":"#DIV/0!"}]
[null,null,null,null,null,null,null,null,null,null,0,0,0,{"$error":"#DIV/0!"},{"$error":"#DIV/0!"}]
[null,null,null,null,null,null,null,null,null,null,0,0,0,{"$error":"#DIV/0!"},{"$error":"#DIV/0!"}]
[null,null,null,null,null,null,null,null,null,null,0,0,0,{"$error":"#DIV/0!"},{"$error":"#DIV/0!"}]
[null,null,null,null,null,null,null,null,null,null,0,0,0,{"$error":"#DIV/0!"},{"$error":"#DIV/0!"}]
[null,null,null,null,null,null,null,null,null,null,0,0,0,{"$error":"#DIV/0!"},{"$error":"#DIV/0!"}]
[null,null,null,null,null,null,null,null,null,null,0,0,0,{"$error":"#DIV/0!"},{"$error":"#DIV/0!"}]
[null,null,null,null,null,null,null,null,null,null,0,0,0,{"$error":"#DIV/0!"},{"$error":"#DIV/0!"}]
[null,null,null,null,null,null,null,null,null,null,0,0,0,{"$error":"#DIV/0!"},{"$error":"#DIV/0!"}]
[null,null,null,null,null,null,null,null,null,null,0,0,0,{"$error":"#DIV/0!"},{"$error":"#DIV/0!"}]
[null,null,null,null,null,null,null,null,null,null,0,0,0,{"$error":"#DIV/0!"},{"$error":"#DIV/0!"}]
[null,null,null,null,null,null,null,null,null,null,0,0,0,{"$error":"#DIV/0!"},{"$error":"#DIV/0!"}]
[null,null,null,null,null,null,null,null,null,null,{"$f":"SUM(J872*0.1)","v":0},{"$f":"SUM(J872*0.3)","v":0},{"$f":"SUM(J872-L872)","v":0},{"$f":"SUM(G872-J872)/G872","v":{"$error":"#DIV/0!"}},{"$f":"SUM(H872-N872)","v":{"$error":"#DIV/0!"}}]
[null,null,null,null,null,null,null,null,null,null,0,0,0,{"$error":"#DIV/0!"},{"$error":"#DIV/0!"}]
[null,null,null,null,null,null,null,null,null,null,0,0,0,{"$error":"#DIV/0!"},{"$error":"#DIV/0!"}]
[null,null,null,null,null,null,null,null,null,null,0,0,0,{"$error":"#DIV/0!"},{"$error":"#DIV/0!"}]
[null,null,null,null,null,null,null,null,null,null,0,0,0,{"$error":"#DIV/0!"},{"$error":"#DIV/0!"}]
[null,null,null,null,null,null,null,null,null,null,0,0,0,{"$error":"#DIV/0!"},{"$error":"#DIV/0!"}]
[null,null,null,null,null,null,null,null,null,null,0,0,0,{"$error":"#DIV/0!"},{"$error":"#DIV/0!"}]
[null,null,null,null,null,null,null,null,null,null,{"$f":"J879*0.1","v":0},{"$f":"J879*0.3","v":0},{"$f":"J879-L879","v":0},{"$f":"(G879-J879)/G879","v":{"$error":"#DIV/0!"}},{"$f":"H879-N879","v":{"$error":"#DIV/0!"}}]
[null,null,null,null,null,null,null,null,null,null,0,0,0,{"$error":"#DIV/0!"},{"$error":"#DIV/0!"}]
[null,null,null,null,null,null,null,null,null,null,0,0,0,{"$error":"#DIV/0!"},{"$error":"#DIV/0!"}]
[null,null,null,null,null,null,null,null,null,null,0,0,0,{"$error":"#DIV/0!"},{"$error":"#DIV/0!"}]
[null,null,null,null,null,null,null,null,null,null,0,0,0,{"$error":"#DIV/0!"},{"$error":"#DIV/0!"}]
[null,null,null,null,null,null,null,null,null,null,0,0,0,{"$error":"#DIV/0!"},{"$error":"#DIV/0!"}]
[null,null,null,null,null,null,null,null,null,null,0,0,0,{"$error":"#DIV/0!"},{"$error":"#DIV/0!"}]
[null,null,null,null,null,null,null,null,null,null,0,0,0,{"$error":"#DIV/0!"},{"$error":"#DIV/0!"}]
[null,null,null,null,null,null,null,null,null,null,0,0,0,{"$error":"#DIV/0!"},{"$error":"#DIV/0!"}]
[null,null,null,null,null,null,null,null,null,null,0,0,0,{"$error":"#DIV/0!"},{"$error":"#DIV/0!"}]
[null,null,null,null,null,null,null,null,null,null,0,0,0,{"$error":"#DIV/0!"},{"$error":"#DIV/0!"}]
[null,null,null,null,null,null,null,null,null,null,0,0,0,{"$error":"#DIV/0!"},{"$error":"#DIV/0!"}]
[null,null,null,null,null,null,null,null,null,null,0,0,0,{"$error":"#DIV/0!"},{"$error":"#DIV/0!"}]
[null,null,null,null,null,null,null,null,null,null,0,0,0,{"$error":"#DIV/0!"},{"$error":"#DIV/0!"}]
[null,null,null,null,null,null,null,null,null,null,0,0,0,{"$error":"#DIV/0!"},{"$error":"#DIV/0!"}]
[null,null,null,null,null,null,null,null,null,null,0,0,0,{"$error":"#DIV/0!"},{"$error":"#DIV/0!"}]
[null,null,null,null,null,null,null,null,null,null,0,0,0,{"$error":"#DIV/0!"},{"$error":"#DIV/0!"}]
[null,null,null,null,null,null,null,null,null,null,0,0,0,{"$error":"#DIV/0!"},{"$error":"#DIV/0!"}]
[null,null,null,null,null,null,null,null,null,null,{"$f":"SUM(J897*0.1)","v":0},{"$f":"SUM(J897*0.3)","v":0},{"$f":"SUM(J897-L897)","v":0},{"$f":"SUM(G897-J897)/G897","v":{"$error":"#DIV/0!"}},{"$f":"SUM(H897-N897)","v":{"$error":"#DIV/0!"}}]
[null,null,null,null,null,null,null,null,null,null,0,0,0,{"$error":"#DIV/0!"},{"$error":"#DIV/0!"}]
[null,null,null,null,null,null,null,null,null,null,0,0,0,{"$error":"#DIV/0!"},{"$error":"#DIV/0!"}]
[null,null,null,null,null,null,null,null,null,null,0,0,0,{"$error":"#DIV/0!"},{"$error":"#DIV/0!"}]
[null,null,null,null,null,null,null,null,null,null,0,0,0,{"$error":"#DIV/0!"},{"$error":"#DIV/0!"}]
[null,null,null,null,null,null,null,null,null,null,0,0,0,{"$error":"#DIV/0!"},{"$error":"#DIV/0!"}]
[null,null,null,null,null,null,null,null,null,null,0,0,0,{"$error":"#DIV/0!"},{"$error":"#DIV/0!"}]
[null,null,null,null,null,null,null,null,null,null,{"$f":"J904*0.1","v":0},{"$f":"J904*0.3","v":0},{"$f":"J904-L904","v":0},{"$f":"(G904-J904)/G904","v":{"$error":"#DIV/0!"}},{"$f":"H904-N904","v":{"$error":"#DIV/0!"}}]
[null,null,null,null,null,null,null,null,null,null,{"$f":"J905*0.1","v":0},{"$f":"J905*0.3","v":0},{"$f":"J905-L905","v":0},{"$f":"(G905-J905)/G905","v":{"$error":"#DIV/0!"}},{"$f":"H905-N905","v":{"$error":"#DIV/0!"}}]
[null,null,null,null,null,null,null,null,null,null,{"$f":"J906*0.1","v":0},{"$f":"J906*0.3","v":0},{"$f":"J906-L906","v":0},{"$f":"(G906-J906)/G906","v":{"$error":"#DIV/0!"}},{"$f":"H906-N906","v":{"$error":"#DIV/0!"}}]
[null,null,null,null,null,null,null,null,null,null,{"$f":"J907*0.1","v":0},{"$f":"J907*0.3","v":0},{"$f":"J907-L907","v":0},{"$f":"(G907-J907)/G907","v":{"$error":"#DIV/0!"}},{"$f":"H907-N907","v":{"$error":"#DIV/0!"}}]
[null,null,null,null,null,null,null,null,null,null,{"$f":"J908*0.1","v":0},{"$f":"J908*0.3","v":0},{"$f":"J908-L908","v":0},{"$f":"(G908-J908)/G908","v":{"$error":"#DIV/0!"}},{"$f":"H908-N908","v":{"$error":"#DIV/0!"}}]
[null,null,null,null,null,null,null,null,null,null,{"$f":"SUM(J909*0.1)","v":0},{"$f":"SUM(J909*0.3)","v":0},{"$f":"SUM(J909-L909)","v":0},{"$f":"SUM(G909-J909)/G909","v":{"$error":"#DIV/0!"}},{"$f":"SUM(H909-N909)","v":{"$error":"#DIV/0!"}}]
[null,null,null,null,null,null,null,null,null,null,{"$f":"SUM(J910*0.1)","v":0},{"$f":"SUM(J910*0.3)","v":0},{"$f":"SUM(J910-L910)","v":0},{"$f":"SUM(G910-J910)/G910","v":{"$error":"#DIV/0!"}},{"$f":"SUM(H910-N910)","v":{"$error":"#DIV/0!"}}]
[null,null,null,null,null,null,null,null,null,null,{"$f":"SUM(J911*0.1)","v":0},{"$f":"SUM(J911*0.3)","v":0},{"$f":"SUM(J911-L911)","v":0},{"$f":"SUM(G911-J911)/G911","v":{"$error":"#DIV/0!"}},{"$f":"SUM(H911-N911)","v":{"$error":"#DIV/0!"}}]
[null,null,null,null,null,null,null,null,null,null,{"$f":"SUM(J912*0.1)","v":0},{"$f":"SUM(J912*0.3)","v":0},{"$f":"SUM(J912-L912)","v":0},{"$f":"SUM(G912-J912)/G912","v":{"$error":"#DIV/0!"}},{"$f":"SUM(H912-N912)","v":{"$error":"#DIV/0!"}}]
[null,null,null,null,null,null,null,null,null,null,{"$f":"SUM(J913*0.1)","v":0},{"$f":"SUM(J913*0.3)","v":0},{"$f":"SUM(J913-L913)","v":0},{"$f":"SUM(G913-J913)/G913","v":{"$error":"#DIV/0!"}},{"$f":"SUM(H913-N913)","v":{"$error":"#DIV/0!"}}]
[null,null,null,null,null,null,null,null,null,null,{"$f":"J914*0.1","v":0},{"$f":"J914*0.3","v":0},{"$f":"J914-L914","v":0},{"$f":"(G914-J914)/G914","v":{"$error":"#DIV/0!"}},{"$f":"H914-N914","v":{"$error":"#DIV/0!"}}]
[null,null,null,null,null,null,null,null,null,null,{"$f":"SUM(J915*0.1)","v":0},{"$f":"SUM(J915*0.3)","v":0},{"$f":"SUM(J915-L915)","v":0},{"$f":"SUM(G915-J915)/G915","v":{"$error":"#DIV/0!"}},{"$f":"SUM(H915-N915)","v":{"$error":"#DIV/0!"}}]
[null,null,null,null,null,null,null,null,null,null,{"$f":"J916*0.1","v":0},{"$f":"J916*0.3","v":0},{"$f":"J916-L916","v":0},{"$f":"(G916-J916)/G916","v":{"$error":"#DIV/0!"}},{"$f":"H916-N916","v":{"$error":"#DIV/0!"}}]
[null,null,null,null,null,null,null,null,null,null,{"$f":"J917*0.1","v":0},{"$f":"J917*0.3","v":0},{"$f":"J917-L917","v":0},{"$f":"(G917-J917)/G917","v":{"$error":"#DIV/0!"}},{"$f":"H917-N917","v":{"$error":"#DIV/0!"}}]
[null,null,null,null,null,null,null,null,null,null,{"$f":"J918*0.1","v":0},{"$f":"J918*0.3","v":0},{"$f":"J918-L918","v":0},{"$f":"(G918-J918)/G918","v":{"$error":"#DIV/0!"}},{"$f":"H918-N918","v":{"$error":"#DIV/0!"}}]
[null,null,null,null,null,null,null,null,null,null,{"$f":"J919*0.1","v":0},{"$f":"J919*0.3","v":0},{"$f":"J919-L919","v":0},{"$f":"(G919-J919)/G919","v":{"$error":"#DIV/0!"}},{"$f":"H919-N919","v":{"$error":"#DIV/0!"}}]
[null,null,null,null,null,null,null,null,null,null,{"$f":"J920*0.1","v":0},{"$f":"J920*0.3","v":0},{"$f":"J920-L920","v":0},{"$f":"(G920-J920)/G920","v":{"$error":"#DIV/0!"}},{"$f":"H920-N920","v":{"$error":"#DIV/0!"}}]
[null,null,null,null,null,null,null,null,null,null,{"$f":"SUM(J921*0.1)","v":0},{"$f":"SUM(J921*0.3)","v":0},{"$f":"SUM(J921-L921)","v":0},{"$f":"SUM(G921-J921)/G921","v":{"$error":"#DIV/0!"}},{"$f":"SUM(H921-N921)","v":{"$error":"#DIV/0!"}}]
[null,null,null,null,null,null,null,null,null,null,{"$f":"SUM(J922*0.1)","v":0},{"$f":"SUM(J922*0.3)","v":0},{"$f":"SUM(J922-L922)","v":0},{"$f":"SUM(G922-J922)/G922","v":{"$error":"#DIV/0!"}},{"$f":"SUM(H922-N922)","v":{"$error":"#DIV/0!"}}]
[null,null,null,null,null,null,null,null,null,null,{"$f":"SUM(J923*0.1)","v":0},{"$f":"SUM(J923*0.3)","v":0},{"$f":"SUM(J923-L923)","v":0},{"$f":"SUM(G923-J923)/G923","v":{"$error":"#DIV/0!"}},{"$f":"SUM(H923-N923)","v":{"$error":"#DIV/0!"}}]
[null,null,null,null,null,null,null,null,null,null,{"$f":"SUM(J924*0.1)","v":0},{"$f":"SUM(J924*0.3)","v":0},{"$f":"SUM(J924-L924)","v":0},{"$f":"SUM(G924-J924)/G924","v":{"$error":"#DIV/0!"}},{"$f":"SUM(H924-N924)","v":{"$error":"#DIV/0!"}}]
[null,null,null,null,null,null,null,null,null,null,{"$f":"SUM(J925*0.1)","v":0},{"$f":"SUM(J925*0.3)","v":0},{"$f":"SUM(J925-L925)","v":0},{"$f":"SUM(G925-J925)/G925","v":{"$error":"#DIV/0!"}},{"$f":"SUM(H925-N925)","v":{"$error":"#DIV/0!"}}]
[null,null,null,null,null,null,null,null,null,null,{"$f":"J926*0.1","v":0},{"$f":"J926*0.3","v":0},{"$f":"J926-L926","v":0},{"$f":"(G926-J926)/G926","v":{"$error":"#DIV/0!"}},{"$f":"H926-N926","v":{"$error":"#DIV/0!"}}]
[null,null,null,null,null,null,null,null,null,null,0,0,0,{"$error":"#DIV/0!"},{"$error":"#DIV/0!"}]
[null,null,null,null,null,null,null,null,null,null,0,0,0,{"$error":"#DIV/0!"},{"$error":"#DIV/0!"}]
[null,null,null,null,null,null,null,null,null,null,0,0,0,{"$error":"#DIV/0!"},{"$error":"#DIV/0!"}]
[null,null,null,null,null,null,null,null,null,null,0,0,0,{"$error":"#DIV/0!"},{"$error":"#DIV/0!"}]
[null,null,null,null,null,null,null,null,null,null,0,0,0,{"$error":"#DIV/0!"},{"$error":"#DIV/0!"}]
[null,null,null,null,null,null,null,null,null,null,0,0,0,{"$error":"#DIV/0!"},{"$error":"#DIV/0!"}]
[null,null,null,null,null,null,null,null,null,null,0,0,0,{"$error":"#DIV/0!"},{"$error":"#DIV/0!"}]
[null,null,null,null,null,null,null,null,null,null,0,0,0,{"$error":"#DIV/0!"},{"$error":"#DIV/0!"}]
[null,null,null,null,null,null,null,null,null,null,{"$f":"SUM(J935*0.1)","v":0},{"$f":"SUM(J935*0.3)","v":0},{"$f":"SUM(J935-L935)","v":0},{"$f":"SUM(G935-J935)/G935","v":{"$error":"#DIV/0!"}},{"$f":"SUM(H935-N935)","v":{"$error":"#DIV/0!"}}]
[null,null,null,null,null,null,null,null,null,null,{"$f":"J936*0.1","v":0},{"$f":"J936*0.3","v":0},{"$f":"J936-L936","v":0},{"$f":"(G936-J936)/G936","v":{"$error":"#DIV/0!"}},{"$f":"H936-N936","v":{"$error":"#DIV/0!"}}]
[null,null,null,null,null,null,null,null,null,null,0,0,0,{"$error":"#DIV/0!"},{"$error":"#DIV/0!"}]
[null,null,null,null,null,null,null,null,null,null,0,0,0,{"$error":"#DIV/0!"},{"$error":"#DIV/0!"}]
[null,null,null,null,null,null,null,null,null,null,0,0,0,{"$error":"#DIV/0!"},{"$error":"#DIV/0!"}]
[null,null,null,null,null,null,null,null,null,null,0,0,0,{"$error":"#DIV/0!"},{"$error":"#DIV/0!"}]
[null,null,null,null,null,null,null,null,null,null,0,0,0,{"$error":"#DIV/0!"},{"$error":"#DIV/0!"}]
[null,null,null,null,null,null,null,null,null,null,0,0,0,{"$error":"#DIV/0!"},{"$error":"#DIV/0!"}]
[null,null,null,null,null,null,null,null,null,null,0,0,0,{"$error":"#DIV/0!"},{"$error":"#DIV/0!"}]
[null,null,null,null,null,null,null,null,null,null,0,0,0,{"$error":"#DIV/0!"},{"$error":"#DIV/0!"}]
[null,null,null,null,null,null,null,null,null,null,0,0,0,{"$error":"#DIV/0!"},{"$error":"#DIV/0!"}]
[null,null,null,null,null,null,null,null,null,null,0,0,0,{"$error":"#DIV/0!"},{"$error":"#DIV/0!"}]
[null,null,null,null,null,null,null,null,null,null,0,0,0,{"$error":"#DIV/0!"},{"$error":"#DIV/0!"}]
[null,null,null,null,null,null,null,null,null,null,0,0,0,{"$error":"#DIV/0!"},{"$error":"#DIV/0!"}]
[null,null,null,null,null,null,null,null,null,null,0,0,0,{"$error":"#DIV/0!"},{"$error":"#DIV/0!"}]
[null,null,null,null,null,null,null,null,null,null,0,0,0,{"$error":"#DIV/0!"},{"$error":"#DIV/0!"}]
[null,null,null,null,null,null,null,null,null,null,0,0,0,{"$error":"#DIV/0!"},{"$error":"#DIV/0!"}]
[null,null,null,null,null,null,null,null,null,null,0,0,0,{"$error":"#DIV/0!"},{"$error":"#DIV/0!"}]
[null,null,null,null,null,null,null,null,null,null,{"$f":"SUM(J953*0.1)","v":0},{"$f":"SUM(J953*0.3)","v":0},{"$f":"SUM(J953-L953)","v":0},{"$f":"SUM(G953-J953)/G953","v":{"$error":"#DIV/0!"}},{"$f":"SUM(H953-N953)","v":{"$error":"#DIV/0!"}}]
[null,null,null,null,null,null,null,null,null,null,{"$f":"SUM(J954*0.1)","v":0},{"$f":"SUM(J954*0.3)","v":0},{"$f":"SUM(J954-L954)","v":0},{"$f":"SUM(G954-J954)/G954","v":{"$error":"#DIV/0!"}},{"$f":"SUM(H954-N954)","v":{"$error":"#DIV/0!"}}]
[null,null,null,null,null,null,null,null,null,null,{"$f":"SUM(J955*0.1)","v":0},{"$f":"SUM(J955*0.3)","v":0},{"$f":"SUM(J955-L955)","v":0},{"$f":"SUM(G955-J955)/G955","v":{"$error":"#DIV/0!"}},{"$f":"SUM(H955-N955)","v":{"$error":"#DIV/0!"}}]
[null,null,null,null,null,null,null,null,null,null,{"$f":"SUM(J956*0.1)","v":0},{"$f":"SUM(J956*0.3)","v":0},{"$f":"SUM(J956-L956)","v":0},{"$f":"SUM(G956-J956)/G956","v":{"$error":"#DIV/0!"}},{"$f":"SUM(H956-N956)","v":{"$error":"#DIV/0!"}}]
[null,null,null,null,null,null,null,null,null,null,{"$f":"SUM(J957*0.1)","v":0},{"$f":"SUM(J957*0.3)","v":0},{"$f":"SUM(J957-L957)","v":0},{"$f":"SUM(G957-J957)/G957","v":{"$error":"#DIV/0!"}},{"$f":"SUM(H957-N957)","v":{"$error":"#DIV/0!"}}]
[null,null,null,null,null,null,null,null,null,null,{"$f":"J958*0.1","v":0},{"$f":"J958*0.3","v":0},{"$f":"J958-L958","v":0},{"$f":"(G958-J958)/G958","v":{"$error":"#DIV/0!"}},{"$f":"H958-N958","v":{"$error":"#DIV/0!"}}]
[null,null,null,null,null,null,null,null,null,null,0,0,0,{"$error":"#DIV/0!"},{"$error":"#DIV/0!"}]
[null,null,null,null,null,null,null,null,null,null,0,0,0,{"$error":"#DIV/0!"},{"$error":"#DIV/0!"}]
[null,null,null,null,null,null,null,null,null,null,0,0,0,{"$error":"#DIV/0!"},{"$error":"#DIV/0!"}]
[null,null,null,null,null,null,null,null,null,null,0,0,0,{"$error":"#DIV/0!"},{"$error":"#DIV/0!"}]
[null,null,null,null,null,null,null,null,null,null,0,0,0,{"$error":"#DIV/0!"},{"$error":"#DIV/0!"}]
[null,null,null,null,null,null,null,null,null,null,0,0,0,{"$error":"#DIV/0!"},{"$error":"#DIV/0!"}]
[null,null,null,null,null,null,null,null,null,null,{"$f":"SUM(J965*0.1)","v":0},{"$f":"SUM(J965*0.3)","v":0},{"$f":"SUM(J965-L965)","v":0},{"$f":"SUM(G965-J965)/G965","v":{"$error":"#DIV/0!"}},{"$f":"SUM(H965-N965)","v":{"$error":"#DIV/0!"}}]
[null,null,null,null,null,null,null,null,null,null,0,0,0,{"$error":"#DIV/0!"},{"$error":"#DIV/0!"}]
[null,null,null,null,null,null,null,null,null,null,0,0,0,{"$error":"#DIV/0!"},{"$error":"#DIV/0!"}]
[null,null,null,null,null,null,null,null,null,null,0,0,0,{"$error":"#DIV/0!"},{"$error":"#DIV/0!"}]
[null,null,null,null,null,null,null,null,null,null,0,0,0,{"$error":"#DIV/0!"},{"$error":"#DIV/0!"}]
[null,null,null,null,null,null,null,null,null,null,0,0,0,{"$error":"#DIV/0!"},{"$error":"#DIV/0!"}]
[null,null,null,null,null,null,null,null,null,null,0,0,0,{"$error":"#DIV/0!"},{"$error":"#DIV/0!"}]
[null,null,null,null,null,null,null,null,null,null,{"$f":"J972*0.1","v":0},{"$f":"J972*0.3","v":0},{"$f":"J972-L972","v":0},{"$f":"(G972-J972)/G972","v":{"$error":"#DIV/0!"}},{"$f":"H972-N972","v":{"$error":"#DIV/0!"}}]
[null,null,null,null,null,null,null,null,null,null,0,0,0,{"$error":"#DIV/0!"},{"$error":"#DIV/0!"}]
[null,null,null,null,null,null,null,null,null,null,0,0,0,{"$error":"#DIV/0!"},{"$error":"#DIV/0!"}]
[null,null,null,null,null,null,null,null,null,null,0,0,0,{"$error":"#DIV/0!"},{"$error":"#DIV/0!"}]
[null,null,null,null,null,null,null,null,null,null,0,0,0,{"$error":"#DIV/0!"},{"$error":"#DIV/0!"}]
[null,null,null,null,null,null,null,null,null,null,0,0,0,{"$error":"#DIV/0!"},{"$error":"#DIV/0!"}]
[null,null,null,null,null,null,null,null,null,null,0,0,0,{"$error":"#DIV/0!"},{"$error":"#DIV/0!"}]
[null,null,null,null,null,null,null,null,null,null,0,0,0,{"$error":"#DIV/0!"},{"$error":"#DIV/0!"}]
[null,null,null,null,null,null,null,null,null,null,0,0,0,{"$error":"#DIV/0!"},{"$error":"#DIV/0!"}]
[null,null,null,null,null,null,null,null,null,null,0,0,0,{"$error":"#DIV/0!"},{"$error":"#DIV/0!"}]
[null,null,null,null,null,null,null,null,null,null,0,0,0,{"$error":"#DIV/0!"},{"$error":"#DIV/0!"}]
[null,null,null,null,null,null,null,null,null,null,0,0,0,{"$error":"#DIV/0!"},{"$error":"#DIV/0!"}]
[null,null,null,null,null,null,null,null,null,null,0,0,0,{"$error":"#DIV/0!"},{"$error":"#DIV/0!"}]
[null,null,null,null,null,null,null,null,null,null,0,0,0,{"$error":"#DIV/0!"},{"$error":"#DIV/0!"}]
[null,null,null,null,null,null,null,null,null,null,0,0,0,{"$error":"#DIV/0!"},{"$error":"#DIV/0!"}]
[null,null,null,null,null,null,null,null,null,null,0,0,0,{"$error":"#DIV/0!"},{"$error":"#DIV/0!"}]
[null,null,null,null,null,null,null,null,null,null,0,0,0,{"$error":"#DIV/0!"},{"$error":"#DIV/0!"}]
[null,null,null,null,null,null,null,null,null,null,0,0,0,{"$error":"#DIV/0!"},{"$error":"#DIV/0!"}]
[null,null,null,null,null,null,null,null,null,null,0,0,0,{"$error":"#DIV/0!"},{"$error":"#DIV/0!"}]
[null,null,null,null,null,null,null,null,null,null,0,0,0,{"$error":"#DIV/0!"},{"$error":"#DIV/0!"}]
[null,null,null,null,null,null,null,null,null,null,0,0,0,{"$error":"#DIV/0!"},{"$error":"#DIV/0!"}]
[null,null,null,null,null,null,null,null,null,null,0,0,0,{"$error":"#DIV/0!"},{"$error":"#DIV/0!"}]
[null,null,null,null,null,null,null,null,null,null,0,0,0,{"$error":"#DIV/0!"},{"$error":"#DIV/0!"}]
[null,null,null,null,null,null,null,null,null,null,0,0,0,{"$error":"#DIV/0!"},{"$error":"#DIV/0!"}]
[null,null,null,null,null,null,null,null,null,null,0,0,0,{"$error":"#DIV/0!"},{"$error":"#DIV/0!"}]
[null,null,null,null,null,null,null,null,null,null,0,0,0,{"$error":"#DIV/0!"},{"$error":"#DIV/0!"}]
[null,null,null,null,null,null,null,null,null,null,0,0,0,{"$error":"#DIV/0!"},{"$error":"#DIV/0!"}]
[null,null,null,null,null,null,null,null,null,null,0,0,0,{"$error":"#DIV/0!"},{"$error":"#DIV/0!"}]
[null,null,null,null,null,null,null,null,null,null,0,0,0,{"$error":"#DIV/0!"},{"$error":"#DIV/0!"}]
[null,null,null,null,null,null,null,null,null,null,0,0,0,{"$error":"#DIV/0!"},{"$error":"#DIV/0!"}]
[null,null,null,null,null,null,null,null,null,null,0,0,0,{"$error":"#DIV/0!"},{"$error":"#DIV/0!"}]
[null,null,null,null,null,null,null,null,null,null,0,0,0,{"$error":"#DIV/0!"},{"$error":"#DIV/0!"}]
[null,null,null,null,null,null,null,null,null,null,0,0,0,{"$error":"#DIV/0!"},{"$error":"#DIV/0!"}]
[null,null,null,null,null,null,null,null,null,null,0,0,0,{"$error":"#DIV/0!"},{"$error":"#DIV/0!"}]
[null,null,null,null,null,null,null,null,null,null,{"$f":"SUM(J1006*0.1)","v":0},{"$f":"SUM(J1006*0.3)","v":0},{"$f":"SUM(J1006-L1006)","v":0},{"$f":"SUM(G1006-J1006)/G1006","v":{"$error":"#DIV/0!"}},{"$f":"SUM(H1006-N1006)","v":{"$error":"#DIV/0!"}}]
[null,null,null,null,null,null,null,null,null,null,0,0,0,{"$error":"#DIV/0!"},{"$error":"#DIV/0!"}]
[null,null,null,null,null,null,null,null,null,null,0,0,0,{"$error":"#DIV/0!"},{"$error":"#DIV/0!"}]
[null,null,null,null,null,null,null,null,null,null,0,0,0,{"$error":"#DIV/0!"},{"$error":"#DIV/0!"}]
[null,null,null,null,null,null,null,null,null,null,0,0,0,{"$error":"#DIV/0!"},{"$error":"#DIV/0!"}]
[null,null,null,null,null,null,null,null,null,null,0,0,0,{"$error":"#DIV/0!"},{"$error":"#DIV/0!"}]
[null,null,null,null,null,null,null,null,null,null,0,0,0,{"$error":"#DIV/0!"},{"$error":"#DIV/0!"}]
[null,null,null,null,null,null,null,null,null,null,{"$f":"J1013*0.1","v":0},{"$f":"J1013*0.3","v":0},{"$f":"J1013-L1013","v":0},{"$f":"(G1013-J1013)/G1013","v":{"$error":"#DIV/0!"}},{"$f":"H1013-N1013","v":{"$error":"#DIV/0!"}}]
[null,null,null,null,null,null,null,null,null,null,0,0,0,{"$error":"#DIV/0!"},{"$error":"#DIV/0!"}]
[null,null,null,null,null,null,null,null,null,null,0,0,0,{"$error":"#DIV/0!"},{"$error":"#DIV/0!"}]
[null,null,null,null,null,null,null,null,null,null,0,0,0,{"$error":"#DIV/0!"},{"$error":"#DIV/0!"}]
[null,null,null,null,null,null,null,null,null,null,0,0,0,{"$error":"#DIV/0!"},{"$error":"#DIV/0!"}]
[null,null,null,null,null,null,null,null,null,null,0,0,0,{"$error":"#DIV/0!"},{"$error":"#DIV/0!"}]
[null,null,null,null,null,null,null,null,null,null,0,0,0,{"$error":"#DIV/0!"},{"$error":"#DIV/0!"}]
[null,null,null,null,null,null,null,null,null,null,0,0,0,{"$error":"#DIV/0!"},{"$error":"#DIV/0!"}]
[null,null,null,null,null,null,null,null,null,null,0,0,0,{"$error":"#DIV/0!"},{"$error":"#DIV/0!"}]
[null,null,null,null,null,null,null,null,null,null,0,0,0,{"$error":"#DIV/0!"},{"$error":"#DIV/0!"}]
[null,null,null,null,null,null,null,null,null,null,0,0,0,{"$error":"#DIV/0!"},{"$error":"#DIV/0!"}]
[null,null,null,null,null,null,null,null,null,null,0,0,0,{"$error":"#DIV/0!"},{"$error":"#DIV/0!"}]
[null,null,null,null,null,null,null,null,null,null,0,0,0,{"$error":"#DIV/0!"},{"$error":"#DIV/0!"}]
[null,null,null,null,null,null,null,null,null,null,0,0,0,{"$error":"#DIV/0!"},{"$error":"#DIV/0!"}]
[null,null,null,null,null,null,null,null,null,null,0,0,0,{"$error":"#DIV/0!"},{"$error":"#DIV/0!"}]
[null,null,null,null,null,null,null,null,null,null,0,0,0,{"$error":"#DIV/0!"},{"$error":"#DIV/0!"}]
[null,null,null,null,null,null,null,null,null,null,0,0,0,{"$error":"#DIV/0!"},{"$error":"#DIV/0!"}]
[null,null,null,null,null,null,null,null,null,null,0,0,0,{"$error":"#DIV/0!"},{"$error":"#DIV/0!"}]
[null,null,null,null,null,null,null,null,null,null,0,0,0,{"$error":"#DIV/0!"},{"$error":"#DIV/0!"}]
[null,null,null,null,null,null,null,null,null,null,0,0,0,{"$error":"#DIV/0!"},{"$error":"#DIV/0!"}]
[null,null,null,null,null,null,null,null,null,null,0,0,0,{"$error":"#DIV/0!"},{"$error":"#DIV/0!"}]
[null,null,null,null,null,null,null,null,null,null,0,0,0,{"$error":"#DIV/0!"},{"$error":"#DIV/0!"}]
[null,null,null,null,null,null,null,null,null,null,{"$f":"SUM(J1035*0.1)","v":0},{"$f":"SUM(J1035*0.3)","v":0},{"$f":"SUM(J1035-L1035)","v":0},{"$f":"SUM(G1035-J1035)/G1035","v":{"$error":"#DIV/0!"}},{"$f":"SUM(H1035-N1035)","v":{"$error":"#DIV/0!"}}]
[null,null,null,null,null,null,null,null,null,null,0,0,0,{"$error":"#DIV/0!"},{"$error":"#DIV/0!"}]
[null,null,null,null,null,null,null,null,null,null,0,0,0,{"$error":"#DIV/0!"},{"$error":"#DIV/0!"}]
[null,null,null,null,null,null,null,null,null,null,0,0,0,{"$error":"#DIV/0!"},{"$error":"#DIV/0!"}]
[null,null,null,null,null,null,null,null,null,null,0,0,0,{"$error":"#DIV/0!"},{"$error":"#DIV/0!"}]
[null,null,null,null,null,null,null,null,null,null,0,0,0,{"$error":"#DIV/0!"},{"$error":"#DIV/0!"}]
[null,null,null,null,null,null,null,null,null,null,0,0,0,{"$error":"#DIV/0!"},{"$error":"#DIV/0!"}]
[null,null,null,null,null,null,null,null,null,null,0,0,0,{"$error":"#DIV/0!"},{"$error":"#DIV/0!"}]
[null,null,null,null,null,null,null,null,null,null,0,0,0,{"$error":"#DIV/0!"},{"$error":"#DIV/0!"}]
[null,null,null,null,null,null,null,null,null,null,0,0,0,{"$error":"#DIV/0!"},{"$error":"#DIV/0!"}]
[null,null,null,null,null,null,null,null,null,null,0,0,0,{"$error":"#DIV/0!"},{"$error":"#DIV/0!"}]
[null,null,null,null,null,null,null,null,null,null,{"$f":"J1046*0.1","v":0},{"$f":"J1046*0.3","v":0},{"$f":"J1046-L1046","v":0},{"$f":"(G1046-J1046)/G1046","v":{"$error":"#DIV/0!"}},{"$f":"H1046-N1046","v":{"$error":"#DIV/0!"}}]
[null,null,null,null,null,null,null,null,null,null,0,0,0,{"$error":"#DIV/0!"},{"$error":"#DIV/0!"}]
[null,null,null,null,null,null,null,null,null,null,0,0,0,{"$error":"#DIV/0!"},{"$error":"#DIV/0!"}]
[null,null,null,null,null,null,null,null,null,null,0,0,0,{"$error":"#DIV/0!"},{"$error":"#DIV/0!"}]
[null,null,null,null,null,null,null,null,null,null,0,0,0,{"$error":"#DIV/0!"},{"$error":"#DIV/0!"}]
[null,null,null,null,null,null,null,null,null,null,0,0,0,{"$error":"#DIV/0!"},{"$error":"#DIV/0!"}]
[null,null,null,null,null,null,null,null,null,null,0,0,0,{"$error":"#DIV/0!"},{"$error":"#DIV/0!"}]
[null,null,null,null,null,null,null,null,null,null,0,0,0,{"$error":"#DIV/0!"},{"$error":"#DIV/0!"}]
[null,null,null,null,null,null,null,null,null,null,0,0,0,{"$error":"#DIV/0!"},{"$error":"#DIV/0!"}]
[null,null,null,null,null,null,null,null,null,null,0,0,0,{"$error":"#DIV/0!"},{"$error":"#DIV/0!"}]
[null,null,null,null,null,null,null,null,null,null,0,0,0,{"$error":"#DIV/0!"},{"$error":"#DIV/0!"}]
[null,null,null,null,null,null,null,null,null,null,0,0,0,{"$error":"#DIV/0!"},{"$error":"#DIV/0!"}]
[null,null,null,null,null,null,null,null,null,null,0,0,0,{"$error":"#DIV/0!"},{"$error":"#DIV/0!"}]
[null,null,null,null,null,null,null,null,null,null,0,0,0,{"$error":"#DIV/0!"},{"$error":"#DIV/0!"}]
[null,null,null,null,null,null,null,null,null,null,0,0,0,{"$error":"#DIV/0!"},{"$error":"#DIV/0!"}]
[null,null,null,null,null,null,null,null,null,null,0,0,0,{"$error":"#DIV/0!"},{"$error":"#DIV/0!"}]
[null,null,null,null,null,null,null,null,null,null,0,0,0,{"$error":"#DIV/0!"},{"$error":"#DIV/0!"}]
[null,null,null,null,null,null,null,null,null,null,0,0,0,{"$error":"#DIV/0!"},{"$error":"#DIV/0!"}]
[null,null,null,null,null,null,null,null,null,null,0,0,0,{"$error":"#DIV/0!"},{"$error":"#DIV/0!"}]
[null,null,null,null,null,null,null,null,null,null,0,0,0,{"$error":"#DIV/0!"},{"$error":"#DIV/0!"}]
[null,null,null,null,null,null,null,null,null,null,0,0,0,{"$error":"#DIV/0!"},{"$error":"#DIV/0!"}]
[null,null,null,null,null,null,null,null,null,null,0,0,0,{"$error":"#DIV/0!"},{"$error":"#DIV/0!"}]
[null,null,null,null,null,null,null,null,null,null,0,0,0,{"$error":"#DIV/0!"},{"$error":"#DIV/0!"}]
[null,null,null,null,null,null,null,null,null,null,0,0,0,{"$error":"#DIV/0!"},{"$error":"#DIV/0!"}]
[null,null,null,null,null,null,null,null,null,null,0,0,0,{"$error":"#DIV/0!"},{"$error":"#DIV/0!"}]
[null,null,null,null,null,null,null,null,null,null,0,0,0,{"$error":"#DIV/0!"},{"$error":"#DIV/0!"}]
[null,null,null,null,null,null,null,null,null,null,0,0,0,{"$error":"#DIV/0!"},{"$error":"#DIV/0!"}]
[null,null,null,null,null,null,null,null,null,null,0,0,0,{"$error":"#DIV/0!"},{"$error":"#DIV/0!"}]
[null,null,null,null,null,null,null,null,null,null,0,0,0,{"$error":"#DIV/0!"},{"$error":"#DIV/0!"}]
[null,null,null,null,null,null,null,null,null,null,0,0,0,{"$error":"#DIV/0!"},{"$error":"#DIV/0!"}]
[null,null,null,null,null,null,null,null,null,null,0,0,0,{"$error":"#DIV/0!"},{"$error":"#DIV/0!"}]
[null,null,null,null,null,null,null,null,null,null,0,0,0,{"$error":"#DIV/0!"},{"$error":"#DIV/0!"}]
[null,null,null,null,null,null,null,null,null,null,0,0,0,{"$error":"#DIV/0!"},{"$error":"#DIV/0!"}]
[null,null,null,null,null,null,null,null,null,null,0,0,0,{"$error":"#DIV/0!"},{"$error":"#DIV/0!"}]
[null,null,null,null,null,null,null,null,null,null,0,0,0,{"$error":"#DIV/0!"},{"$error":"#DIV/0!"}]
[null,null,null,null,null,null,null,null,null,null,0,0,0,{"$error":"#DIV/0!"},{"$error":"#DIV/0!"}]
[null,null,null,null,null,null,null,null,null,null,0,0,0,{"$error":"#DIV/0!"},{"$error":"#DIV/0!"}]
[null,null,null,null,null,null,null,null,null,null,0,0,0,{"$error":"#DIV/0!"},{"$error":"#DIV/0!"}]
[null,null,null,null,null,null,null,null,null,null,0,0,0,{"$error":"#DIV/0!"},{"$error":"#DIV/0!"}]
[null,null,null,null,null,null,null,null,null,null,0,0,0,{"$error":"#DIV/0!"},{"$error":"#DIV/0!"}]
[null,null,null,null,null,null,null,null,null,null,0,0,0,{"$error":"#DIV/0!"},{"$error":"#DIV/0!"}]
[null,null,null,null,null,null,null,null,null,null,0,0,0,{"$error":"#DIV/0!"},{"$error":"#DIV/0!"}]
[null,null,null,null,null,null,null,null,null,null,0,0,0,{"$error":"#DIV/0!"},{"$error":"#DIV/0!"}]
[null,null,null,null,null,null,null,null,null,null,0,0,0,{"$error":"#DIV/0!"},{"$error":"#DIV/0!"}]
[null,null,null,null,null,null,null,null,null,null,{"$f":"SUM(J1090*0.1)","v":0},{"$f":"SUM(J1090*0.3)","v":0},{"$f":"SUM(J1090-L1090)","v":0},{"$f":"SUM(G1090-J1090)/G1090","v":{"$error":"#DIV/0!"}},{"$f":"SUM(H1090-N1090)","v":{"$error":"#DIV/0!"}}]
[null,null,null,null,null,null,null,null,null,null,0,0,0,{"$error":"#DIV/0!"},{"$error":"#DIV/0!"}]
[null,null,null,null,null,null,null,null,null,null,0,0,0,{"$error":"#DIV/0!"},{"$error":"#DIV/0!"}]
[null,null,null,null,null,null,null,null,null,null,0,0,0,{"$error":"#DIV/0!"},{"$error":"#DIV/0!"}]
[null,null,null,null,null,null,null,null,null,null,0,0,0,{"$error":"#DIV/0!"},{"$error":"#DIV/0!"}]
[null,null,null,null,null,null,null,null,null,null,0,0,0,{"$error":"#DIV/0!"},{"$error":"#DIV/0!"}]
[null,null,null,null,null,null,null,null,null,null,0,0,0,{"$error":"#DIV/0!"},{"$error":"#DIV/0!"}]
[null,null,null,null,null,null,null,null,null,null,0,0,0,{"$error":"#DIV/0!"},{"$error":"#DIV/0!"}]
[null,null,null,null,null,null,null,null,null,null,0,0,0,{"$error":"#DIV/0!"},{"$error":"#DIV/0!"}]
[null,null,null,null,null,null,null,null,null,null,0,0,0,{"$error":"#DIV/0!"},{"$error":"#DIV/0!"}]
[null,null,null,null,null,null,null,null,null,null,0,0,0,{"$error":"#DIV/0!"},{"$error":"#DIV/0!"}]
[null,null,null,null,null,null,null,null,null,null,0,0,0,{"$error":"#DIV/0!"},{"$error":"#DIV/0!"}]
[null,null,null,null,null,null,null,null,null,null,0,0,0,{"$error":"#DIV/0!"},{"$error":"#DIV/0!"}]
[null,null,null,null,null,null,null,null,null,null,0,0,0,{"$error":"#DIV/0!"},{"$error":"#DIV/0!"}]
[null,null,null,null,null,null,null,null,null,null,{"$f":"J1104*0.1","v":0},{"$f":"J1104*0.3","v":0},{"$f":"J1104-L1104","v":0},{"$f":"(G1104-J1104)/G1104","v":{"$error":"#DIV/0!"}},{"$f":"H1104-N1104","v":{"$error":"#DIV/0!"}}]
[null,null,null,null,null,null,null,null,null,null,0,0,0,{"$error":"#DIV/0!"},{"$error":"#DIV/0!"}]
[null,null,null,null,null,null,null,null,null,null,0,0,0,{"$error":"#DIV/0!"},{"$error":"#DIV/0!"}]
[null,null,null,null,null,null,null,null,null,null,0,0,0,{"$error":"#DIV/0!"},{"$error":"#DIV/0!"}]
[null,null,null,null,null,null,null,null,null,null,0,0,0,{"$error":"#DIV/0!"},{"$error":"#DIV/0!"}]
[null,null,null,null,null,null,null,null,null,null,0,0,0,{"$error":"#DIV/0!"},{"$error":"#DIV/0!"}]
[null,null,null,null,null,null,null,null,null,null,0,0,0,{"$error":"#DIV/0!"},{"$error":"#DIV/0!"}]
[null,null,null,null,null,null,null,null,null,null,0,0,0,{"$error":"#DIV/0!"},{"$error":"#DIV/0!"}]
[null,null,null,null,null,null,null,null,null,null,0,0,0,{"$error":"#DIV/0!"},{"$error":"#DIV/0!"}]
[null,null,null,null,null,null,null,null,null,null,0,0,0,{"$error":"#DIV/0!"},{"$error":"#DIV/0!"}]
[null,null,null,null,null,null,null,null,null,null,0,0,0,{"$error":"#DIV/0!"},{"$error":"#DIV/0!"}]
[null,null,null,null,null,null,null,null,null,null,0,0,0,{"$error":"#DIV/0!"},{"$error":"#DIV/0!"}]
[null,null,null,null,null,null,null,null,null,null,0,0,0,{"$error":"#DIV/0!"},{"$error":"#DIV/0!"}]
[null,null,null,null,null,null,null,null,null,null,0,0,0,{"$error":"#DIV/0!"},{"$error":"#DIV/0!"}]
[null,null,null,null,null,null,null,null,null,null,0,0,0,{"$error":"#DIV/0!"},{"$error":"#DIV/0!"}]
[null,null,null,null,null,null,null,null,null,null,0,0,0,{"$error":"#DIV/0!"},{"$error":"#DIV/0!"}]
[null,null,null,null,null,null,null,null,null,null,0,0,0,{"$error":"#DIV/0!"},{"$error":"#DIV/0!"}]
[null,null,null,null,null,null,null,null,null,null,0,0,0,{"$error":"#DIV/0!"},{"$error":"#DIV/0!"}]
[null,null,null,null,null,null,null,null,null,null,0,0,0,{"$error":"#DIV/0!"},{"$error":"#DIV/0!"}]
[null,null,null,null,null,null,null,null,null,null,0,0,0,{"$error":"#DIV/0!"},{"$error":"#DIV/0!"}]
[null,null,null,null,null,null,null,null,null,null,0,0,0,{"$error":"#DIV/0!"},{"$error":"#DIV/0!"}]
[null,null,null,null,null,null,null,null,null,null,0,0,0,{"$error":"#DIV/0!"},{"$error":"#DIV/0!"}]
[null,null,null,null,null,null,null,null,null,null,0,0,0,{"$error":"#DIV/0!"},{"$error":"#DIV/0!"}]
[null,null,null,null,null,null,null,null,null,null,0,0,0,{"$error":"#DIV/0!"},{"$error":"#DIV/0!"}]
[null,null,null,null,null,null,null,null,null,null,0,0,0,{"$error":"#DIV/0!"},{"$error":"#DIV/0!"}]
[null,null,null,null,null,null,null,null,null,null,0,0,0,{"$error":"#DIV/0!"},{"$error":"#DIV/0!"}]
[null,null,null,null,null,null,null,null,null,null,0,0,0,{"$error":"#DIV/0!"},{"$error":"#DIV/0!"}]
[null,null,null,null,null,null,null,null,null,null,0,0,0,{"$error":"#DIV/0!"},{"$error":"#DIV/0!"}]
[null,null,null,null,null,null,null,null,null,null,0,0,0,{"$error":"#DIV/0!"},{"$error":"#DIV/0!"}]
[null,null,null,null,null,null,null,null,null,null,0,0,0,{"$error":"#DIV/0!"},{"$error":"#DIV/0!"}]
[null,null,null,null,null,null,null,null,null,null,0,0,0,{"$error":"#DIV/0!"},{"$error":"#DIV/0!"}]
[null,null,null,null,null,null,null,null,null,null,0,0,0,{"$error":"#DIV/0!"},{"$error":"#DIV/0!"}]
[null,null,null,null,null,null,null,null,null,null,{"$f":"J1136*0.1","v":0},{"$f":"J1136*0.3","v":0},{"$f":"J1136-L1136","v":0},{"$f":"(G1136-J1136)/G1136","v":{"$error":"#DIV/0!"}},{"$f":"H1136-N1136","v":{"$error":"#DIV/0!"}}]
[null,null,null,null,null,null,null,null,null,null,0,0,0,{"$error":"#DIV/0!"},{"$error":"#DIV/0!"}]
[null,null,null,null,null,null,null,null,null,null,0,0,0,{"$error":"#DIV/0!"},{"$error":"#DIV/0!"}]
[null,null,null,null,null,null,null,null,null,null,0,0,0,{"$error":"#DIV/0!"},{"$error":"#DIV/0!"}]
[null,null,null,null,null,null,null,null,null,null,0,0,0,{"$error":"#DIV/0!"},{"$error":"#DIV/0!"}]
[null,null,null,null,null,null,null,null,null,null,0,0,0,{"$error":"#DIV/0!"},{"$error":"#DIV/0!"}]
[null,null,null,null,null,null,null,null,null,null,0,0,0,{"$error":"#DIV/0!"},{"$error":"#DIV/0!"}]
[null,null,null,null,null,null,null,null,null,null,0,0,0,{"$error":"#DIV/0!"},{"$error":"#DIV/0!"}]
[null,null,null,null,null,null,null,null,null,null,0,0,0,{"$error":"#DIV/0!"},{"$error":"#DIV/0!"}]
[null,null,null,null,null,null,null,null,null,null,0,0,0,{"$error":"#DIV/0!"},{"$error":"#DIV/0!"}]
[null,null,null,null,null,null,null,null,null,null,0,0,0,{"$error":"#DIV/0!"},{"$error":"#DIV/0!"}]
[null,null,null,null,null,null,null,null,null,null,0,0,0,{"$error":"#DIV/0!"},{"$error":"#DIV/0!"}]
[null,null,null,null,null,null,null,null,null,null,0,0,0,{"$error":"#DIV/0!"},{"$error":"#DIV/0!"}]
[null,null,null,null,null,null,null,null,null,null,0,0,0,{"$error":"#DIV/0!"},{"$error":"#DIV/0!"}]
[null,null,null,null,null,null,null,null,null,null,0,0,0,{"$error":"#DIV/0!"},{"$error":"#DIV/0!"}]
[null,null,null,null,null,null,null,null,null,null,0,0,0,{"$error":"#DIV/0!"},{"$error":"#DIV/0!"}]
[null,null,null,null,null,null,null,null,null,null,0,0,0,{"$error":"#DIV/0!"},{"$error":"#DIV/0!"}]
[null,null,null,null,null,null,null,null,null,null,0,0,0,{"$error":"#DIV/0!"},{"$error":"#DIV/0!"}]
[null,null,null,null,null,null,null,null,null,null,0,0,0,{"$error":"#DIV/0!"},{"$error":"#DIV/0!"}]
[null,null,null,null,null,null,null,null,null,null,0,0,0,{"$error":"#DIV/0!"},{"$error":"#DIV/0!"}]
[null,null,null,null,null,null,null,null,null,null,0,0,0,{"$error":"#DIV/0!"},{"$error":"#DIV/0!"}]
[null,null,null,null,null,null,null,null,null,null,0,0,0,{"$error":"#DIV/0!"},{"$error":"#DIV/0!"}]
[null,null,null,null,null,null,null,null,null,null,0,0,0,{"$error":"#DIV/0!"},{"$error":"#DIV/0!"}]
[null,null,null,null,null,null,null,null,null,null,0,0,0,{"$error":"#DIV/0!"},{"$error":"#DIV/0!"}]
[null,null,null,null,null,null,null,null,null,null,0,0,0,{"$error":"#DIV/0!"},{"$error":"#DIV/0!"}]
[null,null,null,null,null,null,null,null,null,null,0,0,0,{"$error":"#DIV/0!"},{"$error":"#DIV/0!"}]
[null,null,null,null,null,null,null,null,null,null,0,0,0,{"$error":"#DIV/0!"},{"$error":"#DIV/0!"}]
[null,null,null,null,null,null,null,null,null,null,{"$f":"SUM(J1163*0.1)","v":0},{"$f":"SUM(J1163*0.3)","v":0},{"$f":"SUM(J1163-L1163)","v":0},{"$f":"SUM(G1163-J1163)/G1163","v":{"$error":"#DIV/0!"}},{"$f":"SUM(H1163-N1163)","v":{"$error":"#DIV/0!"}}]
[null,null,null,null,null,null,null,null,null,null,0,0,0,{"$error":"#DIV/0!"},{"$error":"#DIV/0!"}]
[null,null,null,null,null,null,null,null,null,null,0,0,0,{"$error":"#DIV/0!"},{"$error":"#DIV/0!"}]
[null,null,null,null,null,null,null,null,null,null,0,0,0,{"$error":"#DIV/0!"},{"$error":"#DIV/0!"}]
[null,null,null,null,null,null,null,null,null,null,0,0,0,{"$error":"#DIV/0!"},{"$error":"#DIV/0!"}]
[null,null,null,null,null,null,null,null,null,null,0,0,0,{"$error":"#DIV/0!"},{"$error":"#DIV/0!"}]
[null,null,null,null,null,null,null,null,null,null,{"$f":"J1169*0.1","v":0},{"$f":"J1169*0.3","v":0},{"$f":"J1169-L1169","v":0},{"$f":"(G1169-J1169)/G1169","v":{"$error":"#DIV/0!"}},{"$f":"H1169-N1169","v":{"$error":"#DIV/0!"}}]
[null,null,null,null,null,null,null,null,null,null,{"$f":"J1170*0.1","v":0},{"$f":"J1170*0.3","v":0},{"$f":"J1170-L1170","v":0},{"$f":"(G1170-J1170)/G1170","v":{"$error":"#DIV/0!"}},{"$f":"H1170-N1170","v":{"$error":"#DIV/0!"}}]
[null,null,null,null,null,null,null,null,null,null,{"$f":"SUM(J1171*0.1)","v":0},{"$f":"SUM(J1171*0.3)","v":0},{"$f":"SUM(J1171-L1171)","v":0},{"$f":"SUM(G1171-J1171)/G1171","v":{"$error":"#DIV/0!"}},{"$f":"SUM(H1171-N1171)","v":{"$error":"#DIV/0!"}}]
[null,null,null,null,null,null,null,null,null,null,{"$f":"SUM(J1172*0.1)","v":0},{"$f":"SUM(J1172*0.3)","v":0},{"$f":"SUM(J1172-L1172)","v":0},{"$f":"SUM(G1172-J1172)/G1172","v":{"$error":"#DIV/0!"}},{"$f":"SUM(H1172-N1172)","v":{"$error":"#DIV/0!"}}]
[null,null,null,null,null,null,null,null,null,null,{"$f":"SUM(J1173*0.1)","v":0},{"$f":"SUM(J1173*0.3)","v":0},{"$f":"SUM(J1173-L1173)","v":0},{"$f":"SUM(G1173-J1173)/G1173","v":{"$error":"#DIV/0!"}},{"$f":"SUM(H1173-N1173)","v":{"$error":"#DIV/0!"}}]
[null,null,null,null,null,null,null,null,null,null,{"$f":"SUM(J1174*0.1)","v":0},{"$f":"SUM(J1174*0.3)","v":0},{"$f":"SUM(J1174-L1174)","v":0},{"$f":"SUM(G1174-J1174)/G1174","v":{"$error":"#DIV/0!"}},{"$f":"SUM(H1174-N1174)","v":{"$error":"#DIV/0!"}}]
[null,null,null,null,null,null,null,null,null,null,{"$f":"SUM(J1175*0.1)","v":0},{"$f":"SUM(J1175*0.3)","v":0},{"$f":"SUM(J1175-L1175)","v":0},{"$f":"SUM(G1175-J1175)/G1175","v":{"$error":"#DIV/0!"}},{"$f":"SUM(H1175-N1175)","v":{"$error":"#DIV/0!"}}]
[null,null,null,null,null,null,null,null,null,null,{"$f":"J1176*0.1","v":0},{"$f":"J1176*0.3","v":0},{"$f":"J1176-L1176","v":0},{"$f":"(G1176-J1176)/G1176","v":{"$error":"#DIV/0!"}},{"$f":"H1176-N1176","v":{"$error":"#DIV/0!"}}]
[null,null,null,null,null,null,null,null,null,null,0,0,0,{"$error":"#DIV/0!"},{"$error":"#DIV/0!"}]
[null,null,null,null,null,null,null,null,null,null,0,0,0,{"$error":"#DIV/0!"},{"$error":"#DIV/0!"}]
[null,null,null,null,null,null,null,null,null,null,0,0,0,{"$error":"#DIV/0!"},{"$error":"#DIV/0!"}]
[null,null,null,null,null,null,null,null,null,null,0,0,0,{"$error":"#DIV/0!"},{"$error":"#DIV/0!"}]
[null,null,null,null,null,null,null,null,null,null,0,0,0,{"$error":"#DIV/0!"},{"$error":"#DIV/0!"}]
[null,null,null,null,null,null,null,null,null,null,0,0,0,{"$error":"#DIV/0!"},{"$error":"#DIV/0!"}]
[null,null,null,null,null,null,null,null,null,null,0,0,0,{"$error":"#DIV/0!"},{"$error":"#DIV/0!"}]
[null,null,null,null,null,null,null,null,null,null,0,0,0,{"$error":"#DIV/0!"},{"$error":"#DIV/0!"}]
[null,null,null,null,null,null,null,null,null,null,0,0,0,{"$error":"#DIV/0!"},{"$error":"#DIV/0!"}]
[null,null,null,null,null,null,null,null,null,null,0,0,0,{"$error":"#DIV/0!"},{"$error":"#DIV/0!"}]
[null,null,null,null,null,null,null,null,null,null,0,0,0,{"$error":"#DIV/0!"},{"$error":"#DIV/0!"}]
[null,null,null,null,null,null,null,null,null,null,0,0,0,{"$error":"#DIV/0!"},{"$error":"#DIV/0!"}]
[null,null,null,null,null,null,null,null,null,null,0,0,0,{"$error":"#DIV/0!"},{"$error":"#DIV/0!"}]
[null,null,null,null,null,null,null,null,null,null,0,0,0,{"$error":"#DIV/0!"},{"$error":"#DIV/0!"}]
[null,null,null,null,null,null,null,null,null,null,0,0,0,{"$error":"#DIV/0!"},{"$error":"#DIV/0!"}]
[null,null,null,null,null,null,null,null,null,null,0,0,0,{"$error":"#DIV/0!"},{"$error":"#DIV/0!"}]
[null,null,null,null,null,null,null,null,null,null,0,0,0,{"$error":"#DIV/0!"},{"$error":"#DIV/0!"}]
[null,null,null,null,null,null,null,null,null,null,0,0,0,{"$error":"#DIV/0!"},{"$error":"#DIV/0!"}]
[null,null,null,null,null,null,null,null,null,null,0,0,0,{"$error":"#DIV/0!"},{"$error":"#DIV/0!"}]
[null,null,null,null,null,null,null,null,null,null,0,0,0,{"$error":"#DIV/0!"},{"$error":"#DIV/0!"}]
[null,null,null,null,null,null,null,null,null,null,0,0,0,{"$error":"#DIV/0!"},{"$error":"#DIV/0!"}]
[null,null,null,null,null,null,null,null,null,null,0,0,0,{"$error":"#DIV/0!"},{"$error":"#DIV/0!"}]
[null,null,null,null,null,null,null,null,null,null,0,0,0,{"$error":"#DIV/0!"},{"$error":"#DIV/0!"}]
[null,null,null,null,null,null,null,null,null,null,0,0,0,{"$error":"#DIV/0!"},{"$error":"#DIV/0!"}]
[null,null,null,null,null,null,null,null,null,null,0,0,0,{"$error":"#DIV/0!"},{"$error":"#DIV/0!"}]
[null,null,null,null,null,null,null,null,null,null,0,0,0,{"$error":"#DIV/0!"},{"$error":"#DIV/0!"}]
[null,null,null,null,null,null,null,null,null,null,0,0,0,{"$error":"#DIV/0!"},{"$error":"#DIV/0!"}]
[null,null,null,null,null,null,null,null,null,null,0,0,0,{"$error":"#DIV/0!"},{"$error":"#DIV/0!"}]
[null,null,null,null,null,null,null,null,null,null,0,0,0,{"$error":"#DIV/0!"},{"$error":"#DIV/0!"}]
[null,null,null,null,null,null,null,null,null,null,0,0,0,{"$error":"#DIV/0!"},{"$error":"#DIV/0!"}]
[null,null,null,null,null,null,null,null,null,null,0,0,0,{"$error":"#DIV/0!"},{"$error":"#DIV/0!"}]
[null,null,null,null,null,null,null,null,null,null,{"$f":"J1208*0.1","v":0},{"$f":"J1208*0.3","v":0},{"$f":"J1208-L1208","v":0},{"$f":"(G1208-J1208)/G1208","v":{"$error":"#DIV/0!"}},{"$f":"H1208-N1208","v":{"$error":"#DIV/0!"}}]
[null,null,null,null,null,null,null,null,null,null,0,0,0,{"$error":"#DIV/0!"},{"$error":"#DIV/0!"}]
[null,null,null,null,null,null,null,null,null,null,0,0,0,{"$error":"#DIV/0!"},{"$error":"#DIV/0!"}]
[null,null,null,null,null,null,null,null,null,null,0,0,0,{"$error":"#DIV/0!"},{"$error":"#DIV/0!"}]
[null,null,null,null,null,null,null,null,null,null,0,0,0,{"$error":"#DIV/0!"},{"$error":"#DIV/0!"}]
[null,null,null,null,null,null,null,null,null,null,0,0,0,{"$error":"#DIV/0!"},{"$error":"#DIV/0!"}]
[null,null,null,null,null,null,null,null,null,null,0,0,0,{"$error":"#DIV/0!"},{"$error":"#DIV/0!"}]
[null,null,null,null,null,null,null,null,null,null,0,0,0,{"$error":"#DIV/0!"},{"$error":"#DIV/0!"}]
[null,null,null,null,null,null,null,null,null,null,0,0,0,{"$error":"#DIV/0!"},{"$error":"#DIV/0!"}]
[null,null,null,null,null,null,null,null,null,null,0,0,0,{"$error":"#DIV/0!"},{"$error":"#DIV/0!"}]
[null,null,null,null,null,null,null,null,null,null,0,0,0,{"$error":"#DIV/0!"},{"$error":"#DIV/0!"}]
[null,null,null,null,null,null,null,null,null,null,0,0,0,{"$error":"#DIV/0!"},{"$error":"#DIV/0!"}]
[null,null,null,null,null,null,null,null,null,null,0,0,0,{"$error":"#DIV/0!"},{"$error":"#DIV/0!"}]
[null,null,null,null,null,null,null,null,null,null,0,0,0,{"$error":"#DIV/0!"},{"$error":"#DIV/0!"}]
[null,null,null,null,null,null,null,null,null,null,0,0,0,{"$error":"#DIV/0!"},{"$error":"#DIV/0!"}]
[null,null,null,null,null,null,null,null,null,null,0,0,0,{"$error":"#DIV/0!"},{"$error":"#DIV/0!"}]
[null,null,null,null,null,null,null,null,null,null,0,0,0,{"$error":"#DIV/0!"},{"$error":"#DIV/0!"}]
[null,null,null,null,null,null,null,null,null,null,0,0,0,{"$error":"#DIV/0!"},{"$error":"#DIV/0!"}]
[null,null,null,null,null,null,null,null,null,null,0,0,0,{"$error":"#DIV/0!"},{"$error":"#DIV/0!"}]
[null,null,null,null,null,null,null,null,null,null,0,0,0,{"$error":"#DIV/0!"},{"$error":"#DIV/0!"}]
[null,null,null,null,null,null,null,null,null,null,0,0,0,{"$error":"#DIV/0!"},{"$error":"#DIV/0!"}]
[null,null,null,null,null,null,null,null,null,null,0,0,0,{"$error":"#DIV/0!"},{"$error":"#DIV/0!"}]
[null,null,null,null,null,null,null,null,null,null,{"$f":"SUM(J1230*0.1)","v":0},{"$f":"SUM(J1230*0.3)","v":0},{"$f":"SUM(J1230-L1230)","v":0},{"$f":"SUM(G1230-J1230)/G1230","v":{"$error":"#DIV/0!"}},{"$f":"SUM(H1230-N1230)","v":{"$error":"#DIV/0!"}}]
[null,null,null,null,null,null,null,null,null,null,{"$f":"SUM(J1231*0.1)","v":0},{"$f":"SUM(J1231*0.3)","v":0},{"$f":"SUM(J1231-L1231)","v":0},{"$f":"SUM(G1231-J1231)/G1231","v":{"$error":"#DIV/0!"}},{"$f":"SUM(H1231-N1231)","v":{"$error":"#DIV/0!"}}]
[null,null,null,null,null,null,null,null,null,null,{"$f":"SUM(J1232*0.1)","v":0},{"$f":"SUM(J1232*0.3)","v":0},{"$f":"SUM(J1232-L1232)","v":0},{"$f":"SUM(G1232-J1232)/G1232","v":{"$error":"#DIV/0!"}},{"$f":"SUM(H1232-N1232)","v":{"$error":"#DIV/0!"}}]
[null,null,null,null,null,null,null,null,null,null,{"$f":"SUM(J1233*0.1)","v":0},{"$f":"SUM(J1233*0.3)","v":0},{"$f":"SUM(J1233-L1233)","v":0},{"$f":"SUM(G1233-J1233)/G1233","v":{"$error":"#DIV/0!"}},{"$f":"SUM(H1233-N1233)","v":{"$error":"#DIV/0!"}}]
[null,null,null,null,null,null,null,null,null,null,{"$f":"J1234*0.1","v":0},{"$f":"J1234*0.3","v":0},{"$f":"J1234-L1234","v":0},{"$f":"(G1234-J1234)/G1234","v":{"$error":"#DIV/0!"}},{"$f":"H1234-N1234","v":{"$error":"#DIV/0!"}}]
[null,null,null,null,null,null,null,null,null,null,{"$f":"J1235*0.1","v":0},{"$f":"J1235*0.3","v":0},{"$f":"J1235-L1235","v":0},{"$f":"(G1235-J1235)/G1235","v":{"$error":"#DIV/0!"}},{"$f":"H1235-N1235","v":{"$error":"#DIV/0!"}}]
[null,null,null,null,null,null,null,null,null,null,{"$f":"J1236*0.1","v":0},{"$f":"J1236*0.3","v":0},{"$f":"J1236-L1236","v":0},{"$f":"(G1236-J1236)/G1236","v":{"$error":"#DIV/0!"}},{"$f":"H1236-N1236","v":{"$error":"#DIV/0!"}}]
[null,null,null,null,null,null,null,null,null,null,{"$f":"J1237*0.1","v":0},{"$f":"J1237*0.3","v":0},{"$f":"J1237-L1237","v":0},{"$f":"(G1237-J1237)/G1237","v":{"$error":"#DIV/0!"}},{"$f":"H1237-N1237","v":{"$error":"#DIV/0!"}}]
[null,null,null,null,null,null,null,null,null,null,{"$f":"J1238*0.1","v":0},{"$f":"J1238*0.3","v":0},{"$f":"J1238-L1238","v":0},{"$f":"(G1238-J1238)/G1238","v":{"$error":"#DIV/0!"}},{"$f":"H1238-N1238","v":{"$error":"#DIV/0!"}}]
[null,null,null,null,null,null,null,null,null,null,{"$f":"SUM(J1239*0.1)","v":0},{"$f":"SUM(J1239*0.3)","v":0},{"$f":"SUM(J1239-L1239)","v":0},{"$f":"SUM(G1239-J1239)/G1239","v":{"$error":"#DIV/0!"}},{"$f":"SUM(H1239-N1239)","v":{"$error":"#DIV/0!"}}]
[null,null,null,null,null,null,null,null,null,null,{"$f":"SUM(J1240*0.1)","v":0},{"$f":"SUM(J1240*0.3)","v":0},{"$f":"SUM(J1240-L1240)","v":0},{"$f":"SUM(G1240-J1240)/G1240","v":{"$error":"#DIV/0!"}},{"$f":"SUM(H1240-N1240)","v":{"$error":"#DIV/0!"}}]
[null,null,null,null,null,null,null,null,null,null,{"$f":"SUM(J1241*0.1)","v":0},{"$f":"SUM(J1241*0.3)","v":0},{"$f":"SUM(J1241-L1241)","v":0},{"$f":"SUM(G1241-J1241)/G1241","v":{"$error":"#DIV/0!"}},{"$f":"SUM(H1241-N1241)","v":{"$error":"#DIV/0!"}}]
[null,null,null,null,null,null,null,null,null,null,{"$f":"SUM(J1242*0.1)","v":0},{"$f":"SUM(J1242*0.3)","v":0},{"$f":"SUM(J1242-L1242)","v":0},{"$f":"SUM(G1242-J1242)/G1242","v":{"$error":"#DIV/0!"}},{"$f":"SUM(H1242-N1242)","v":{"$error":"#DIV/0!"}}]
[null,null,null,null,null,null,null,null,null,null,{"$f":"SUM(J1243*0.1)","v":0},{"$f":"SUM(J1243*0.3)","v":0},{"$f":"SUM(J1243-L1243)","v":0},{"$f":"SUM(G1243-J1243)/G1243","v":{"$error":"#DIV/0!"}},{"$f":"SUM(H1243-N1243)","v":{"$error":"#DIV/0!"}}]
[null,null,null,null,null,null,null,null,null,null,{"$f":"J1244*0.1","v":0},{"$f":"J1244*0.3","v":0},{"$f":"J1244-L1244","v":0},{"$f":"(G1244-J1244)/G1244","v":{"$error":"#DIV/0!"}},{"$f":"H1244-N1244","v":{"$error":"#DIV/0!"}}]
[null,null,null,null,null,null,null,null,null,null,0,0,0,{"$error":"#DIV/0!"},{"$error":"#DIV/0!"}]
[null,null,null,null,null,null,null,null,null,null,0,0,0,{"$error":"#DIV/0!"},{"$error":"#DIV/0!"}]
[null,null,null,null,null,null,null,null,null,null,0,0,0,{"$error":"#DIV/0!"},{"$error":"#DIV/0!"}]
[null,null,null,null,null,null,null,null,null,null,0,0,0,{"$error":"#DIV/0!"},{"$error":"#DIV/0!"}]
[null,null,null,null,null,null,null,null,null,null,0,0,0,{"$error":"#DIV/0!"},{"$error":"#DIV/0!"}]
[null,null,null,null,null,null,null,null,null,null,0,0,0,{"$error":"#DIV/0!"},{"$error":"#DIV/0!"}]
[null,null,null,null,null,null,null,null,null,null,0,0,0,{"$error":"#DIV/0!"},{"$error":"#DIV/0!"}]
[null,null,null,null,null,null,null,null,null,null,0,0,0,{"$error":"#DIV/0!"},{"$error":"#DIV/0!"}]
[null,null,null,null,null,null,null,null,null,null,0,0,0,{"$error":"#DIV/0!"},{"$error":"#DIV/0!"}]
[null,null,null,null,null,null,null,null,null,null,0,0,0,{"$error":"#DIV/0!"},{"$error":"#DIV/0!"}]
[null,null,null,null,null,null,null,null,null,null,0,0,0,{"$error":"#DIV/0!"},{"$error":"#DIV/0!"}]
[null,null,null,null,null,null,null,null,null,null,0,0,0,{"$error":"#DIV/0!"},{"$error":"#DIV/0!"}]
[null,null,null,null,null,null,null,null,null,null,0,0,0,{"$error":"#DIV/0!"},{"$error":"#DIV/0!"}]
[null,null,null,null,null,null,null,null,null,null,0,0,0,{"$error":"#DIV/0!"},{"$error":"#DIV/0!"}]
[null,null,null,null,null,null,null,null,null,null,0,0,0,{"$error":"#DIV/0!"},{"$error":"#DIV/0!"}]
[null,null,null,null,null,null,null,null,null,null,0,0,0,{"$error":"#DIV/0!"},{"$error":"#DIV/0!"}]
[null,null,null,null,null,null,null,null,null,null,0,0,0,{"$error":"#DIV/0!"},{"$error":"#DIV/0!"}]
[null,null,null,null,null,null,null,null,null,null,0,0,0,{"$error":"#DIV/0!"},{"$error":"#DIV/0!"}]
[null,null,null,null,null,null,null,null,null,null,0,0,0,{"$error":"#DIV/0!"},{"$error":"#DIV/0!"}]
[null,null,null,null,null,null,null,null,null,null,0,0,0,{"$error":"#DIV/0!"},{"$error":"#DIV/0!"}]
[null,null,null,null,null,null,null,null,null,null,0,0,0,{"$error":"#DIV/0!"},{"$error":"#DIV/0!"}]
[null,null,null,null,null,null,null,null,null,null,0,0,0,{"$error":"#DIV/0!"},{"$error":"#DIV/0!"}]
[null,null,null,null,null,null,null,null,null,null,0,0,0,{"$error":"#DIV/0!"},{"$error":"#DIV/0!"}]
[null,null,null,null,null,null,null,null,null,null,0,0,0,{"$error":"#DIV/0!"},{"$error":"#DIV/0!"}]
[null,null,null,null,null,null,null,null,null,null,0,0,0,{"$error":"#DIV/0!"},{"$error":"#DIV/0!"}]
[null,null,null,null,null,null,null,null,null,null,0,0,0,{"$error":"#DIV/0!"},{"$error":"#DIV/0!"}]
[null,null,null,null,null,null,null,null,null,null,0,0,0,{"$error":"#DIV/0!"},{"$error":"#DIV/0!"}]
[null,null,null,null,null,null,null,null,null,null,0,0,0,{"$error":"#DIV/0!"},{"$error":"#DIV/0!"}]
[null,null,null,null,null,null,null,null,null,null,0,0,0,{"$error":"#DIV/0!"},{"$error":"#DIV/0!"}]
[null,null,null,null,null,null,null,null,null,null,0,0,0,{"$error":"#DIV/0!"},{"$error":"#DIV/0!"}]
[null,null,null,null,null,null,null,null,null,null,0,0,0,{"$error":"#DIV/0!"},{"$error":"#DIV/0!"}]
[null,null,null,null,null,null,null,null,null,null,0,0,0,{"$error":"#DIV/0!"},{"$error":"#DIV/0!"}]
[null,null,null,null,null,null,null,null,null,null,0,0,0,{"$error":"#DIV/0!"},{"$error":"#DIV/0!"}]
[null,null,null,null,null,null,null,null,null,null,0,0,0,{"$error":"#DIV/0!"},{"$error":"#DIV/0!"}]
[null,null,null,null,null,null,null,null,null,null,0,0,0,{"$error":"#DIV/0!"},{"$error":"#DIV/0!"}]
[null,null,null,null,null,null,null,null,null,null,0,0,0,{"$error":"#DIV/0!"},{"$error":"#DIV/0!"}]
[null,null,null,null,null,null,null,null,null,null,{"$f":"SUM(J1281*0.1)","v":0},{"$f":"SUM(J1281*0.3)","v":0},{"$f":"SUM(J1281-L1281)","v":0},{"$f":"SUM(G1281-J1281)/G1281","v":{"$error":"#DIV/0!"}},{"$f":"SUM(H1281-N1281)","v":{"$error":"#DIV/0!"}}]
[null,null,null,null,null,null,null,null,null,null,{"$f":"J1282*0.1","v":0},{"$f":"J1282*0.3","v":0},{"$f":"J1282-L1282","v":0},{"$f":"(G1282-J1282)/G1282","v":{"$error":"#DIV/0!"}},{"$f":"H1282-N1282","v":{"$error":"#DIV/0!"}}]
[null,null,null,null,null,null,null,null,null,null,0,0,0,{"$error":"#DIV/0!"},{"$error":"#DIV/0!"}]
[null,null,null,null,null,null,null,null,null,null,0,0,0,{"$error":"#DIV/0!"},{"$error":"#DIV/0!"}]
[null,null,null,null,null,null,null,null,null,null,0,0,0,{"$error":"#DIV/0!"},{"$error":"#DIV/0!"}]
[null,null,null,null,null,null,null,null,null,null,0,0,0,{"$error":"#DIV/0!"},{"$error":"#DIV/0!"}]
[null,null,null,null,null,null,null,null,null,null,0,0,0,{"$error":"#DIV/0!"},{"$error":"#DIV/0!"}]
[null,null,null,null,null,null,null,null,null,null,0,0,0,{"$error":"#DIV/0!"},{"$error":"#DIV/0!"}]
[null,null,null,null,null,null,null,null,null,null,0,0,0,{"$error":"#DIV/0!"},{"$error":"#DIV/0!"}]
[null,null,null,null,null,null,null,null,null,null,0,0,0,{"$error":"#DIV/0!"},{"$error":"#DIV/0!"}]
[null,null,null,null,null,null,null,null,null,null,0,0,0,{"$error":"#DIV/0!"},{"$error":"#DIV/0!"}]
[null,null,null,null,null,null,null,null,null,null,0,0,0,{"$error":"#DIV/0!"},{"$error":"#DIV/0!"}]
[null,null,null,null,null,null,null,null,null,null,0,0,0,{"$error":"#DIV/0!"},{"$error":"#DIV/0!"}]
[null,null,null,null,null,null,null,null,null,null,0,0,0,{"$error":"#DIV/0!"},{"$error":"#DIV/0!"}]
[null,null,null,null,null,null,null,null,null,null,0,0,0,{"$error":"#DIV/0!"},{"$error":"#DIV/0!"}]
[null,null,null,null,null,null,null,null,null,null,0,0,0,{"$error":"#DIV/0!"},{"$error":"#DIV/0!"}]
[null,null,null,null,null,null,null,null,null,null,0,0,0,{"$error":"#DIV/0!"},{"$error":"#DIV/0!"}]
[null,null,null,null,null,null,null,null,null,null,0,0,0,{"$error":"#DIV/0!"},{"$error":"#DIV/0!"}]
[null,null,null,null,null,null,null,null,null,null,0,0,0,{"$error":"#DIV/0!"},{"$error":"#DIV/0!"}]
[null,null,null,null,null,null,null,null,null,null,0,0,0,{"$error":"#DIV/0!"},{"$error":"#DIV/0!"}]
[null,null,null,null,null,null,null,null,null,null,0,0,0,{"$error":"#DIV/0!"},{"$error":"#DIV/0!"}]
[null,null,null,null,null,null,null,null,null,null,0,0,0,{"$error":"#DIV/0!"},{"$error":"#DIV/0!"}]
[null,null,null,null,null,null,null,null,null,null,0,0,0,{"$error":"#DIV/0!"},{"$error":"#DIV/0!"}]
[null,null,null,null,null,null,null,null,null,null,0,0,0,{"$error":"#DIV/0!"},{"$error":"#DIV/0!"}]
[null,null,null,null,null,null,null,null,null,null,0,0,0,{"$error":"#DIV/0!"},{"$error":"#DIV/0!"}]
[null,null,null,null,null,null,null,null,null,null,0,0,0,{"$error":"#DIV/0!"},{"$error":"#DIV/0!"}]
[null,null,null,null,null,null,null,null,null,null,0,0,0,{"$error":"#DIV/0!"},{"$error":"#DIV/0!"}]
[null,null,null,null,null,null,null,null,null,null,0,0,0,{"$error":"#DIV/0!"},{"$error":"#DIV/0!"}]
[null,null,null,null,null,null,null,null,null,null,0,0,0,{"$error":"#DIV/0!"},{"$error":"#DIV/0!"}]
[null,null,null,null,null,null,null,null,null,null,0,0,0,{"$error":"#DIV/0!"},{"$error":"#DIV/0!"}]
[null,null,null,null,null,null,null,null,null,null,0,0,0,{"$error":"#DIV/0!"},{"$error":"#DIV/0!"}]
[null,null,null,null,null,null,null,null,null,null,0,0,0,{"$error":"#DIV/0!"},{"$error":"#DIV/0!"}]
[null,null,null,null,null,null,null,null,null,null,0,0,0,{"$error":"#DIV/0!"},{"$error":"#DIV/0!"}]
[null,null,null,null,null,null,null,null,null,null,0,0,0,{"$error":"#DIV/0!"},{"$error":"#DIV/0!"}]
[null,null,null,null,null,null,null,null,null,null,0,0,0,{"$error":"#DIV/0!"},{"$error":"#DIV/0!"}]
[null,null,null,null,null,null,null,null,null,null,0,0,0,{"$error":"#DIV/0!"},{"$error":"#DIV/0!"}]
[null,null,null,null,null,null,null,null,null,null,0,0,0,{"$error":"#DIV/0!"},{"$error":"#DIV/0!"}]
[null,null,null,null,null,null,null,null,null,null,0,0,0,{"$error":"#DIV/0!"},{"$error":"#DIV/0!"}]
[null,null,null,null,null,null,null,null,null,null,0,0,0,{"$error":"#DIV/0!"},{"$error":"#DIV/0!"}]
[null,null,null,null,null,null,null,null,null,null,0,0,0,{"$error":"#DIV/0!"},{"$error":"#DIV/0!"}]
[null,null,null,null,null,null,null,null,null,null,0,0,0,{"$error":"#DIV/0!"},{"$error":"#DIV/0!"}]
[null,null,null,null,null,null,null,null,null,null,0,0,0,{"$error":"#DIV/0!"},{"$error":"#DIV/0!"}]
[null,null,null,null,null,null,null,null,null,null,0,0,0,{"$error":"#DIV/0!"},{"$error":"#DIV/0!"}]
[null,null,null,null,null,null,null,null,null,null,0,0,0,{"$error":"#DIV/0!"},{"$error":"#DIV/0!"}]
[null,null,null,null,null,null,null,null,null,null,{"$f":"SUM(J1325*0.1)","v":0},{"$f":"SUM(J1325*0.3)","v":0},{"$f":"SUM(J1325-L1325)","v":0},{"$f":"SUM(G1325-J1325)/G1325","v":{"$error":"#DIV/0!"}},{"$f":"SUM(H1325-N1325)","v":{"$error":"#DIV/0!"}}]
[null,null,null,null,null,null,null,null,null,null,0,0,0,{"$error":"#DIV/0!"},{"$error":"#DIV/0!"}]
[null,null,null,null,null,null,null,null,null,null,0,0,0,{"$error":"#DIV/0!"},{"$error":"#DIV/0!"}]
[null,null,null,null,null,null,null,null,null,null,0,0,0,{"$error":"#DIV/0!"},{"$error":"#DIV/0!"}]
[null,null,null,null,null,null,null,null,null,null,0,0,0,{"$error":"#DIV/0!"},{"$error":"#DIV/0!"}]
[null,null,null,null,null,null,null,null,null,null,0,0,0,{"$error":"#DIV/0!"},{"$error":"#DIV/0!"}]
[null,null,null,null,null,null,null,null,null,null,{"$f":"J1331*0.1","v":0},{"$f":"J1331*0.3","v":0},{"$f":"J1331-L1331","v":0},{"$f":"(G1331-J1331)/G1331","v":{"$error":"#DIV/0!"}},{"$f":"H1331-N1331","v":{"$error":"#DIV/0!"}}]
[null,null,null,null,null,null,null,null,null,null,0,0,0,{"$error":"#DIV/0!"},{"$error":"#DIV/0!"}]
[null,null,null,null,null,null,null,null,null,null,0,0,0,{"$error":"#DIV/0!"},{"$error":"#DIV/0!"}]
[null,null,null,null,null,null,null,null,null,null,0,0,0,{"$error":"#DIV/0!"},{"$error":"#DIV/0!"}]
[null,null,null,null,null,null,null,null,null,null,0,0,0,{"$error":"#DIV/0!"},{"$error":"#DIV/0!"}]
[null,null,null,null,null,null,null,null,null,null,0,0,0,{"$error":"#DIV/0!"},{"$error":"#DIV/0!"}]
[null,null,null,null,null,null,null,null,null,null,{"$f":"SUM(J1337*0.1)","v":0},{"$f":"SUM(J1337*0.3)","v":0},{"$f":"SUM(J1337-L1337)","v":0},{"$f":"SUM(G1337-J1337)/G1337","v":{"$error":"#DIV/0!"}},{"$f":"SUM(H1337-N1337)","v":{"$error":"#DIV/0!"}}]
[null,null,null,null,null,null,null,null,null,null,{"$f":"SUM(J1338*0.1)","v":0},{"$f":"SUM(J1338*0.3)","v":0},{"$f":"SUM(J1338-L1338)","v":0},{"$f":"SUM(G1338-J1338)/G1338","v":{"$error":"#DIV/0!"}},{"$f":"SUM(H1338-N1338)","v":{"$error":"#DIV/0!"}}]
[null,null,null,null,null,null,null,null,null,null,{"$f":"SUM(J1339*0.1)","v":0},{"$f":"SUM(J1339*0.3)","v":0},{"$f":"SUM(J1339-L1339)","v":0},{"$f":"SUM(G1339-J1339)/G1339","v":{"$error":"#DIV/0!"}},{"$f":"SUM(H1339-N1339)","v":{"$error":"#DIV/0!"}}]
[null,null,null,null,null,null,null,null,null,null,{"$f":"SUM(J1340*0.1)","v":0},{"$f":"SUM(J1340*0.3)","v":0},{"$f":"SUM(J1340-L1340)","v":0},{"$f":"SUM(G1340-J1340)/G1340","v":{"$error":"#DIV/0!"}},{"$f":"SUM(H1340-N1340)","v":{"$error":"#DIV/0!"}}]
[null,null,null,null,null,null,null,null,null,null,{"$f":"SUM(J1341*0.1)","v":0},{"$f":"SUM(J1341*0.3)","v":0},{"$f":"SUM(J1341-L1341)","v":0},{"$f":"SUM(G1341-J1341)/G1341","v":{"$error":"#DIV/0!"}},{"$f":"SUM(H1341-N1341)","v":{"$error":"#DIV/0!"}}]
[null,null,null,null,null,null,null,null,null,null,{"$f":"J1342*0.1","v":0},{"$f":"J1342*0.3","v":0},{"$f":"J1342-L1342","v":0},{"$f":"(G1342-J1342)/G1342","v":{"$error":"#DIV/0!"}},{"$f":"H1342-N1342","v":{"$error":"#DIV/0!"}}]
[null,null,null,null,null,null,null,null,null,null,0,0,0,{"$error":"#DIV/0!"},{"$error":"#DIV/0!"}]
[null,null,null,null,null,null,null,null,null,null,0,0,0,{"$error":"#DIV/0!"},{"$error":"#DIV/0!"}]
[null,null,null,null,null,null,null,null,null,null,0,0,0,{"$error":"#DIV/0!"},{"$error":"#DIV/0!"}]
[null,null,null,null,null,null,null,null,null,null,0,0,0,{"$error":"#DIV/0!"},{"$error":"#DIV/0!"}]
[null,null,null,null,null,null,null,null,null,null,0,0,0,{"$error":"#DIV/0!"},{"$error":"#DIV/0!"}]
[null,null,null,null,null,null,null,null,null,null,0,0,0,{"$error":"#DIV/0!"},{"$error":"#DIV/0!"}]
[null,null,null,null,null,null,null,null,null,null,0,0,0,{"$error":"#DIV/0!"},{"$error":"#DIV/0!"}]
[null,null,null,null,null,null,null,null,null,null,0,0,0,{"$error":"#DIV/0!"},{"$error":"#DIV/0!"}]
[null,null,null,null,null,null,null,null,null,null,0,0,0,{"$error":"#DIV/0!"},{"$error":"#DIV/0!"}]
[null,null,null,null,null,null,null,null,null,null,0,0,0,{"$error":"#DIV/0!"},{"$error":"#DIV/0!"}]
[null,null,null,null,null,null,null,null,null,null,0,0,0,{"$error":"#DIV/0!"},{"$error":"#DIV/0!"}]
[null,null,null,null,null,null,null,null,null,null,0,0,0,{"$error":"#DIV/0!"},{"$error":"#DIV/0!"}]
[null,null,null,null,null,null,null,null,null,null,0,0,0,{"$error":"#DIV/0!"},{"$error":"#DIV/0!"}]
[null,null,null,null,null,null,null,null,null,null,0,0,0,{"$error":"#DIV/0!"},{"$error":"#DIV/0!"}]
[null,null,null,null,null,null,null,null,null,null,0,0,0,{"$error":"#DIV/0!"},{"$error":"#DIV/0!"}]
[null,null,null,null,null,null,null,null,null,null,0,0,0,{"$error":"#DIV/0!"},{"$error":"#DIV/0!"}]
[null,null,null,null,null,null,null,null,null,null,0,0,0,{"$error":"#DIV/0!"},{"$error":"#DIV/0!"}]
[null,null,null,null,null,null,null,null,null,null,0,0,0,{"$error":"#DIV/0!"},{"$error":"#DIV/0!"}]
[null,null,null,null,null,null,null,null,null,null,0,0,0,{"$error":"#DIV/0!"},{"$error":"#DIV/0!"}]
[null,null,null,null,null,null,null,null,null,null,0,0,0,{"$error":"#DIV/0!"},{"$error":"#DIV/0!"}]
[null,null,null,null,null,null,null,null,null,null,0,0,0,{"$error":"#DIV/0!"},{"$error":"#DIV/0!"}]
[null,null,null,null,null,null,null,null,null,null,0,0,0,{"$error":"#DIV/0!"},{"$error":"#DIV/0!"}]
[null,null,null,null,null,null,null,null,null,null,{"$f":"SUM(J1365*0.1)","v":0},{"$f":"SUM(J1365*0.3)","v":0},{"$f":"SUM(J1365-L1365)","v":0},{"$f":"SUM(G1365-J1365)/G1365","v":{"$error":"#DIV/0!"}},{"$f":"SUM(H1365-N1365)","v":{"$error":"#DIV/0!"}}]
[null,null,null,null,null,null,null,null,null,null,0,0,0,{"$error":"#DIV/0!"},{"$error":"#DIV/0!"}]
[null,null,null,null,null,null,null,null,null,null,0,0,0,{"$error":"#DIV/0!"},{"$error":"#DIV/0!"}]
[null,null,null,null,null,null,null,null,null,null,0,0,0,{"$error":"#DIV/0!"},{"$error":"#DIV/0!"}]
[null,null,null,null,null,null,null,null,null,null,0,0,0,{"$error":"#DIV/0!"},{"$error":"#DIV/0!"}]
[null,null,null,null,null,null,null,null,null,null,0,0,0,{"$error":"#DIV/0!"},{"$error":"#DIV/0!"}]
[null,null,null,null,null,null,null,null,null,null,0,0,0,{"$error":"#DIV/0!"},{"$error":"#DIV/0!"}]
[null,null,null,null,null,null,null,null,null,null,{"$f":"J1372*0.1","v":0},{"$f":"J1372*0.3","v":0},{"$f":"J1372-L1372","v":0},{"$f":"(G1372-J1372)/G1372","v":{"$error":"#DIV/0!"}},{"$f":"H1372-N1372","v":{"$error":"#DIV/0!"}}]
[null,null,null,null,null,null,null,null,null,null,0,0,0,{"$error":"#DIV/0!"},{"$error":"#DIV/0!"}]
[null,null,null,null,null,null,null,null,null,null,0,0,0,{"$error":"#DIV/0!"},{"$error":"#DIV/0!"}]
[null,null,null,null,null,null,null,null,null,null,0,0,0,{"$error":"#DIV/0!"},{"$error":"#DIV/0!"}]
[null,null,null,null,null,null,null,null,null,null,0,0,0,{"$error":"#DIV/0!"},{"$error":"#DIV/0!"}]
[null,null,null,null,null,null,null,null,null,null,0,0,0,{"$error":"#DIV/0!"},{"$error":"#DIV/0!"}]
[null,null,null,null,null,null,null,null,null,null,0,0,0,{"$error":"#DIV/0!"},{"$error":"#DIV/0!"}]
[null,null,null,null,null,null,null,null,null,null,0,0,0,{"$error":"#DIV/0!"},{"$error":"#DIV/0!"}]
[null,null,null,null,null,null,null,null,null,null,0,0,0,{"$error":"#DIV/0!"},{"$error":"#DIV/0!"}]
[null,null,null,null,null,null,null,null,null,null,0,0,0,{"$error":"#DIV/0!"},{"$error":"#DIV/0!"}]
[null,null,null,null,null,null,null,null,null,null,0,0,0,{"$error":"#DIV/0!"},{"$error":"#DIV/0!"}]
[null,null,null,null,null,null,null,null,null,null,0,0,0,{"$error":"#DIV/0!"},{"$error":"#DIV/0!"}]
[null,null,null,null,null,null,null,null,null,null,0,0,0,{"$error":"#DIV/0!"},{"$error":"#DIV/0!"}]
[null,null,null,null,null,null,null,null,null,null,0,0,0,{"$error":"#DIV/0!"},{"$error":"#DIV/0!"}]
[null,null,null,null,null,null,null,null,null,null,0,0,0,{"$error":"#DIV/0!"},{"$error":"#DIV/0!"}]
[null,null,null,null,null,null,null,null,null,null,0,0,0,{"$error":"#DIV/0!"},{"$error":"#DIV/0!"}]
[null,null,null,null,null,null,null,null,null,null,0,0,0,{"$error":"#DIV/0!"},{"$error":"#DIV/0!"}]
[null,null,null,null,null,null,null,null,null,null,0,0,0,{"$error":"#DIV/0!"},{"$error":"#DIV/0!"}]
[null,null,null,null,null,null,null,null,null,null,0,0,0,{"$error":"#DIV/0!"},{"$error":"#DIV/0!"}]
[null,null,null,null,null,null,null,null,null,null,0,0,0,{"$error":"#DIV/0!"},{"$error":"#DIV/0!"}]
[null,null,null,null,null,null,null,null,null,null,{"$f":"SUM(J1392*0.1)","v":0},{"$f":"SUM(J1392*0.3)","v":0},{"$f":"SUM(J1392-L1392)","v":0},{"$f":"SUM(G1392-J1392)/G1392","v":{"$error":"#DIV/0!"}},{"$f":"SUM(H1392-N1392)","v":{"$error":"#DIV/0!"}}]
[null,null,null,null,null,null,null,null,null,null,{"$f":"SUM(J1393*0.1)","v":0},{"$f":"SUM(J1393*0.3)","v":0},{"$f":"SUM(J1393-L1393)","v":0},{"$f":"SUM(G1393-J1393)/G1393","v":{"$error":"#DIV/0!"}},{"$f":"SUM(H1393-N1393)","v":{"$error":"#DIV/0!"}},null,{"$f":"(C1393*F1393)-G1393","v":0}]
[null,null,null,null,null,null,null,null,null,null,{"$f":"SUM(J1394*0.1)","v":0},{"$f":"SUM(J1394*0.3)","v":0},{"$f":"SUM(J1394-L1394)","v":0},{"$f":"SUM(G1394-J1394)/G1394","v":{"$error":"#DIV/0!"}},{"$f":"SUM(H1394-N1394)","v":{"$error":"#DIV/0!"}},null,0]
[null,null,null,null,null,null,null,null,null,null,{"$f":"SUM(J1395*0.1)","v":0},{"$f":"SUM(J1395*0.3)","v":0},{"$f":"SUM(J1395-L1395)","v":0},{"$f":"SUM(G1395-J1395)/G1395","v":{"$error":"#DIV/0!"}},{"$f":"SUM(H1395-N1395)","v":{"$error":"#DIV/0!"}},null,0]
[null,null,null,null,null,null,null,null,null,null,{"$f":"SUM(J1396*0.1)","v":0},{"$f":"SUM(J1396*0.3)","v":0},{"$f":"SUM(J1396-L1396)","v":0},{"$f":"SUM(G1396-J1396)/G1396","v":{"$error":"#DIV/0!"}},{"$f":"SUM(H1396-N1396)","v":{"$error":"#DIV/0!"}},null,0]
[null,null,null,null,null,null,null,null,null,null,{"$f":"J1397*0.1","v":0},{"$f":"J1397*0.3","v":0},{"$f":"J1397-L1397","v":0},{"$f":"(G1397-J1397)/G1397","v":{"$error":"#DIV/0!"}},{"$f":"H1397-N1397","v":{"$error":"#DIV/0!"}},null,0]
[null,null,null,null,null,null,null,null,null,null,0,0,0,{"$error":"#DIV/0!"},{"$error":"#DIV/0!"},null,0]
[null,null,null,null,null,null,null,null,null,null,0,0,0,{"$error":"#DIV/0!"},{"$error":"#DIV/0!"},null,0]
[null,null,null,null,null,null,null,null,null,null,0,0,0,{"$error":"#DIV/0!"},{"$error":"#DIV/0!"},null,0]
[null,null,null,null,null,null,null,null,null,null,0,0,0,{"$error":"#DIV/0!"},{"$error":"#DIV/0!"},null,0]
[null,null,null,null,null,null,null,null,null,null,0,0,0,{"$error":"#DIV/0!"},{"$error":"#DIV/0!"},null,0]
[null,null,null,null,null,null,null,null,null,null,0,0,0,{"$error":"#DIV/0!"},{"$error":"#DIV/0!"},null,0]
[null,null,null,null,null,null,null,null,null,null,0,0,0,{"$error":"#DIV/0!"},{"$error":"#DIV/0!"},null,0]
[null,null,null,null,null,null,null,null,null,null,0,0,0,{"$error":"#DIV/0!"},{"$error":"#DIV/0!"},null,0]
[null,null,null,null,null,null,null,null,null,null,0,0,0,{"$error":"#DIV/0!"},{"$error":"#DIV/0!"},null,0]
[null,null,null,null,null,null,null,null,null,null,0,0,0,{"$error":"#DIV/0!"},{"$error":"#DIV/0!"},null,0]
[null,null,null,null,null,null,null,null,null,null,0,0,0,{"$error":"#DIV/0!"},{"$error":"#DIV/0!"},null,0]
[null,null,null,null,null,null,null,null,null,null,0,0,0,{"$error":"#DIV/0!"},{"$error":"#DIV/0!"},null,0]
[null,null,null,null,null,null,null,null,null,null,0,0,0,{"$error":"#DIV/0!"},{"$error":"#DIV/0!"},null,0]
[null,null,null,null,null,null,null,null,null,null,0,0,0,{"$error":"#DIV/0!"},{"$error":"#DIV/0!"},null,0]
[null,null,null,null,null,null,null,null,null,null,0,0,0,{"$error":"#DIV/0!"},{"$error":"#DIV/0!"},null,0]
[null,null,null,null,null,null,null,null,null,null,0,0,0,{"$error":"#DIV/0!"},{"$error":"#DIV/0!"}]
[null,null,null,null,null,null,null,null,null,null,0,0,0,{"$error":"#DIV/0!"},{"$error":"#DIV/0!"}]
[null,null,null,null,null,null,null,null,null,null,0,0,0,{"$error":"#DIV/0!"},{"$error":"#DIV/0!"}]
[null,null,null,null,null,null,null,null,null,null,0,0,0,{"$error":"#DIV/0!"},{"$error":"#DIV/0!"}]
[null,null,null,null,null,null,null,null,null,null,0,0,0,{"$error":"#DIV/0!"},{"$error":"#DIV/0!"}]
[null,null,null,null,null,null,null,null,null,null,0,0,0,{"$error":"#DIV/0!"},{"$error":"#DIV/0!"}]
[null,null,null,null,null,null,null,null,null,null,0,0,0,{"$error":"#DIV/0!"},{"$error":"#DIV/0!"}]
[null,null,null,null,null,null,null,null,null,null,0,0,0,{"$error":"#DIV/0!"},{"$error":"#DIV/0!"}]
[null,null,null,null,null,null,null,null,null,null,0,0,0,{"$error":"#DIV/0!"},{"$error":"#DIV/0!"}]
[null,null,null,null,null,null,null,null,null,null,0,0,0,{"$error":"#DIV/0!"},{"$error":"#DIV/0!"}]
[null,null,null,null,null,null,null,null,null,null,0,0,0,{"$error":"#DIV/0!"},{"$error":"#DIV/0!"}]
[null,null,null,null,null,null,null,null,null,null,0,0,0,{"$error":"#DIV/0!"},{"$error":"#DIV/0!"}]
[null,null,null,null,null,null,null,null,null,null,0,0,0,{"$error":"#DIV/0!"},{"$error":"#DIV/0!"}]
[null,null,null,null,null,null,null,null,null,null,0,0,0,{"$error":"#DIV/0!"},{"$error":"#DIV/0!"}]
[null,null,null,null,null,null,null,null,null,null,0,0,0,{"$error":"#DIV/0!"},{"$error":"#DIV/0!"}]
[null,null,null,null,null,null,null,null,null,null,0,0,0,{"$error":"#DIV/0!"},{"$error":"#DIV/0!"}]
[null,null,null,null,null,null,null,null,null,null,{"$f":"J1429*0.1","v":0},{"$f":"J1429*0.3","v":0},{"$f":"J1429-L1429","v":0},{"$f":"(G1429-J1429)/G1429","v":{"$error":"#DIV/0!"}},{"$f":"H1429-N1429","v":{"$error":"#DIV/0!"}}]
[null,null,null,null,null,null,null,null,null,null,0,0,0,{"$error":"#DIV/0!"},{"$error":"#DIV/0!"}]
[null,null,null,null,null,null,null,null,null,null,0,0,0,{"$error":"#DIV/0!"},{"$error":"#DIV/0!"}]
[null,null,null,null,null,null,null,null,null,null,0,0,0,{"$error":"#DIV/0!"},{"$error":"#DIV/0!"}]
[null,null,null,null,null,null,null,null,null,null,0,0,0,{"$error":"#DIV/0!"},{"$error":"#DIV/0!"}]
[null,null,null,null,null,null,null,null,null,null,0,0,0,{"$error":"#DIV/0!"},{"$error":"#DIV/0!"}]
[null,null,null,null,null,null,null,null,null,null,0,0,0,{"$error":"#DIV/0!"},{"$error":"#DIV/0!"}]
[null,null,null,null,null,null,null,null,null,null,0,0,0,{"$error":"#DIV/0!"},{"$error":"#DIV/0!"}]
[null,null,null,null,null,null,null,null,null,null,0,0,0,{"$error":"#DIV/0!"},{"$error":"#DIV/0!"}]
[null,null,null,null,null,null,null,null,null,null,0,0,0,{"$error":"#DIV/0!"},{"$error":"#DIV/0!"}]
[null,null,null,null,null,null,null,null,null,null,0,0,0,{"$error":"#DIV/0!"},{"$error":"#DIV/0!"}]
[null,null,null,null,null,null,null,null,null,null,0,0,0,{"$error":"#DIV/0!"},{"$error":"#DIV/0!"}]
[null,null,null,null,null,null,null,null,null,null,0,0,0,{"$error":"#DIV/0!"},{"$error":"#DIV/0!"}]
[null,null,null,null,null,null,null,null,null,null,0,0,0,{"$error":"#DIV/0!"},{"$error":"#DIV/0!"}]
[null,null,null,null,null,null,null,null,null,null,0,0,0,{"$error":"#DIV/0!"},{"$error":"#DIV/0!"}]
[null,null,null,null,null,null,null,null,null,null,0,0,0,{"$error":"#DIV/0!"},{"$error":"#DIV/0!"}]
[null,null,null,null,null,null,null,null,null,null,0,0,0,{"$error":"#DIV/0!"},{"$error":"#DIV/0!"}]
[null,null,null,null,null,null,null,null,null,null,0,0,0,{"$error":"#DIV/0!"},{"$error":"#DIV/0!"}]
[null,null,null,null,null,null,null,null,null,null,0,0,0,{"$error":"#DIV/0!"},{"$error":"#DIV/0!"}]
[null,null,null,null,null,null,null,null,null,null,{"$f":"SUM(J1448*0.1)","v":0},{"$f":"SUM(J1448*0.3)","v":0},{"$f":"SUM(J1448-L1448)","v":0},{"$f":"SUM(G1448-J1448)/G1448","v":{"$error":"#DIV/0!"}},{"$f":"SUM(H1448-N1448)","v":{"$error":"#DIV/0!"}}]
[null,null,null,null,null,null,null,null,null,null,0,0,0,{"$error":"#DIV/0!"},{"$error":"#DIV/0!"}]
[null,null,null,null,null,null,null,null,null,null,0,0,0,{"$error":"#DIV/0!"},{"$error":"#DIV/0!"}]
[null,null,null,null,null,null,null,null,null,null,0,0,0,{"$error":"#DIV/0!"},{"$error":"#DIV/0!"}]
[null,null,null,null,null,null,null,null,null,null,0,0,0,{"$error":"#DIV/0!"},{"$error":"#DIV/0!"}]
[null,null,null,null,null,null,null,null,null,null,0,0,0,{"$error":"#DIV/0!"},{"$error":"#DIV/0!"}]
[null,null,null,null,null,null,null,null,null,null,0,0,0,{"$error":"#DIV/0!"},{"$error":"#DIV/0!"}]
[null,null,null,null,null,null,null,null,null,null,0,0,0,{"$error":"#DIV/0!"},{"$error":"#DIV/0!"}]
[null,null,null,null,null,null,null,null,null,null,0,0,0,{"$error":"#DIV/0!"},{"$error":"#DIV/0!"}]
[null,null,null,null,null,null,null,null,null,null,0,0,0,{"$error":"#DIV/0!"},{"$error":"#DIV/0!"}]
[null,null,null,null,null,null,null,null,null,null,0,0,0,{"$error":"#DIV/0!"},{"$error":"#DIV/0!"}]
[null,null,null,null,null,null,null,null,null,null,{"$f":"J1459*0.1","v":0},{"$f":"J1459*0.3","v":0},{"$f":"J1459-L1459","v":0},{"$f":"(G1459-J1459)/G1459","v":{"$error":"#DIV/0!"}},{"$f":"H1459-N1459","v":{"$error":"#DIV/0!"}}]
[null,null,null,null,null,null,null,null,null,null,0,0,0,{"$error":"#DIV/0!"},{"$error":"#DIV/0!"}]
[null,null,null,null,null,null,null,null,null,null,0,0,0,{"$error":"#DIV/0!"},{"$error":"#DIV/0!"}]
[null,null,null,null,null,null,null,null,null,null,0,0,0,{"$error":"#DIV/0!"},{"$error":"#DIV/0!"}]
[null,null,null,null,null,null,null,null,null,null,0,0,0,{"$error":"#DIV/0!"},{"$error":"#DIV/0!"}]
[null,null,null,null,null,null,null,null,null,null,0,0,0,{"$error":"#DIV/0!"},{"$error":"#DIV/0!"}]
[null,null,null,null,null,null,null,null,null,null,0,0,0,{"$error":"#DIV/0!"},{"$error":"#DIV/0!"}]
[null,null,null,null,null,null,null,null,null,null,0,0,0,{"$error":"#DIV/0!"},{"$error":"#DIV/0!"}]
[null,null,null,null,null,null,null,null,null,null,0,0,0,{"$error":"#DIV/0!"},{"$error":"#DIV/0!"}]
[null,null,null,null,null,null,null,null,null,null,0,0,0,{"$error":"#DIV/0!"},{"$error":"#DIV/0!"}]
[null,null,null,null,null,null,null,null,null,null,0,0,0,{"$error":"#DIV/0!"},{"$error":"#DIV/0!"}]
[null,null,null,null,null,null,null,null,null,null,0,0,0,{"$error":"#DIV/0!"},{"$error":"#DIV/0!"}]
[null,null,null,null,null,null,null,null,null,null,0,0,0,{"$error":"#DIV/0!"},{"$error":"#DIV/0!"}]
[null,null,null,null,null,null,null,null,null,null,0,0,0,{"$error":"#DIV/0!"},{"$error":"#DIV/0!"}]
[null,null,null,null,null,null,null,null,null,null,0,0,0,{"$error":"#DIV/0!"},{"$error":"#DIV/0!"}]
[null,null,null,null,null,null,null,null,null,null,0,0,0,{"$error":"#DIV/0!"},{"$error":"#DIV/0!"}]
[null,null,null,null,null,null,null,null,null,null,0,0,0,{"$error":"#DIV/0!"},{"$error":"#DIV/0!"}]
[null,null,null,null,null,null,null,null,null,null,0,0,0,{"$error":"#DIV/0!"},{"$error":"#DIV/0!"}]
[null,null,null,null,null,null,null,null,null,null,0,0,0,{"$error":"#DIV/0!"},{"$error":"#DIV/0!"}]
[null,null,null,null,null,null,null,null,null,null,0,0,0,{"$error":"#DIV/0!"},{"$error":"#DIV/0!"}]
[null,null,null,null,null,null,null,null,null,null,0,0,0,{"$error":"#DIV/0!"},{"$error":"#DIV/0!"}]
[null,null,null,null,null,null,null,null,null,null,0,0,0,{"$error":"#DIV/0!"},{"$error":"#DIV/0!"}]
[null,null,null,null,null,null,null,null,null,null,0,0,0,{"$error":"#DIV/0!"},{"$error":"#DIV/0!"}]
[null,null,null,null,null,null,null,null,null,null,0,0,0,{"$error":"#DIV/0!"},{"$error":"#DIV/0!"}]
[null,null,null,null,null,null,null,null,null,null,0,0,0,{"$error":"#DIV/0!"},{"$error":"#DIV/0!"}]
[null,null,null,null,null,null,null,null,null,null,0,0,0,{"$error":"#DIV/0!"},{"$error":"#DIV/0!"}]
[null,null,null,null,null,null,null,null,null,null,0,0,0,{"$error":"#DIV/0!"},{"$error":"#DIV/0!"}]
[null,null,null,null,null,null,null,null,null,null,0,0,0,{"$error":"#DIV/0!"},{"$error":"#DIV/0!"}]
[null,null,null,null,null,null,null,null,null,null,0,0,0,{"$error":"#DIV/0!"},{"$error":"#DIV/0!"}]
[null,null,null,null,null,null,null,null,null,null,0,0,0,{"$error":"#DIV/0!"},{"$error":"#DIV/0!"}]
[null,null,null,null,null,null,null,null,null,null,0,0,0,{"$error":"#DIV/0!"},{"$error":"#DIV/0!"}]
[null,null,null,null,null,null,null,null,null,null,0,0,0,{"$error":"#DIV/0!"},{"$error":"#DIV/0!"}]
[null,null,null,null,null,null,null,null,null,null,{"$f":"J1491*0.1","v":0},{"$f":"J1491*0.3","v":0},{"$f":"J1491-L1491","v":0},{"$f":"(G1491-J1491)/G1491","v":{"$error":"#DIV/0!"}},{"$f":"H1491-N1491","v":{"$error":"#DIV/0!"}}]
[null,null,null,null,null,null,null,null,null,null,0,0,0,{"$error":"#DIV/0!"},{"$error":"#DIV/0!"}]
[null,null,null,null,null,null,null,null,null,null,0,0,0,{"$error":"#DIV/0!"},{"$error":"#DIV/0!"}]
[null,null,null,null,null,null,null,null,null,null,0,0,0,{"$error":"#DIV/0!"},{"$error":"#DIV/0!"}]
[null,null,null,null,null,null,null,null,null,null,0,0,0,{"$error":"#DIV/0!"},{"$error":"#DIV/0!"}]
[null,null,null,null,null,null,null,null,null,null,0,0,0,{"$error":"#DIV/0!"},{"$error":"#DIV/0!"}]
[null,null,null,null,null,null,null,null,null,null,0,0,0,{"$error":"#DIV/0!"},{"$error":"#DIV/0!"}]
[null,null,null,null,null,null,null,null,null,null,0,0,0,{"$error":"#DIV/0!"},{"$error":"#DIV/0!"}]
[null,null,null,null,null,null,null,null,null,null,0,0,0,{"$error":"#DIV/0!"},{"$error":"#DIV/0!"}]
[null,null,null,null,null,null,null,null,null,null,0,0,0,{"$error":"#DIV/0!"},{"$error":"#DIV/0!"}]
[null,null,null,null,null,null,null,null,null,null,0,0,0,{"$error":"#DIV/0!"},{"$error":"#DIV/0!"}]
[null,null,null,null,null,null,null,null,null,null,0,0,0,{"$error":"#DIV/0!"},{"$error":"#DIV/0!"}]
[null,null,null,null,null,null,null,null,null,null,0,0,0,{"$error":"#DIV/0!"},{"$error":"#DIV/0!"}]
[null,null,null,null,null,null,null,null,null,null,0,0,0,{"$error":"#DIV/0!"},{"$error":"#DIV/0!"}]
[null,null,null,null,null,null,null,null,null,null,0,0,0,{"$error":"#DIV/0!"},{"$error":"#DIV/0!"}]
[null,null,null,null,null,null,null,null,null,null,0,0,0,{"$error":"#DIV/0!"},{"$error":"#DIV/0!"}]
[null,null,null,null,null,null,null,null,null,null,0,0,0,{"$error":"#DIV/0!"},{"$error":"#DIV/0!"}]
[null,null,null,null,null,null,null,null,null,null,0,0,0,{"$error":"#DIV/0!"},{"$error":"#DIV/0!"}]
[null,null,null,null,null,null,null,null,null,null,0,0,0,{"$error":"#DIV/0!"},{"$error":"#DIV/0!"}]
[null,null,null,null,null,null,null,null,null,null,0,0,0,{"$error":"#DIV/0!"},{"$error":"#DIV/0!"}]
[null,null,null,null,null,null,null,null,null,null,0,0,0,{"$error":"#DIV/0!"},{"$error":"#DIV/0!"}]
[null,null,null,null,null,null,null,null,null,null,0,0,0,{"$error":"#DIV/0!"},{"$error":"#DIV/0!"}]
[null,null,null,null,null,null,null,null,null,null,0,0,0,{"$error":"#DIV/0!"},{"$error":"#DIV/0!"}]
[null,null,null,null,null,null,null,null,null,null,0,0,0,{"$error":"#DIV/0!"},{"$error":"#DIV/0!"}]
[null,null,null,null,null,null,null,null,null,null,0,0,0,{"$error":"#DIV/0!"},{"$error":"#DIV/0!"}]
[null,null,null,null,null,null,null,null,null,null,0,0,0,{"$error":"#DIV/0!"},{"$error":"#DIV/0!"}]
[null,null,null,null,null,null,null,null,null,null,0,0,0,{"$error":"#DIV/0!"},{"$error":"#DIV/0!"}]
[null,null,null,null,null,null,null,null,null,null,0,0,0,{"$error":"#DIV/0!"},{"$error":"#DIV/0!"}]
[null,null,null,null,null,null,null,null,null,null,0,0,0,{"$error":"#DIV/0!"},{"$error":"#DIV/0!"}]
[null,null,null,null,null,null,null,null,null,null,0,0,0,{"$error":"#DIV/0!"},{"$error":"#DIV/0!"}]
[null,null,null,null,null,null,null,null,null,null,0,0,0,{"$error":"#DIV/0!"},{"$error":"#DIV/0!"}]
[null,null,null,null,null,null,null,null,null,null,0,0,0,{"$error":"#DIV/0!"},{"$error":"#DIV/0!"}]
[null,null,null,null,null,null,null,null,null,null,{"$f":"J1523*0.1","v":0},0,{"$f":"J1523-L1523","v":0},{"$error":"#DIV/0!"},{"$f":"H1523-N1523","v":{"$error":"#DIV/0!"}}]
[null,null,null,null,null,null,null,null,null,null,0,0,0,{"$error":"#DIV/0!"},{"$error":"#DIV/0!"}]
[null,null,null,null,null,null,null,null,null,null,0,0,0,{"$error":"#DIV/0!"},{"$error":"#DIV/0!"}]
[null,null,null,null,null,null,null,null,null,null,0,0,0,{"$error":"#DIV/0!"},{"$error":"#DIV/0!"}]
[null,null,null,null,null,null,null,null,null,null,{"$f":"SUM(J1527*0.1)","v":0},{"$f":"SUM(J1527*0.3)","v":0},{"$f":"SUM(J1527-L1527)","v":0},{"$f":"SUM(G1527-J1527)/G1527","v":{"$error":"#DIV/0!"}},{"$f":"SUM(H1527-N1527)","v":{"$error":"#DIV/0!"}}]
[null,null,null,null,null,null,null,null,null,null,{"$f":"J1528*0.1","v":0},{"$f":"J1528*0.3","v":0},{"$f":"J1528-L1528","v":0},{"$f":"(G1528-J1528)/G1528","v":{"$error":"#DIV/0!"}},{"$f":"H1528-N1528","v":{"$error":"#DIV/0!"}}]
[null,null,null,null,null,null,null,null,null,null,0,0,0,{"$error":"#DIV/0!"},{"$error":"#DIV/0!"}]
[null,null,null,null,null,null,null,null,null,null,0,0,0,{"$error":"#DIV/0!"},{"$error":"#DIV/0!"}]
[null,null,null,null,null,null,null,null,null,null,0,0,0,{"$error":"#DIV/0!"},{"$error":"#DIV/0!"}]
[null,null,null,null,null,null,null,null,null,null,0,0,0,{"$error":"#DIV/0!"},{"$error":"#DIV/0!"}]
[null,null,null,null,null,null,null,null,null,null,0,0,0,{"$error":"#DIV/0!"},{"$error":"#DIV/0!"}]
[null,null,null,null,null,null,null,null,null,null,0,0,0,{"$error":"#DIV/0!"},{"$error":"#DIV/0!"}]
[null,null,null,null,null,null,null,null,null,null,0,0,0,{"$error":"#DIV/0!"},{"$error":"#DIV/0!"}]
[null,null,null,null,null,null,null,null,null,null,0,0,0,{"$error":"#DIV/0!"},{"$error":"#DIV/0!"}]
[null,null,null,null,null,null,null,null,null,null,0,0,0,{"$error":"#DIV/0!"},{"$error":"#DIV/0!"}]
[null,null,null,null,null,null,null,null,null,null,0,0,0,{"$error":"#DIV/0!"},{"$error":"#DIV/0!"}]
[null,null,null,null,null,null,null,null,null,null,0,0,0,{"$error":"#DIV/0!"},{"$error":"#DIV/0!"}]
[null,null,null,null,null,null,null,null,null,null,0,0,0,{"$error":"#DIV/0!"},{"$error":"#DIV/0!"}]
[null,null,null,null,null,null,null,null,null,null,0,0,0,{"$error":"#DIV/0!"},{"$error":"#DIV/0!"}]
[null,null,null,null,null,null,null,null,null,null,0,0,0,{"$error":"#DIV/0!"},{"$error":"#DIV/0!"}]
[null,null,null,null,null,null,null,null,null,null,0,0,0,{"$error":"#DIV/0!"},{"$error":"#DIV/0!"}]
[null,null,null,null,null,null,null,null,null,null,0,0,0,{"$error":"#DIV/0!"},{"$error":"#DIV/0!"}]